Workbook

Sheet Cover
B1: Registered User: | G1: Free Trial Version - Not For Commercial Use | AF1: © 2017 CivilWeb
B2: Your Logo / Company Details Here | G2: Project: | AF2: By:
G3: Calculation: | M3: Soakaway Design
AF4: Approved:
G5: Sheet Number: | M5: Cover Sheet | T5: Date:
H7: Although all care and attention has been taken to ensure that this program is accurate, CivilWeb gives no guarentee that it is error free. In no event will Civil Web accept any responsibility for any errors or omissions from the program or from the user of the program, or for any special, incedental or consequential damages whatsoever arising from use of this program.
H14: This program should only be used by a suitably qualified Civil or Structural Engineer, and suitable efforts should be taken to verify the results.
H18: Reverse-engineering or decompiling of this program is not allowed.
H20: This program is registered to a single user, and should not be used by any other.
H23: Registered User;
H24: Free Trial Version - Not For Commercial Use
H26: By using this program you confirm your understanding and agreement with the above terms and conditions.
H29: This program remains the property of CivilWeb.
H30: www.civilweb-spreadsheets.com
H32: Revision Schedule
H34: Rev | J34: Changes | Z34: Date
H35: 0 | J35: Original | Z35: 2017-04-18
H36: 2 | J36: Added 200 Year Return Period | Z36: 2018-02-08

Sheet UK
B1: Registered User: | G1: Free Trial Version - Not For Commercial Use | AF1: © 2017 CivilWeb
B2: Your Logo / Company Details Here | G2: Project: | AF2: By:
G3: Calculation: | M3: Soakaway Design | BR3: Rainfall | BS3: Return Period | BT3: Storm duration
AF4: Approved: | BT4: 5 | BU4: 10 | BV4: 15 | BW4: 30 | BX4: 45 | BY4: 60 | BZ4: 120 | CA4: 240 | CB4: 480 | CC4: 600 | CD4: 1440 | CG4: 600
G5: Sheet Number: | M5: 1 | T5: Date: | BR5: M5-60 | BS5: 1 | BT5: 55.5 | BU5: 38.8 | BV5: 30.7 | BW5: 20 | BX5: 15.3 | BY5: 12.7 | BZ5: 7.9 | CA5: 4.8 | CB5: 3 | CC5: 2.5 | CD5: 1.3
BO6: A | BP6: abc | BR6: 20 | BS6: 2 | BT6: 69 | BU6: 49.8 | BV6: 39.7 | BW6: 25.8 | BX6: 19.6 | BY6: 16.1 | BZ6: 9.8 | CA6: 5.9 | CB6: 4 | CC6: 3 | CD6: 1.6
H7: Catchment Details | BO7: B | BP7: def | BR7: r Ratio | BS7: 5 | BT7: 90.9 | BU7: 65 | BV7: 51.6 | BW7: 33.2 | BX7: 25.1 | BY7: 20.5 | BZ7: 12.4 | CA7: 7.4 | CB7: 4 | CC7: 3.6 | CD7: 1.9
H8: Catchment Area | Y8: 200 | AB8: m² | BO8: C | BP8: ghi | BR8: 0.4 | BS8: 10 | BT8: 104.2 | BU8: 75.3 | BV8: 59.9 | BW8: 38.7 | BX8: 29.4 | BY8: 24 | BZ8: 14.5 | CA8: 8.6 | CB8: 5 | CC8: 4.3 | CD8: 2.2
H9: Runoff Coefficient | Y9: 1 | BO9: D | BP9: jkl | BS9: 15 | BT9: 112.8 | BU9: 82 | BV9: 65.4 | BW9: 42.4 | BX9: 32.2 | BY9: 26.3 | BZ9: 15.9 | CA9: 9.4 | CB9: 6 | CC9: =AVERAGE(CC8,CC10) -> 4.65 | CD9: =AVERAGE(CD8,CD10) -> 2.35
H10: Location Code | Y10: A | BO10: E | BP10: mno | BS10: 20 | BT10: 119.4 | BU10: 87.1 | BV10: 69.6 | BW10: 45.2 | BX10: 34.4 | BY10: 28.1 | BZ10: 17 | CA10: 10.1 | CB10: 6 | CC10: 5 | CD10: 2.5
H11: Return Period | Y11: 50 | AB11: years | BO11: F | BP11: pqr | BS11: 25 | BT11: 124.8 | BU11: 91.3 | BV11: 73.1 | BW11: 47.5 | BX11: 36.2 | BY11: 29.6 | BZ11: 17.9 | CA11: 10.6 | CB11: 6 | CC11: =AVERAGE(CC10,CC12) -> 5.15 | CD11: =AVERAGE(CD10,CD12) -> 2.6
H12: Climate Change Factor | Y12: 30 | AB12: % | BO12: G | BP12: stu | BS12: 30 | BT12: 129.3 | BU12: 94.9 | BV12: 76 | BW12: 49.5 | BX12: 37.7 | BY12: 30.8 | BZ12: 18.6 | CA12: 11 | CB12: 6 | CC12: 5.3 | CD12: 2.7
BO13: H | BP13: vw | BS13: 50 | BT13: 143 | BU13: 105.7 | BV13: 84.9 | BW13: 55.5 | BX13: 42.3 | BY13: 34.6 | BZ13: 20.9 | CA13: 12.3 | CB13: 7 | CC13: 6 | CD13: 3
H14: UK Rainfall Map | BS14: 100 | BT14: 163.9 | BU14: 122.4 | BV14: 98.7 | BW14: 64.8 | BX14: 49.5 | BY14: 40.5 | BZ14: 24.5 | CA14: 14.3 | CB14: 8 | CC14: 6.9 | CD14: 3.5
BO15: Rectangular Trench/Pit | BS15: 200 | BT15: =(BT16-BT14)*0.25+BT14 -> 179.175 | BU15: =(BU16-BU14)*0.25+BU14 -> 134.775 | BV15: 108.975 | BW15: 71.825 | BX15: 54.925 | BY15: 44.975 | BZ15: 27.175 | CA15: 15.85 | CB15: 9 | CC15: 7.675 | CD15: 3.875 | CE15: 0 | CF15: 0
BO16: Perforated Manhole | BS16: 500 | BT16: 225 | BU16: 171.9 | BV16: 139.8 | BW16: 92.9 | BX16: 71.2 | BY16: 58.4 | BZ16: 35.2 | CA16: 20.5 | CB16: 12 | CC16: 10 | CD16: 5
BO17: Manhole Within Pit | BS17: 1000 | BT17: 257.9 | BU17: 199 | BV17: 162.5 | BW17: 108.4 | BX17: 83.3 | BY17: 68.4 | BZ17: 41.2 | CA17: 23.8 | CB17: 14 | CC17: 12 | CD17: 6
BU18: =BU14/BU16 -> 0.7120418848 | BV18: 0.7060085837 | BW18: 0.6975242196 | BX18: 0.6952247191 | BY18: 0.6934931507 | BZ18: 0.6960227273 | CA18: 0.6975609756 | CB18: 0.6666666667 | CC18: 0.69 | CD18: 0.7
BU19: =BU16/BU17 -> 0.8638190955 | BV19: =BV16/BV17 -> 0.8603076923 | BW19: 0.8570110701 | BX19: 0.8547418968 | BY19: 0.8538011696 | BZ19: 0.854368932 | CA19: 0.8613445378 | CB19: 0.8571428571 | CC19: =CC16/CC17 -> 0.8333333333 | CD19: 0.8333333333
BO20: =MATCH(Y11,BS5:BS17)+1 -> 10 | BR20: Rainfall | BS20: Return Period | BT20: Storm duration
BT21: 5 | BU21: 10 | BV21: 15 | BW21: 30 | BX21: 45 | BY21: 60 | BZ21: 120 | CA21: 240 | CB21: 480 | CC21: 600 | CD21: 1440 | CO21: 600 | CP21: 1440
BP22: =VLOOKUP(Y10,BO6:BP13,2,FALSE) -> abc | BR22: M5-60 | BS22: 1 | BT22: 47.9 | BU22: 33.2 | BV22: 26.2 | BW22: 16.8 | BX22: 12.8 | BY22: 10.6 | BZ22: 6.5 | CA22: 4 | CB22: 2.3 | CC22: 2 | CD22: 1.1 | CN22: 0.12 | CO22: 3.7 | CP22: 6
BR23: 17 | BS23: 2 | BT23: 58.4 | BU23: 42.1 | BV23: 33.6 | BW23: 21.8 | BX23: 16.6 | BY23: 13.6 | BZ23: 8.3 | CA23: 5 | CB23: 3 | CC23: 2.5 | CD23: 1.3 | CN23: 0.15 | CO23: 3.23 | CP23: 4.9
BR24: r Ratio | BS24: 5 | BT24: 77.2 | BU24: 55.2 | BV24: 43.8 | BW24: 28.2 | BX24: 21.3 | BY24: 17.4 | BZ24: 10.5 | CA24: 6.3 | CB24: 4 | CC24: 3.1 | CD24: 1.6 | CN24: 0.18 | CO24: 2.86 | CP24: 4.3
BR25: 0.4 | BS25: 10 | BT25: 88.2 | BU25: 63.6 | BV25: 50.7 | BW25: 32.8 | BX25: 24.9 | BY25: 20.4 | BZ25: 12.3 | CA25: 7.4 | CB25: 4 | CC25: 3.7 | CD25: 1.9 | CN25: 0.21 | CO25: 2.62 | CP25: 3.6
BS26: 15 | BT26: 95.3 | BU26: 69.1 | BV26: 55.3 | BW26: 35.8 | BX26: 27.3 | BY26: 22.3 | BZ26: 13.5 | CA26: 8.1 | CB26: 5 | CC26: =AVERAGE(CC25,CC27) -> 4 | CD26: =AVERAGE(CD25,CD27) -> 2.05 | CN26: 0.24 | CO26: 2.4 | CP26: 3.35
BS27: 20 | BT27: 100.8 | BU27: 73.3 | BV27: 58.7 | BW27: 38.2 | BX27: 29.1 | BY27: 23.8 | BZ27: 14.4 | CA27: 8.6 | CB27: 5 | CC27: 4.3 | CD27: 2.2 | CN27: 0.27 | CO27: 2.24 | CP27: 3.1
BS28: 25 | BT28: 105.2 | BU28: 76.7 | BV28: 61.6 | BW28: 40.1 | BX28: 30.5 | BY28: 25 | BZ28: 15.2 | CA28: 9.1 | CB28: 5 | CC28: =AVERAGE(CC27,CC29) -> 4.45 | CD28: =AVERAGE(CD27,CD29) -> 2.25 | CN28: 0.3 | CO28: 2.12 | CP28: 2.84
BS29: 30 | BT29: 108.9 | BU29: 79.7 | BV29: 64 | BW29: 41.7 | BX29: 31.8 | BY29: 26.1 | BZ29: 15.8 | CA29: 9.5 | CB29: 6 | CC29: 4.6 | CD29: 2.3 | CN29: 0.33 | CO29: 2.04 | CP29: 2.6
BS30: 50 | BT30: 120.1 | BU30: 88.4 | BV30: 71.3 | BW30: 46.7 | BX30: 35.6 | BY30: 29.2 | BZ30: 17.8 | CA30: 10.6 | CB30: 6 | CC30: 5.2 | CD30: 2.6 | CN30: 0.36 | CO30: 1.9 | CP30: 2.42
BS31: 100 | BT31: 137.2 | BU31: 101.9 | BV31: 82.6 | BW31: 54.3 | BX31: 41.6 | BY31: 34.2 | BZ31: 20.8 | CA31: 12.4 | CB31: 7 | CC31: 6 | CD31: 3 | CN31: 0.39 | CO31: 1.82 | CP31: 2.28
BS32: 200 | BT32: =(BT33-BT31)*0.25+BT31 -> 149.65 | BU32: =(BU33-BU31)*0.25+BU31 -> 111.825 | BV32: =(BV33-BV31)*0.25+BV31 -> 90.95 | BW32: =(BW33-BW31)*0.25+BW31 -> 60.05 | BX32: =(BX33-BX31)*0.25+BX31 -> 46.075 | BY32: =(BY33-BY31)*0.25+BY31 -> 37.9 | BZ32: =(BZ33-BZ31)*0.25+BZ31 -> 23.1 | CA32: =(CA33-CA31)*0.25+CA31 -> 13.775 | CB32: =(CB33-CB31)*0.25+CB31 -> 7.75 | CC32: =(CC33-CC31)*0.25+CC31 -> 6.625 | CD32: =(CD33-CD31)*0.25+CD31 -> 3.25 | CN32: 0.4 | CO32: 1.77
BS33: 500 | BT33: 187 | BU33: 141.6 | BV33: 116 | BW33: 77.3 | BX33: 59.5 | BY33: 49 | BZ33: 30 | CA33: 17.9 | CB33: 10 | CC33: 8.5 | CD33: 4 | CN33: 0.42 | CO33: 1.74 | CP33: 2.16
BS34: 1000 | BT34: 213.6 | BU34: 163.1 | BV34: 134.3 | BW34: 90 | BX34: 69.5 | BY34: 57.3 | BZ34: 35.2 | CA34: 20.9 | CB34: 12 | CC34: 10 | CD34: 4.7 | CN34: 0.45 | CO34: 1.68 | CP34: 2.03
BU35: =BU31/BU33 -> 0.7196327684 | BV35: 0.7120689655 | BW35: 0.702457956 | BX35: 0.6991596639 | BY35: 0.6979591837 | BZ35: 0.6933333333 | CA35: 0.6927374302 | CB35: 0.7 | CC35: 0.7058823529 | CD35: 0.75
BU36: =BU33/BU34 -> 0.8681790313 | BV36: =BV33/BV34 -> 0.8637379002 | BW36: 0.8588888889 | BX36: 0.8561151079 | BY36: 0.8551483421 | BZ36: 0.8522727273 | CA36: 0.8564593301 | CB36: 0.8333333333 | CC36: =CC33/CC34 -> 0.85 | CD36: =CD33/CD34 -> 0.8510638298
BR37: Rainfall | BS37: Return Period | BT37: Storm duration
BT38: 5 | BU38: 10 | BV38: 15 | BW38: 30 | BX38: 45 | BY38: 60 | BZ38: 120 | CA38: 240 | CB38: 480 | CC38: 600 | CD38: 1440
BR39: M5-60 | BS39: 1 | BT39: 34.9 | BU39: 25 | BV39: 19.9 | BW39: 13.2 | BX39: 10.3 | BY39: 8.6 | BZ39: 5.5 | CA39: 3.6 | CB39: 2.2 | CC39: 2 | CD39: 1.2
BR40: 14 | BS40: 2 | BT40: 41.2 | BU40: 30.7 | BV40: 25 | BW40: 16.9 | BX40: 13.3 | BY40: 11.1 | BZ40: 7.1 | CA40: 4.5 | CB40: 3 | CC40: 2.5 | CD40: 1.4
BR41: r Ratio | BS41: 5 | BT41: 54.8 | BU41: 40.5 | BV41: 32.9 | BW41: 22.1 | BX41: 17.2 | BY41: 14.3 | BZ41: 9.1 | CA41: 5.7 | CB41: 4 | CC41: 3.1 | CD41: 1.7
BR42: 0.3 | BS42: 10 | BT42: 62.3 | BU42: 46.3 | BV42: 37.8 | BW42: 25.6 | BX42: 20 | BY42: 16.7 | BZ42: 10.7 | CA42: 6.7 | CB42: 4 | CC42: 3.5 | CD42: 2
BS43: 15 | BT43: 67.1 | BU43: 50.1 | BV43: 41 | BW43: 27.9 | BX43: 21.8 | BY43: 18.3 | BZ43: 11.7 | CA43: 7.4 | CB43: 5 | CC43: =AVERAGE(CC42,CC44) -> 3.85 | CD43: =AVERAGE(CD42,CD44) -> 2.15
BS44: 20 | BT44: 70.8 | BU44: 53 | BV44: 43.4 | BW44: 29.6 | BX44: 23.2 | BY44: 19.4 | BZ44: 12.5 | CA44: 7.9 | CB44: 5 | CC44: 4.2 | CD44: 2.3
BS45: 25 | BT45: 73.7 | BU45: 55.3 | BV45: 45.4 | BW45: 31.1 | BX45: 24.4 | BY45: 20.4 | BZ45: 13.1 | CA45: 8.3 | CB45: 5 | CC45: =AVERAGE(CC44,CC46) -> 4.35 | CD45: =AVERAGE(CD44,CD46) -> 2.35
BS46: 30 | BT46: 76.3 | BU46: 57.3 | BV46: 47 | BW46: 32.3 | BX46: 25.4 | BY46: 21.3 | BZ46: 13.7 | CA46: 8.6 | CB46: 5 | CC46: 4.5 | CD46: 2.4
BS47: 50 | BT47: 83.8 | BU47: 63.2 | BV47: 52.1 | BW47: 36 | BX47: 28.3 | BY47: 23.8 | BZ47: 15.3 | CA47: 9.7 | CB47: 6 | CC47: 5 | CD47: 2.7
BS48: 100 | BT48: 95.3 | BU48: 72.3 | BV48: 59.8 | BW48: 41.7 | BX48: 32.9 | BY48: 27.7 | BZ48: 17.9 | CA48: 11.3 | CB48: 7 | CC48: 5.9 | CD48: 3.1
BH49: 0 | BI49: 0 | BJ49: =BH49 -> 0 | BS49: 200 | BT49: =(BT50-BT48)*0.25+BT48 -> 103.525 | BU49: =(BU50-BU48)*0.25+BU48 -> 78.9 | BV49: =(BV50-BV48)*0.25+BV48 -> 65.475 | BW49: =(BW50-BW48)*0.25+BW48 -> 45.925 | BX49: =(BX50-BX48)*0.25+BX48 -> 36.35 | BY49: =(BY50-BY48)*0.25+BY48 -> 30.625 | BZ49: =(BZ50-BZ48)*0.25+BZ48 -> 19.875 | CA49: =(CA50-CA48)*0.25+CA48 -> 12.575 | CB49: =(CB50-CB48)*0.25+CB48 -> 7.75 | CC49: =(CC50-CC48)*0.25+CC48 -> 6.5 | CD49: =(CD50-CD48)*0.25+CD48 -> 3.4
BH50: =H90 -> 5 | BI50: =W90 -> 3.071105556 | BJ50: 5 | BS50: 500 | BT50: 128.2 | BU50: 98.7 | BV50: 82.5 | BW50: 58.6 | BX50: 46.7 | BY50: 39.4 | BZ50: 25.8 | CA50: 16.4 | CB50: 10 | CC50: 8.3 | CD50: 4.3
BH51: 10 | BI51: 4.525877778 | BJ51: 10 | BS51: 1000 | BT51: 145.7 | BU51: 112.9 | BV51: 94.8 | BW51: 67.8 | BX51: 54.2 | BY51: 45.9 | BZ51: 30.1 | CA51: 19.2 | CB51: 12 | CC51: 10 | CD51: 5
BH52: 15 | BI52: 5.436816667 | BJ52: 15 | BU52: =BU48/BU50 -> 0.7325227964 | BV52: 0.7248484848 | BW52: 0.7116040956 | BX52: 0.704496788 | BY52: 0.7030456853 | BZ52: 0.6937984496 | CA52: 0.6890243902 | CB52: 0.7 | CC52: 0.7108433735 | CD52: 0.7209302326 | CI52: dims
B53: Your Logo / Company Details Here | G53: Project: | M53: =IF(M2="","",M2) ->  | AF53: By: | BH53: 30 | BI53: 7.051633333 | BJ53: 30 | BU53: =BU50/BU51 -> 0.8742249779 | BV53: =BV50/BV51 -> 0.8702531646 | BW53: 0.8643067847 | BX53: 0.8616236162 | BY53: 0.8583877996 | BZ53: 0.8571428571 | CA53: 0.8541666667 | CB53: 0.8333333333 | CC53: =CC50/CC51 -> 0.83 | CD53: =CD50/CD51 -> 0.86 | CI53: =MIN(CS89:CS189) -> 0 | CJ53: 5.4
G54: Calculation: | M54: =IF(M3="","",M3) -> Soakaway Design | BH54: 45 | BI54: 8.00345 | BJ54: 45 | BR54: Rainfall | BS54: Return Period | BT54: Storm duration | CI54: =MAX(CS89:CS189) -> 5 | CJ54: 5.4
AF55: Approved: | BH55: 60 | BI55: 8.669266667 | BJ55: 60 | BT55: 5 | BU55: 10 | BV55: 15 | BW55: 30 | BX55: 45 | BY55: 60 | BZ55: 120 | CA55: 240 | CB55: 480 | CC55: 600 | CD55: 1440
G56: Sheet Number: | M56: 2 | T56: Date: | BH56: 120 | BI56: 10.21453333 | BJ56: 120 | BR56: M5-60 | BS56: 1 | BT56: 41.9 | BU56: 29.9 | BV56: 23.9 | BW56: 16 | BX56: 12.6 | BY56: 10.6 | BZ56: 6.9 | CA56: 4.5 | CB56: 3 | CC56: 2.5 | CD56: 1.4 | CI56: -0.4 | CJ56: =MIN(CT89:CT189) -> 0
BH57: 240 | BI57: 11.48506667 | BJ57: 240 | BR57: 17 | BS57: 2 | BT57: 50.2 | BU57: 37.4 | BV57: 30.5 | BW57: 20.7 | BX57: 16.2 | BY57: 13.6 | BZ57: 8.7 | CA57: 5.6 | CB57: 4 | CC57: 3 | CD57: 1.7 | CH57: =IF(P65="Rectangular Trench/Pit",T67,T68)&"m" -> 6.5m | CI57: -0.4 | CJ57: =MAX(CT89:CT189) -> 5
H58: Ground Information | BH58: 480 | BI58: 11.94613333 | BJ58: 480 | BR58: r Ratio | BS58: 5 | BT58: 66.5 | BU58: 49.2 | BV58: 40 | BW58: 26.9 | BX58: 20.9 | BY58: 17.4 | BZ58: 11.1 | CA58: 7 | CB58: 4 | CC58: 3.7 | CD58: 2 | CH58: =T68&"m" -> 6.5m
BR59: 0.3 | BS59: 10 | BT59: 75.8 | BU59: 56.5 | BV59: 46.2 | BW59: 31.2 | BX59: 24.4 | BY59: 20.4 | BZ59: 13 | CA59: 8.1 | CB59: 5 | CC59: 4.3 | CD59: 2.4 | CH59: =T69&"m" -> 2m | CI59: =CI53+(CI54-CI53)/2 -> 2.5 | CJ59: =CJ53 -> 5.4
H60: Infiltration Rate | T60: 0.0104 | W60: m/hr | BS60: 15 | BT60: 81.8 | BU60: 61.3 | BV60: 50.2 | BW60: 34.1 | BX60: 26.7 | BY60: 22.3 | BZ60: 14.2 | CA60: 8.9 | CB60: 5 | CC60: =AVERAGE(CC59,CC61) -> 4.65 | CD60: =AVERAGE(CD59,CD61) -> 2.55 | CI60: =CI57 -> -0.4 | CJ60: =CJ56+(CJ57-CJ56)/2 -> 2.5
H61: Factor of Safety | T61: 1.5 | BS61: 20 | BT61: 86.4 | BU61: 64.9 | BV61: 53.3 | BW61: 36.3 | BX61: 28.5 | BY61: 23.8 | BZ61: 15.2 | CA61: 9.5 | CB61: 6 | CC61: 5 | CD61: 2.7
BS62: 25 | BT62: 90.1 | BU62: 67.9 | BV62: 55.9 | BW62: 38.1 | BX62: 29.9 | BY62: 25 | BZ62: 16 | CA62: 10 | CB62: 6 | CC62: =AVERAGE(CC61,CC63) -> 5.2 | CD62: =AVERAGE(CD61,CD63) -> 2.8 | CI62: =MIN(CN76:CN80) -> 0 | CJ62: 5.4
H63: Soakaway Design | BS63: 30 | BT63: 93.3 | BU63: 70.4 | BV63: 58 | BW63: 39.7 | BX63: 31.1 | BY63: 26.1 | BZ63: 16.7 | CA63: 10.4 | CB63: 6 | CC63: 5.4 | CD63: 2.9 | CI63: =MAX(CN76:CN80) -> 5 | CJ63: 5.4
BS64: 50 | BT64: 102.7 | BU64: 78 | BV64: 64.5 | BW64: 44.3 | BX64: 34.9 | BY64: 29.2 | BZ64: 18.7 | CA64: 11.7 | CB64: 7 | CC64: 6 | CD64: 3.2
H65: Soakaway Shape | P65: Manhole Within Pit | BS65: 100 | BT65: 117 | BU65: 89.5 | BV65: 74.6 | BW65: 51.6 | BX65: 40.7 | BY65: 34.2 | BZ65: 21.9 | CA65: 13.6 | CB65: 8 | CC65: 7 | CD65: 3.7 | CI65: 5.4 | CJ65: =MIN(CO76:CO80) -> 1.730769231
H66: Number of Soakaways | T66: 1 | BS66: 200 | BT66: =(BT67-BT65)*0.25+BT65 -> 127.375 | BU66: =(BU67-BU65)*0.25+BU65 -> 98 | BV66: =(BV67-BV65)*0.25+BV65 -> 82 | BW66: =(BW67-BW65)*0.25+BW65 -> 57 | BX66: =(BX67-BX65)*0.25+BX65 -> 45.075 | BY66: =(BY67-BY65)*0.25+BY65 -> 37.9 | BZ66: =(BZ67-BZ65)*0.25+BZ65 -> 24.325 | CA66: =(CA67-CA65)*0.25+CA65 -> 15.075 | CB66: =(CB67-CB65)*0.25+CB65 -> 9 | CC66: =(CC67-CC65)*0.25+CC65 -> 7.75 | CD66: =(CD67-CD65)*0.25+CD65 -> 4.15 | CI66: 5.4 | CJ66: =MAX(CO76:CO80) -> 3.269230769
H67: =IF(P65="Perforated Manhole","","Length") -> Length | T67: 6.5 | W67: =IF(P65="Rectangular Trench/Pit","m","") ->  | BS67: 500 | BT67: 158.5 | BU67: 123.5 | BV67: 104.2 | BW67: 73.2 | BX67: 58.2 | BY67: 49 | BZ67: 31.6 | CA67: 19.5 | CB67: 12 | CC67: 10 | CD67: 5.5
H68: =IF(P65="Perforated Manhole","Diameter","Width") -> Width | T68: 6.5 | W68: m | BS68: 1000 | BT68: 180.6 | BU68: 141.8 | BV68: 120.4 | BW68: 85.1 | BX68: 67.9 | BY68: 57.3 | BZ68: 37 | CA68: 22.8 | CB68: 13 | CC68: 12 | CD68: 6.5 | CI68: =CI62+(CI63-CI62)/2 -> 2.5 | CJ68: =CJ62 -> 5.4
H69: Effective Depth | T69: 2 | W69: m | BU69: =BU65/BU67 -> 0.7246963563 | BV69: 0.7159309021 | BW69: 0.7049180328 | BX69: 0.6993127148 | BY69: 0.6979591837 | BZ69: 0.6930379747 | CA69: 0.6974358974 | CB69: 0.6666666667 | CC69: 0.7 | CD69: 0.6727272727 | CI69: =CI66 -> 5.4 | CJ69: =CJ65+(CJ66-CJ65)/2 -> 2.5
H70: Void Percentage | T70: 30 | W70: % | BU70: =BU67/BU68 -> 0.8709449929 | BV70: =BV67/BV68 -> 0.865448505 | BW70: 0.8601645123 | BX70: 0.8571428571 | BY70: 0.8551483421 | BZ70: 0.8540540541 | CA70: 0.8552631579 | CB70: 0.9230769231 | CC70: =CC67/CC68 -> 0.8333333333 | CD70: =CD67/CD68 -> 0.8461538462
H71: Additional Outflow (If Any) | T71: 0 | W71: l/s | BR71: Rainfall | BS71: Return Period | BT71: Storm duration
H72: Base Infiltration Factor | T72: 0.5 | BT72: 5 | BU72: 10 | BV72: 15 | BW72: 30 | BX72: 45 | BY72: 60 | BZ72: 120 | CA72: 240 | CB72: 480 | CC72: 600 | CD72: 1440
H73: Manhole Diameter | T73: 1050 | W73: mm | BR73: M5-60 | BS73: 1 | BT73: 48.5 | BU73: 34.8 | BV73: 28 | BW73: 19 | BX73: 15 | BY73: 12.7 | BZ73: 8.3 | CA73: 5.4 | CB73: 3.3 | CC73: 3 | CD73: 1.7
BR74: 20 | BS74: 2 | BT74: 59.3 | BU74: 44.3 | BV74: 36.1 | BW74: 24.5 | BX74: 19.2 | BY74: 16.1 | BZ74: 10.4 | CA74: 6.6 | CB74: 4 | CC74: 3.6 | CD74: 2 | CI74: 2
G75: Soakaway Plan | T75: Soakaway Cross Section | BR75: r Ratio | BS75: 5 | BT75: 78.3 | BU75: 58 | BV75: 47 | BW75: 31.6 | BX75: 24.6 | BY75: 20.5 | BZ75: 13 | CA75: 8.2 | CB75: 5 | CC75: 4.3 | CD75: 2.4 | CI75: rec2 | CL75: master | CN75: master2
BR76: 0.3 | BS76: 10 | BT76: 89.5 | BU76: 66.9 | BV76: 54.6 | BW76: 36.9 | BX76: 28.8 | BY76: 24 | BZ76: 15.2 | CA76: 9.5 | CB76: 6 | CC76: 5 | CD76: 2.7 | CI76: 0 | CJ76: 0 | CL76: =IF(MAX($CI$76:$CJ$80)>5,CI76*(5/MAX($CI$76:$CJ$80)),CI76) -> 0 | CM76: =IF(MAX($CI$76:$CJ$80)>5,CJ76*(5/MAX($CI$76:$CJ$80)),CJ76) -> 0 | CN76: =IF(MAX($CL$76:$CL$80)=5,CL76,CL76+0.5*(5-MAX($CL$76:$CL$80))) -> 0 | CO76: =IF(MAX($CM$76:$CM$80)=5,CM76,CM76+0.5*(5-MAX($CM$76:$CM$80))) -> 1.730769231
BS77: 15 | BT77: 96.8 | BU77: 72.7 | BV77: 59.5 | BW77: 40.4 | BX77: 31.5 | BY77: 26.3 | BZ77: 16.7 | CA77: 10.4 | CB77: 6 | CC77: =AVERAGE(CC76,CC78) -> 5.4 | CD77: =AVERAGE(CD76,CD78) -> 2.9 | CI77: =T68 -> 6.5 | CJ77: 0 | CL77: =IF(MAX($CI$76:$CJ$80)>5,CI77*(5/MAX($CI$76:$CJ$80)),CI77) -> 5 | CM77: 0 | CN77: =IF(MAX($CL$76:$CL$80)=5,CL77,CL77+0.5*(5-MAX($CL$76:$CL$80))) -> 5 | CO77: =IF(MAX($CM$76:$CM$80)=5,CM77,CM77+0.5*(5-MAX($CM$76:$CM$80))) -> 1.730769231
BS78: 20 | BT78: 102.3 | BU78: 77.2 | BV78: 63.3 | BW78: 43 | BX78: 33.7 | BY78: 28.1 | BZ78: 17.8 | CA78: 11 | CB78: 7 | CC78: 5.8 | CD78: 3.1 | CI78: =T68 -> 6.5 | CJ78: =T69 -> 2 | CL78: 5 | CM78: 1.538461538 | CN78: 5 | CO78: 3.269230769
BS79: 25 | BT79: 106.8 | BU79: 80.8 | BV79: 66.4 | BW79: 45.2 | BX79: 35.4 | BY79: 29.6 | BZ79: 18.7 | CA79: 11.6 | CB79: 7 | CC79: =AVERAGE(CC78,CC80) -> 6 | CD79: =AVERAGE(CD78,CD80) -> 3.2 | CI79: 0 | CJ79: =CJ78 -> 2 | CL79: 0 | CM79: 1.538461538 | CN79: 0 | CO79: 3.269230769
BS80: 30 | BT80: 110.6 | BU80: 83.9 | BV80: 69 | BW80: 47.1 | BX80: 36.9 | BY80: 30.8 | BZ80: 19.5 | CA80: 12.1 | CB80: 7 | CC80: 6.2 | CD80: 3.3 | CI80: =CI76 -> 0 | CJ80: =CJ76 -> 0 | CL80: 0 | CM80: 0 | CN80: 0 | CO80: 1.730769231
BS81: 50 | BT81: 122 | BU81: 93.2 | BV81: 76.9 | BW81: 52.7 | BX81: 41.4 | BY81: 34.6 | BZ81: 21.9 | CA81: 13.5 | CB81: 8 | CC81: 6.9 | CD81: 3.7
BN82: =T66*(2*T67*T69*0.5+2*T68*T69*0.5+T67*T68*T72) -> 47.125 | BO82: =IF(P65="Perforated Manhole",BN83,BN82) -> 47.125 | BS82: 100 | BT82: 139.4 | BU82: 107.6 | BV82: 89.2 | BW82: 61.5 | BX82: 48.4 | BY82: 40.5 | BZ82: 25.6 | CA82: 15.6 | CB82: 9 | CC82: 8 | CD82: 4.2
BN83: =T66*((PI()*((T68/2)^2))*T72+0.5*T69*0.5*(2*PI()*(T68/2))) -> 26.80171233 | BS83: 200 | BT83: =(BT84-BT82)*0.25+BT82 -> 152.05 | BU83: =(BU84-BU82)*0.25+BU82 -> 118.2 | BV83: =(BV84-BV82)*0.25+BV82 -> 98.375 | BW83: =(BW84-BW82)*0.25+BW82 -> 68.125 | BX83: =(BX84-BX82)*0.25+BX82 -> 53.725 | BY83: =(BY84-BY82)*0.25+BY82 -> 44.975 | BZ83: =(BZ84-BZ82)*0.25+BZ82 -> 28.425 | CA83: =(CA84-CA82)*0.25+CA82 -> 17.225 | CB83: =(CB84-CB82)*0.25+CB82 -> 10 | CC83: =(CC84-CC82)*0.25+CC82 -> 8.75 | CD83: =(CD84-CD82)*0.25+CD82 -> 4.65
BS84: 500 | BT84: 190 | BU84: 150 | BV84: 125.9 | BW84: 88 | BX84: 69.7 | BY84: 58.4 | BZ84: 36.9 | CA84: 22.1 | CB84: 13 | CC84: 11 | CD84: 6
BS85: 1000 | BT85: 217.1 | BU85: 173.1 | BV85: 145.9 | BW85: 102.7 | BX85: 81.5 | BY85: 68.4 | BZ85: 43.1 | CA85: 25.7 | CB85: 15 | CC85: 13 | CD85: 7
BU86: =BU82/BU84 -> 0.7173333333 | BV86: 0.7084988086 | BW86: 0.6988636364 | BX86: 0.6944045911 | BY86: 0.6934931507 | BZ86: 0.6937669377 | CA86: 0.7058823529 | CB86: 0.6923076923 | CC86: 0.7272727273 | CD86: 0.7
H87: Results Table | BN87: 0 | BO87: =P103 -> 12.33266667 | BU87: =BU84/BU85 -> 0.8665511265 | BV87: =BV84/BV85 -> 0.8629198081 | BW87: 0.8568646543 | BX87: 0.8552147239 | BY87: 0.8538011696 | BZ87: 0.8561484919 | CA87: 0.859922179 | CB87: 0.8666666667 | CC87: =CC84/CC85 -> 0.8461538462 | CD87: =CD84/CD85 -> 0.8571428571 | CI87: 1 | CM87: rec 1 | CW87: 1 | DA87: rec 1
BN88: =VLOOKUP(BO87,BI49:BJ58,2,FALSE) ->  | BO88: =BO87 -> 12.33266667 | BR88: Rainfall | BS88: Return Period | BT88: Storm duration | CI88: cyl | CM88: x | CN88: y | CO88: masterx | CP88: mastery | CQ88: master2 | CS88: master3 | CW88: cyl | DA88: x | DB88: y | DC88: masterx | DD88: mastery | DE88: master2 | DG88: master3
H89: Storm Duration (Mins) | P89: Inflow (l) | S89: Outflow (l) | W89: Storage Required (m³) | BT89: 5 | BU89: 10 | BV89: 15 | BW89: 30 | BX89: 45 | BY89: 60 | BZ89: 120 | CA89: 240 | CB89: 480 | CC89: 600 | CD89: 1440 | CI89: 1 | CJ89: =CI89%*2*PI() -> 0.06283185307 | CK89: =($T$67/2)*SIN(CJ89)+T$67/2 -> 3.454069188 | CL89: =($T$67/2)*COS(CJ89)+T$67/2 -> 6.493586867 | CM89: 0 | CN89: 0 | CO89: =IF(P$65="Perforated Manhole",CK89,CM89) -> 0 | CP89: =IF(P$65="Perforated Manhole",CL89,CN89) -> 0 | CQ89: =IF(MAX($CO$89:$CP$189)>5,CO89*(5/MAX($CO$89:$CP$189)),CO89) -> 0 | CR89: =IF(MAX($CO$89:$CP$189)>5,CP89*(5/MAX($CO$89:$CP$189)),CP89) -> 0 | CS89: =IF(MAX($CQ$89:$CQ$189)=5,CQ89,CQ89+0.5*(5-MAX($CQ$89:$CQ$189))) -> 0 | CT89: =IF(MAX($CR$89:$CR$189)=5,CR89,CR89+0.5*(5-MAX($CR$89:$CR$189))) -> 0 | CW89: 1 | CX89: =CW89%*2*PI() -> 0.06283185307 | CY89: =($T$73*0.001/2)*SIN(CX89)+T$73*0.001/2 -> 0.5579650228 | CZ89: =($T$73*0.001/2)*COS(CX89)+T$73*0.001/2 -> 1.048964032 | DA89: 0 | DB89: 0 | DC89: =IF(P$65="Manhole Within Pit",CY89,NA()) -> 0.5579650228 | DD89: =IF(P$65="Manhole Within Pit",CZ89,NA()) -> 1.048964032 | DE89: =IF(MAX($CO$89:$CP$189)>5,DC89*(5/MAX($CO$89:$CP$189)),DC89) -> 0.4292038637 | DF89: =IF(MAX($CO$89:$CP$189)>5,DD89*(5/MAX($CO$89:$CP$189)),DD89) -> 0.8068954096 | DG89: =IF(MAX($CQ$89:$CQ$189)=5,DE89,DE89+0.5*(5-MAX($CQ$89:$CQ$189)))-$DF$188/2+($CS$90-$CS$89)/2 -> 2.52535771 | DH89: =IF(MAX($CR$89:$CR$189)=5,DF89,DF89+0.5*(5-MAX($CR$89:$CR$189)))-$DF$188/2+($CT$91-$CT$90)/2 -> 2.903049256
H90: 5 | P90: =((HLOOKUP(H90,INDIRECT(BP$22),BO$20,FALSE))*Y$8*Y$9*H90*(1+$Y$12%))/60 -> 3098.333333 | S90: =$T$71*H90*60+((($T$60/60)*$BO$82)/$T$61)*1000*H90 -> 27.22777778 | W90: =MAX((P90-S90)/1000,0) -> 3.071105556 | BR90: M5-60 | BS90: 1 | BT90: 40.2 | BU90: 27.8 | BV90: 21.7 | BW90: 13.8 | BX90: 10.5 | BY90: 8.6 | BZ90: 5.3 | CA90: 3.2 | CB90: 2 | CC90: 1.6 | CD90: 0.9 | CI90: 2 | CJ90: 0.1256637061 | CK90: =($T$67/2)*SIN(CJ90)+T$67/2 -> 3.657333009 | CL90: =($T$67/2)*COS(CJ90)+T$67/2 -> 6.474372779 | CM90: =T68 -> 6.5 | CN90: 0 | CO90: =IF(P$65="Perforated Manhole",CK90,CM90) -> 6.5 | CP90: =IF(P$65="Perforated Manhole",CL90,CN90) -> 0 | CQ90: =IF(MAX($CO$89:$CP$189)>5,CO90*(5/MAX($CO$89:$CP$189)),CO90) -> 5 | CR90: 0 | CS90: =IF(MAX($CQ$89:$CQ$189)=5,CQ90,CQ90+0.5*(5-MAX($CQ$89:$CQ$189))) -> 5 | CT90: =IF(MAX($CR$89:$CR$189)=5,CR90,CR90+0.5*(5-MAX($CR$89:$CR$189))) -> 0 | CW90: 2 | CX90: =CW90%*2*PI() -> 0.1256637061 | CY90: =($T$73*0.001/2)*SIN(CX90)+T$73*0.001/2 -> 0.5907999476 | CZ90: =($T$73*0.001/2)*COS(CX90)+T$73*0.001/2 -> 1.045860218 | DA90: =AH68 -> 0 | DB90: 0 | DC90: =IF(P$65="Manhole Within Pit",CY90,NA()) -> 0.5907999476 | DD90: =IF(P$65="Manhole Within Pit",CZ90,NA()) -> 1.045860218 | DE90: =IF(MAX($CO$89:$CP$189)>5,DC90*(5/MAX($CO$89:$CP$189)),DC90) -> 0.4544614982 | DF90: =IF(MAX($CO$89:$CP$189)>5,DD90*(5/MAX($CO$89:$CP$189)),DD90) -> 0.8045078601 | DG90: =IF(MAX($CQ$89:$CQ$189)=5,DE90,DE90+0.5*(5-MAX($CQ$89:$CQ$189)))-$DF$188/2+($CS$90-$CS$89)/2 -> 2.550615344 | DH90: =IF(MAX($CR$89:$CR$189)=5,DF90,DF90+0.5*(5-MAX($CR$89:$CR$189)))-$DF$188/2+($CT$91-$CT$90)/2 -> 2.900661706
H91: 10 | P91: 4580.333333 | S91: 54.45555556 | W91: =MAX((P91-S91)/1000,0) -> 4.525877778 | BR91: 14 | BS91: 2 | BT91: 47.9 | BU91: 34.5 | BV91: 27.5 | BW91: 17.8 | BX91: 13.5 | BY91: 11.1 | BZ91: 6.8 | CA91: 4.1 | CB91: 2 | CC91: 2.1 | CD91: 1.1 | CI91: 3 | CJ91: 0.1884955592 | CK91: 3.858989272 | CL91: 6.442433565 | CM91: =CM90 -> 6.5 | CN91: =T67 -> 6.5 | CO91: 6.5 | CP91: 6.5 | CQ91: 5 | CR91: 5 | CS91: 5 | CT91: 5 | CW91: 3 | CX91: 0.1884955592 | CY91: 0.6233751902 | CZ91: 1.040700807 | DA91: =DA90 -> 0 | DB91: =AH67 -> 0 | DC91: 0.6233751902 | DD91: 1.040700807 | DE91: 0.479519377 | DF91: 0.800539082 | DG91: 2.575673223 | DH91: 2.896692928
H92: 15 | P92: 5518.5 | S92: 81.68333333 | W92: 5.436816667 | BR92: r Ratio | BS92: 5 | BT92: 63.5 | BU92: 45.5 | BV92: 36.1 | BW92: 23.2 | BX92: 17.6 | BY92: 14.3 | BZ92: 8.7 | CA92: 5.2 | CB92: 3 | CC92: 2.6 | CD92: 1.3 | CI92: 4 | CJ92: 0.2513274123 | CK92: 4.058242133 | CL92: 6.397895274 | CM92: =CM89 -> 0 | CN92: =T67 -> 6.5 | CO92: 0 | CP92: 6.5 | CQ92: 0 | CR92: 5 | CS92: 0 | CT92: 5 | CW92: 4 | CX92: 0.2513274123 | CY92: 0.6555621908 | CZ92: 1.03350616 | DA92: =DA89 -> 0 | DB92: =AH67 -> 0 | DC92: 0.6555621908 | DD92: 1.03350616 | DE92: 0.5042786083 | DF92: 0.7950047381 | DG92: 2.600432454 | DH92: 2.891158584
H93: 30 | P93: 7215 | S93: 163.3666667 | W93: 7.051633333 | BR93: 0.4 | BS93: 10 | BT93: 72.4 | BU93: 52.1 | BV93: 41.5 | BW93: 26.9 | BX93: 20.4 | BY93: 16.7 | BZ93: 10.1 | CA93: 6.1 | CB93: 4 | CC93: 3.1 | CD93: 1.6 | CI93: 5 | CJ93: 0.3141592654 | CK93: 4.254305232 | CL93: 6.340933678 | CM93: =CM89 -> 0 | CN93: =CN89 -> 0 | CO93: 0 | CP93: 0 | CQ93: 0 | CR93: 0 | CS93: 0 | CT93: 0 | CW93: 5 | CX93: 0.3141592654 | CY93: 0.687233922 | CZ93: 1.024304671 | DA93: =DA89 -> 0 | DB93: =DB89 -> 0 | DC93: 0.687233922 | DD93: 1.024304671 | DE93: 0.5286414785 | DF93: 0.78792667 | DG93: 2.624795325 | DH93: 2.884080516
H94: 45 | P94: 8248.5 | S94: 245.05 | W94: 8.00345 | BS94: 15 | BT94: 78.1 | BU94: 56.4 | BV94: 45.1 | BW94: 29.3 | BX94: 22.3 | BY94: 18.3 | BZ94: 11.1 | CA94: 6.7 | CB94: 4 | CC94: =AVERAGE(CC93,CC95) -> 3.35 | CD94: =AVERAGE(CD93,CD95) -> 1.7 | CI94: 6 | CJ94: 0.3769911184 | CK94: 4.446404796 | CL94: 6.271773579 | CO94: 0 | CP94: 0 | CQ94: 0 | CR94: 0 | CS94: 0 | CT94: 0 | CW94: 6 | CX94: 0.3769911184 | CY94: 0.7182653902 | CZ94: 1.013132655 | DC94: 0.7182653902 | DD94: 1.013132655 | DE94: 0.5525118386 | DF94: 0.7793328116 | DG94: 2.648665685 | DH94: 2.875486658
H95: 60 | P95: 8996 | S95: 326.7333333 | W95: 8.669266667 | BS95: 20 | BT95: 82.4 | BU95: 59.7 | BV95: 47.8 | BW95: 31.2 | BX95: 23.7 | BY95: 19.4 | BZ95: 11.8 | CA95: 7.1 | CB95: 5 | CC95: 3.6 | CD95: 1.8 | CI95: 7 | CJ95: 0.4398229715 | CK95: 4.633782698 | CL95: 6.190687921 | CO95: 0 | CP95: 0 | CQ95: 0 | CR95: 0 | CS95: 0 | CT95: 0 | CW95: 7 | CX95: 0.4398229715 | CY95: 0.7485341281 | CZ95: 1.000034203 | DC95: 0.7485341281 | DD95: 1.000034203 | DE95: 0.5757954831 | DF95: 0.7692570789 | DG95: 2.671949329 | DH95: 2.865410925
H96: 120 | P96: 10868 | S96: 653.4666667 | W96: 10.21453333 | BS96: 25 | BT96: 85.9 | BU96: 62.4 | BV96: 50 | BW96: 32.7 | BX96: 24.9 | BY96: 20.4 | BZ96: 12.5 | CA96: 7.5 | CB96: 5 | CC96: =AVERAGE(CC95,CC97) -> 3.7 | CD96: =AVERAGE(CD95,CD97) -> 1.9 | CI96: 8 | CJ96: 0.5026548246 | CK96: 4.815699441 | CL96: 6.09799671 | CO96: 0 | CP96: 0 | CQ96: 0 | CR96: 0 | CS96: 0 | CT96: 0 | CW96: 8 | CX96: 0.5026548246 | CY96: 0.7779206789 | CZ96: 0.985061007 | DC96: 0.7779206789 | DD96: 0.985061007 | DE96: 0.5984005222 | DF96: 0.7577392362 | DG96: 2.694554368 | DH96: 2.853893082
H97: 240 | P97: 12792 | S97: 1306.933333 | W97: =MAX((P97-S97)/1000,0) -> 11.48506667 | BS97: 30 | BT97: 88.9 | BU97: 64.7 | BV97: 51.9 | BW97: 34 | BX97: 25.9 | BY97: 21.3 | BZ97: 13 | CA97: 7.8 | CB97: 5 | CC97: 3.8 | CD97: 2 | CI97: 9 | CJ97: 0.5654866776 | CK97: 4.991437084 | CL97: 5.994065758 | CO97: 0 | CP97: 0 | CQ97: 0 | CR97: 0 | CS97: 0 | CT97: 0 | CW97: 9 | CX97: 0.5654866776 | CY97: 0.8063090674 | CZ97: 0.9682721609 | DC97: 0.8063090674 | DD97: 0.9682721609 | DE97: 0.6202377441 | DF97: 0.7448247391 | DG97: 2.71639159 | DH97: 2.840978585
H98: 480 | P98: 14560 | S98: 2613.866667 | W98: 11.94613333 | BS98: 50 | BT98: 97.9 | BU98: 71.5 | BV98: 57.6 | BW98: 37.9 | BX98: 29 | BY98: 23.8 | BZ98: 14.6 | CA98: 8.8 | CB98: 5 | CC98: 4.3 | CD98: 2.2 | CI98: 10 | CJ98: 0.6283185307 | CK98: 5.16030207 | CL98: 5.879305232 | CO98: 0 | CP98: 0 | CQ98: 0 | CR98: 0 | CS98: 0 | CT98: 0 | CW98: 10 | CX98: 0.6283185307 | CY98: 0.8335872575 | CZ98: 0.949733922 | DC98: 0.8335872575 | DD98: 0.949733922 | DE98: 0.6412209673 | DF98: 0.7305645554 | DG98: 2.737374813 | DH98: 2.826718402
H99: 600 | P99: 15600 | S99: 3267.333333 | W99: =MAX((P99-S99)/1000,0) -> 12.33266667 | BS99: 100 | BT99: 111.4 | BU99: 82 | BV99: 66.3 | BW99: 43.9 | BX99: 33.7 | BY99: 27.7 | BZ99: 17 | CA99: 10.2 | CB99: 6 | CC99: 5 | CD99: 2.6 | CI99: 11 | CJ99: 0.6911503838 | CK99: 5.321627967 | CL99: 5.754168039 | CO99: 0 | CP99: 0 | CQ99: 0 | CR99: 0 | CS99: 0 | CT99: 0 | CW99: 11 | CX99: 0.6911503838 | CY99: 0.8596475946 | CZ99: 0.9295194525 | DC99: 0.8596475946 | DD99: 0.9295194525 | DE99: 0.6612673805 | DF99: 0.7150149634 | DG99: 2.757421227 | DH99: 2.81116881
H100: 1440 | P100: 18720 | S100: 7841.6 | W100: 10.8784 | AF100: =IF(OR(W100<W99,W100=0),"Acceptable","Too Small") -> Acceptable | BS100: 200 | BT100: =(BT101-BT99)*0.25+BT99 -> 121.225 | BU100: =(BU101-BU99)*0.25+BU99 -> 89.65 | BV100: =(BV101-BV99)*0.25+BV99 -> 72.725 | BW100: =(BW101-BW99)*0.25+BW99 -> 48.4 | BX100: =(BX101-BX99)*0.25+BX99 -> 37.225 | BY100: =(BY101-BY99)*0.25+BY99 -> 30.625 | BZ100: =(BZ101-BZ99)*0.25+BZ99 -> 18.85 | CA100: =(CA101-CA99)*0.25+CA99 -> 11.35 | CB100: =(CB101-CB99)*0.25+CB99 -> 6.5 | CC100: =(CC101-CC99)*0.25+CC99 -> 5.5 | CD100: =(CD101-CD99)*0.25+CD99 -> 2.825 | CI100: 12 | CJ100: 0.7539822369 | CK100: 5.474778094 | CL100: 5.619148039 | CO100: 0 | CP100: 0 | CQ100: 0 | CR100: 0 | CS100: 0 | CT100: 0 | CW100: 12 | CX100: 0.7539822369 | CY100: 0.8843872306 | CZ100: 0.9077085294 | DC100: 0.8843872306 | DD100: 0.9077085294 | DE100: 0.6802978697 | DF100: 0.6982373303 | DG100: 2.776451716 | DH100: 2.794391176
BS101: 500 | BT101: 150.7 | BU101: 112.6 | BV101: 92 | BW101: 61.9 | BX101: 47.8 | BY101: 39.4 | BZ101: 24.4 | CA101: 14.8 | CB101: 8 | CC101: 7 | CD101: 3.5 | CI101: 13 | CJ101: 0.8168140899 | CK101: 5.619148039 | CL101: 5.474778094 | CO101: 0 | CP101: 0 | CQ101: 0 | CR101: 0 | CS101: 0 | CT101: 0 | CW101: 13 | CX101: 0.8168140899 | CY101: 0.9077085294 | CZ101: 0.8843872306 | DC101: 0.9077085294 | DD101: 0.8843872306 | DE101: 0.6982373303 | DF101: 0.6802978697 | DG101: 2.794391176 | DH101: 2.776451716
BS102: 1000 | BT102: 171.6 | BU102: 129 | BV102: 106 | BW102: 71.8 | BX102: 55.5 | BY102: 45.9 | BZ102: 28.5 | CA102: 17.3 | CB102: 10 | CC102: 9 | CD102: 4.3 | CI102: 14 | CJ102: 0.879645943 | CK102: 5.754168039 | CL102: 5.321627967 | CO102: 0 | CP102: 0 | CQ102: 0 | CR102: 0 | CS102: 0 | CT102: 0 | CW102: 14 | CX102: 0.879645943 | CY102: 0.9295194525 | CZ102: 0.8596475946 | DC102: 0.9295194525 | DD102: 0.8596475946 | DE102: 0.7150149634 | DF102: 0.6612673805 | DG102: 2.81116881 | DH102: 2.757421227
H103: Storage Area Required | P103: =MAX(W90:AD100) -> 12.33266667 | S103: m³ | BU103: =BU99/BU101 -> 0.7282415631 | BV103: 0.7206521739 | BW103: 0.7092084006 | BX103: 0.7050209205 | BY103: 0.7030456853 | BZ103: 0.6967213115 | CA103: 0.6891891892 | CB103: 0.75 | CC103: 0.7142857143 | CD103: 0.7428571429 | CI103: 15 | CJ103: 0.9424777961 | CK103: 5.879305232 | CL103: 5.16030207 | CO103: 0 | CP103: 0 | CQ103: 0 | CR103: 0 | CS103: 0 | CT103: 0 | CW103: 15 | CX103: 0.9424777961 | CY103: 0.949733922 | CZ103: 0.8335872575 | DC103: 0.949733922 | DD103: 0.8335872575 | DE103: 0.7305645554 | DF103: 0.6412209673 | DG103: 2.826718402 | DH103: 2.737374813
H104: Storage Area Provided | P104: =IF(P65="Rectangular Trench/Pit",T66*T67*T68*T69*T70%,IF(P65="Perforated Manhole",T66*T69*(PI()*((T68/2)^2))*T70%,T69*(PI()*(((T73*0.001)/2)^2))*(95%-T70%)+T66*T67*T68*T69*T70%)) -> 26.47567192 | S104: m³ | AF104: =IF(P103<P104,"Acceptable","Too Small") -> Acceptable | BU104: =BU101/BU102 -> 0.8728682171 | BV104: =BV101/BV102 -> 0.8679245283 | BW104: 0.8621169916 | BX104: 0.8612612613 | BY104: 0.8583877996 | BZ104: 0.8561403509 | CA104: 0.8554913295 | CB104: 0.8 | CC104: =CC101/CC102 -> 0.7777777778 | CD104: =CD101/CD102 -> 0.8139534884 | CI104: 16 | CJ104: 1.005309649 | CK104: 5.994065758 | CL104: 4.991437084 | CO104: 0 | CP104: 0 | CQ104: 0 | CR104: 0 | CS104: 0 | CT104: 0 | CW104: 16 | CX104: 1.005309649 | CY104: 0.9682721609 | CZ104: 0.8063090674 | DC104: 0.9682721609 | DD104: 0.8063090674 | DE104: 0.7448247391 | DF104: 0.6202377441 | DG104: 2.840978585 | DH104: 2.71639159
BR105: Rainfall | BS105: Return Period | BT105: Storm duration | CI105: 17 | CJ105: 1.068141502 | CK105: 6.09799671 | CL105: 4.815699441 | CO105: 0 | CP105: 0 | CQ105: 0 | CR105: 0 | CS105: 0 | CT105: 0 | CW105: 17 | CX105: 1.068141502 | CY105: 0.985061007 | CZ105: 0.7779206789 | DC105: 0.985061007 | DD105: 0.7779206789 | DE105: 0.7577392362 | DF105: 0.5984005222 | DG105: 2.853893082 | DH105: 2.694554368
H106: Time for Emptying 50% | Q106: =P103/2/(S95/1000) -> 18.87267905 | S106: hours | AF106: =IF(Q106<24,"Acceptable","Too Slow") -> Acceptable | BT106: 5 | BU106: 10 | BV106: 15 | BW106: 30 | BX106: 45 | BY106: 60 | BZ106: 120 | CA106: 240 | CB106: 480 | CC106: 600 | CD106: 1440 | CI106: 18 | CJ106: 1.130973355 | CK106: 6.190687921 | CL106: 4.633782698 | CO106: 0 | CP106: 0 | CQ106: 0 | CR106: 0 | CS106: 0 | CT106: 0 | CW106: 18 | CX106: 1.130973355 | CY106: 1.000034203 | CZ106: 0.7485341281 | DC106: 1.000034203 | DD106: 0.7485341281 | DE106: 0.7692570789 | DF106: 0.5757954831 | DG106: 2.865410925 | DH106: 2.671949329
BR107: M5-60 | BS107: 1 | BT107: 34.4 | BU107: 25.7 | BV107: 21.2 | BW107: 15 | BX107: 12.2 | BY107: 10.6 | BZ107: 7.5 | CA107: 5.3 | CB107: 4 | CC107: 3.3 | CD107: 2 | CI107: 19 | CJ107: 1.193805208 | CK107: 6.271773579 | CL107: 4.446404796 | CO107: 0 | CP107: 0 | CQ107: 0 | CR107: 0 | CS107: 0 | CT107: 0 | CW107: 19 | CX107: 1.193805208 | CY107: 1.013132655 | CZ107: 0.7182653902 | DC107: 1.013132655 | DD107: 0.7182653902 | DE107: 0.7793328116 | DF107: 0.5525118386 | DG107: 2.875486658 | DH107: 2.648665685
BR108: 17 | BS108: 2 | BT108: 40.6 | BU108: 31.7 | BV108: 26.7 | BW108: 19.3 | BX108: 15.8 | BY108: 13.6 | BZ108: 9.4 | CA108: 6.5 | CB108: 4 | CC108: 3.9 | CD108: 2.3 | CI108: 20 | CJ108: 1.256637061 | CK108: 6.340933678 | CL108: 4.254305232 | CO108: 0 | CP108: 0 | CQ108: 0 | CR108: 0 | CS108: 0 | CT108: 0 | CW108: 20 | CX108: 1.256637061 | CY108: 1.024304671 | CZ108: 0.687233922 | DC108: 1.024304671 | DD108: 0.687233922 | DE108: 0.78792667 | DF108: 0.5286414785 | DG108: 2.884080516 | DH108: 2.624795325
BR109: r Ratio | BS109: 5 | BT109: 54 | BU109: 41.8 | BV109: 35.1 | BW109: 25.1 | BX109: 20.3 | BY109: 17.4 | BZ109: 11.9 | CA109: 8 | CB109: 5.3 | CC109: 4.7 | CD109: 2.8 | CI109: 21 | CJ109: 1.319468915 | CK109: 6.397895274 | CL109: 4.058242133 | CO109: 0 | CP109: 0 | CQ109: 0 | CR109: 0 | CS109: 0 | CT109: 0 | CW109: 21 | CX109: 1.319468915 | CY109: 1.03350616 | CZ109: 0.6555621908 | DC109: 1.03350616 | DD109: 0.6555621908 | DE109: 0.7950047381 | DF109: 0.5042786083 | DG109: 2.891158584 | DH109: 2.600432454
BR110: 0.2 | BS110: 10 | BT110: 61.3 | BU110: 47.9 | BV110: 40.4 | BW110: 29.1 | BX110: 23.7 | BY110: 20.4 | BZ110: 13.9 | CA110: 9.3 | CB110: 6 | CC110: 5.4 | CD110: 3.1 | CI110: 22 | CJ110: 1.382300768 | CK110: 6.442433565 | CL110: 3.858989272 | CO110: 0 | CP110: 0 | CQ110: 0 | CR110: 0 | CS110: 0 | CT110: 0 | CW110: 22 | CX110: 1.382300768 | CY110: 1.040700807 | CZ110: 0.6233751902 | DC110: 1.040700807 | DD110: 0.6233751902 | DE110: 0.800539082 | DF110: 0.479519377 | DG110: 2.896692928 | DH110: 2.575673223
BS111: 15 | BT111: 66.1 | BU111: 51.8 | BV111: 43.8 | BW111: 31.8 | BX111: 25.9 | BY111: 22.3 | BZ111: 15.3 | CA111: 10.2 | CB111: 7 | CC111: =AVERAGE(CC110,CC112) -> 5.8 | CD111: =AVERAGE(CD110,CD112) -> 3.3 | CI111: 23 | CJ111: 1.445132621 | CK111: 6.474372779 | CL111: 3.657333009 | CO111: 0 | CP111: 0 | CQ111: 0 | CR111: 0 | CS111: 0 | CT111: 0 | CW111: 23 | CX111: 1.445132621 | CY111: 1.045860218 | CZ111: 0.5907999476 | DC111: 1.045860218 | DD111: 0.5907999476 | DE111: 0.8045078601 | DF111: 0.4544614982 | DG111: 2.900661706 | DH111: 2.550615344
BS112: 20 | BT112: 69.7 | BU112: 54.8 | BV112: 46.5 | BW112: 33.8 | BX112: 27.6 | BY112: 23.8 | BZ112: 16.3 | CA112: 10.8 | CB112: 7 | CC112: 6.2 | CD112: 3.5 | CI112: 24 | CJ112: 1.507964474 | CK112: 6.493586867 | CL112: 3.454069188 | CO112: 0 | CP112: 0 | CQ112: 0 | CR112: 0 | CS112: 0 | CT112: 0 | CW112: 24 | CX112: 1.507964474 | CY112: 1.048964032 | CZ112: 0.5579650228 | DC112: 1.048964032 | DD112: 0.5579650228 | DE112: 0.8068954096 | DF112: 0.4292038637 | DG112: 2.903049256 | DH112: 2.52535771
BS113: 25 | BT113: 72.6 | BU113: 57.2 | BV113: 48.6 | BW113: 35.5 | BX113: 29 | BY113: 25 | BZ113: 17.1 | CA113: 11.4 | CB113: 7 | CC113: =AVERAGE(CC112,CC114) -> 6.4 | CD113: =AVERAGE(CD112,CD114) -> 3.6 | CI113: 25 | CJ113: 1.570796327 | CK113: 6.5 | CL113: 3.25 | CO113: 0 | CP113: 0 | CQ113: 0 | CR113: 0 | CS113: 0 | CT113: 0 | CW113: 25 | CX113: 1.570796327 | CY113: 1.05 | CZ113: 0.525 | DC113: 1.05 | DD113: 0.525 | DE113: 0.8076923077 | DF113: 0.4038461538 | DG113: 2.903846154 | DH113: 2.5
BS114: 30 | BT114: 75.1 | BU114: 59.3 | BV114: 50.4 | BW114: 36.9 | BX114: 30.2 | BY114: 26.1 | BZ114: 17.9 | CA114: 11.8 | CB114: 8 | CC114: 6.6 | CD114: 3.7 | CI114: 26 | CJ114: 1.63362818 | CK114: 6.493586867 | CL114: 3.045930812 | CO114: 0 | CP114: 0 | CQ114: 0 | CR114: 0 | CS114: 0 | CT114: 0 | CW114: 26 | CX114: 1.63362818 | CY114: 1.048964032 | CZ114: 0.4920349772 | DC114: 1.048964032 | DD114: 0.4920349772 | DE114: 0.8068954096 | DF114: 0.378488444 | DG114: 2.903049256 | DH114: 2.47464229
BS115: 50 | BT115: 82.5 | BU115: 65.5 | BV115: 55.9 | BW115: 41.2 | BX115: 33.8 | BY115: 29.2 | BZ115: 20.1 | CA115: 13.2 | CB115: 9 | CC115: 7.4 | CD115: 4.1 | CI115: 27 | CJ115: 1.696460033 | CK115: 6.474372779 | CL115: 2.842666991 | CO115: 0 | CP115: 0 | CQ115: 0 | CR115: 0 | CS115: 0 | CT115: 0 | CW115: 27 | CX115: 1.696460033 | CY115: 1.045860218 | CZ115: 0.4592000524 | DC115: 1.045860218 | DD115: 0.4592000524 | DE115: 0.8045078601 | DF115: 0.3532308095 | DG115: 2.900661706 | DH115: 2.449384656
BS116: 100 | BT116: 93.8 | BU116: 74.9 | BV116: 64.3 | BW116: 47.9 | BX116: 39.5 | BY116: 34.2 | BZ116: 23.5 | CA116: 15.4 | CB116: 10 | CC116: 8.5 | CD116: 4.6 | CI116: 28 | CJ116: 1.759291886 | CK116: 6.442433565 | CL116: 2.641010728 | CO116: 0 | CP116: 0 | CQ116: 0 | CR116: 0 | CS116: 0 | CT116: 0 | CW116: 28 | CX116: 1.759291886 | CY116: 1.040700807 | CZ116: 0.4266248098 | DC116: 1.040700807 | DD116: 0.4266248098 | DE116: 0.800539082 | DF116: 0.3281729306 | DG116: 2.896692928 | DH116: 2.424326777
BS117: 200 | BT117: =(BT118-BT116)*0.25+BT116 -> 101.9 | BU117: =(BU118-BU116)*0.25+BU116 -> 81.775 | BV117: =(BV118-BV116)*0.25+BV116 -> 70.5 | BW117: =(BW118-BW116)*0.25+BW116 -> 52.875 | BX117: =(BX118-BX116)*0.25+BX116 -> 43.725 | BY117: =(BY118-BY116)*0.25+BY116 -> 37.9 | BZ117: =(BZ118-BZ116)*0.25+BZ116 -> 26.1 | CA117: =(CA118-CA116)*0.25+CA116 -> 17 | CB117: =(CB118-CB116)*0.25+CB116 -> 11 | CC117: =(CC118-CC116)*0.25+CC116 -> 9.375 | CD117: =(CD118-CD116)*0.25+CD116 -> 5.075 | CI117: 29 | CJ117: 1.822123739 | CK117: 6.397895274 | CL117: 2.441757867 | CO117: 0 | CP117: 0 | CQ117: 0 | CR117: 0 | CS117: 0 | CT117: 0 | CW117: 29 | CX117: 1.822123739 | CY117: 1.03350616 | CZ117: 0.3944378092 | DC117: 1.03350616 | DD117: 0.3944378092 | DE117: 0.7950047381 | DF117: 0.3034136994 | DG117: 2.891158584 | DH117: 2.399567546
BS118: 500 | BT118: 126.2 | BU118: 102.4 | BV118: 89.1 | BW118: 67.8 | BX118: 56.4 | BY118: 49 | BZ118: 33.9 | CA118: 21.8 | CB118: 14 | CC118: 12 | CD118: 6.5 | CI118: 30 | CJ118: 1.884955592 | CK118: 6.340933678 | CL118: 2.245694768 | CO118: 0 | CP118: 0 | CQ118: 0 | CR118: 0 | CS118: 0 | CT118: 0 | CW118: 30 | CX118: 1.884955592 | CY118: 1.024304671 | CZ118: 0.362766078 | DC118: 1.024304671 | DD118: 0.362766078 | DE118: 0.78792667 | DF118: 0.2790508292 | DG118: 2.884080516 | DH118: 2.375204675
BS119: 1000 | BT119: 143.4 | BU119: 117.2 | BV119: 102.5 | BW119: 78.7 | BX119: 65.7 | BY119: 57.3 | BZ119: 39.7 | CA119: 25.3 | CB119: 16 | CC119: 14 | CD119: 7.8 | CI119: 31 | CJ119: 1.947787445 | CK119: 6.271773579 | CL119: 2.053595204 | CO119: 0 | CP119: 0 | CQ119: 0 | CR119: 0 | CS119: 0 | CT119: 0 | CW119: 31 | CX119: 1.947787445 | CY119: 1.013132655 | CZ119: 0.3317346098 | DC119: 1.013132655 | DD119: 0.3317346098 | DE119: 0.7793328116 | DF119: 0.2551804691 | DG119: 2.875486658 | DH119: 2.351334315
BU120: =BU116/BU118 -> 0.7314453125 | BV120: 0.721661055 | BW120: 0.7064896755 | BX120: 0.7003546099 | BY120: 0.6979591837 | BZ120: 0.6932153392 | CA120: 0.7064220183 | CB120: 0.7142857143 | CC120: 0.7083333333 | CD120: 0.7076923077 | CI120: 32 | CJ120: 2.010619298 | CK120: 6.190687921 | CL120: 1.866217302 | CO120: 0 | CP120: 0 | CQ120: 0 | CR120: 0 | CS120: 0 | CT120: 0 | CW120: 32 | CX120: 2.010619298 | CY120: 1.000034203 | CZ120: 0.3014658719 | DC120: 1.000034203 | DD120: 0.3014658719 | DE120: 0.7692570789 | DF120: 0.2318968246 | DG120: 2.865410925 | DH120: 2.328050671
BU121: =BU118/BU119 -> 0.8737201365 | BV121: =BV118/BV119 -> 0.8692682927 | BW121: 0.8614993647 | BX121: 0.8584474886 | BY121: 0.8551483421 | BZ121: 0.8539042821 | CA121: 0.8616600791 | CB121: 0.875 | CC121: =CC118/CC119 -> 0.8571428571 | CD121: =CD118/CD119 -> 0.8333333333 | CI121: 33 | CJ121: 2.073451151 | CK121: 6.09799671 | CL121: 1.684300559 | CO121: 0 | CP121: 0 | CQ121: 0 | CR121: 0 | CS121: 0 | CT121: 0 | CW121: 33 | CX121: 2.073451151 | CY121: 0.985061007 | CZ121: 0.2720793211 | DC121: 0.985061007 | DD121: 0.2720793211 | DE121: 0.7577392362 | DF121: 0.2092917855 | DG121: 2.853893082 | DH121: 2.305445632
BR122: Rainfall | BS122: Return Period | BT122: Storm duration | CI122: 34 | CJ122: 2.136283004 | CK122: 5.994065758 | CL122: 1.508562916 | CO122: 0 | CP122: 0 | CQ122: 0 | CR122: 0 | CS122: 0 | CT122: 0 | CW122: 34 | CX122: 2.136283004 | CY122: 0.9682721609 | CZ122: 0.2436909326 | DC122: 0.9682721609 | DD122: 0.2436909326 | DE122: 0.7448247391 | DF122: 0.1874545636 | DG122: 2.840978585 | DH122: 2.28360841
BT123: 5 | BU123: 10 | BV123: 15 | BW123: 30 | BX123: 45 | BY123: 60 | BZ123: 120 | CA123: 240 | CB123: 480 | CC123: 600 | CD123: 1440 | CI123: 35 | CJ123: 2.199114858 | CK123: 5.879305232 | CL123: 1.33969793 | CO123: 0 | CP123: 0 | CQ123: 0 | CR123: 0 | CS123: 0 | CT123: 0 | CW123: 35 | CX123: 2.199114858 | CY123: 0.949733922 | CZ123: 0.2164127425 | DC123: 0.949733922 | DD123: 0.2164127425 | DE123: 0.7305645554 | DF123: 0.1664713404 | DG123: 2.826718402 | DH123: 2.262625187
BR124: M5-60 | BS124: 1 | BT124: 28.3 | BU124: 21.6 | BV124: 17.7 | BW124: 12.4 | BX124: 10 | BY124: 8.6 | BZ124: 6 | CA124: 4.2 | CB124: 3 | CC124: 2.6 | CD124: 1.3 | CI124: 36 | CJ124: 2.261946711 | CK124: 5.754168039 | CL124: 1.178372033 | CO124: 0 | CP124: 0 | CQ124: 0 | CR124: 0 | CS124: 0 | CT124: 0 | CW124: 36 | CX124: 2.261946711 | CY124: 0.9295194525 | CZ124: 0.1903524054 | DC124: 0.9295194525 | DD124: 0.1903524054 | DE124: 0.7150149634 | DF124: 0.1464249272 | DG124: 2.81116881 | DH124: 2.242578773
BR125: 14 | BS125: 2 | BT125: 33.3 | BU125: 26 | BV125: 21.9 | BW125: 15.8 | BX125: 12.9 | BY125: 11.1 | BZ125: 7.7 | CA125: 5.3 | CB125: 4 | CC125: 3.2 | CD125: 1.9 | CI125: 37 | CJ125: 2.324778564 | CK125: 5.619148039 | CL125: 1.025221906 | CO125: 0 | CP125: 0 | CQ125: 0 | CR125: 0 | CS125: 0 | CT125: 0 | CW125: 37 | CX125: 2.324778564 | CY125: 0.9077085294 | CZ125: 0.1656127694 | DC125: 0.9077085294 | DD125: 0.1656127694 | DE125: 0.6982373303 | DF125: 0.127394438 | DG125: 2.794391176 | DH125: 2.223548284
BR126: r Ratio | BS126: 5 | BT126: 44.4 | BU126: 34.4 | BV126: 28.9 | BW126: 20.7 | BX126: 16.7 | BY126: 14.3 | BZ126: 9.8 | CA126: 6.6 | CB126: 4 | CC126: 3.9 | CD126: 2.3 | CI126: 38 | CJ126: 2.387610417 | CK126: 5.474778094 | CL126: 0.8808519609 | CO126: 0 | CP126: 0 | CQ126: 0 | CR126: 0 | CS126: 0 | CT126: 0 | CW126: 38 | CX126: 2.387610417 | CY126: 0.8843872306 | CZ126: 0.1422914706 | DC126: 0.8843872306 | DD126: 0.1422914706 | DE126: 0.6802978697 | DF126: 0.1094549774 | DG126: 2.776451716 | DH126: 2.205608824
BR127: 0.2 | BS127: 10 | BT127: 50.4 | BU127: 39.3 | BV127: 33.1 | BW127: 23.9 | BX127: 19.4 | BY127: 16.7 | BZ127: 11.5 | CA127: 7.7 | CB127: 5 | CC127: 4.5 | CD127: 2.6 | CI127: 39 | CJ127: 2.45044227 | CK127: 5.321627967 | CL127: 0.745831961 | CO127: 0 | CP127: 0 | CQ127: 0 | CR127: 0 | CS127: 0 | CT127: 0 | CW127: 39 | CX127: 2.45044227 | CY127: 0.8596475946 | CZ127: 0.1204805475 | DC127: 0.8596475946 | DD127: 0.1204805475 | DE127: 0.6612673805 | DF127: 0.09267734426 | DG127: 2.757421227 | DH127: 2.18883119
BS128: 15 | BT128: 54.2 | BU128: 42.4 | BV128: 35.8 | BW128: 26 | BX128: 21.2 | BY128: 18.3 | BZ128: 12.6 | CA128: 8.5 | CB128: 6 | CC128: =AVERAGE(CC127,CC129) -> 4.85 | CD128: =AVERAGE(CD127,CD129) -> 2.8 | CI128: 40 | CJ128: 2.513274123 | CK128: 5.16030207 | CL128: 0.6206947683 | CO128: 0 | CP128: 0 | CQ128: 0 | CR128: 0 | CS128: 0 | CT128: 0 | CW128: 40 | CX128: 2.513274123 | CY128: 0.8335872575 | CZ128: 0.100266078 | DC128: 0.8335872575 | DD128: 0.100266078 | DE128: 0.6412209673 | DF128: 0.07712775227 | DG128: 2.737374813 | DH128: 2.173281598
BS129: 20 | BT129: 57.2 | BU129: 44.8 | BV129: 37.9 | BW129: 27.6 | BX129: 22.6 | BY129: 19.4 | BZ129: 13.4 | CA129: 9 | CB129: 6 | CC129: 5.2 | CD129: 3 | CI129: 41 | CJ129: 2.576105976 | CK129: 4.991437084 | CL129: 0.5059342421 | CO129: 0 | CP129: 0 | CQ129: 0 | CR129: 0 | CS129: 0 | CT129: 0 | CW129: 41 | CX129: 2.576105976 | CY129: 0.8063090674 | CZ129: 0.08172783911 | DC129: 0.8063090674 | DD129: 0.08172783911 | DE129: 0.6202377441 | DF129: 0.06286756855 | DG129: 2.71639159 | DH129: 2.159021415
BS130: 25 | BT130: 59.5 | BU130: 46.7 | BV130: 39.6 | BW130: 28.9 | BX130: 23.7 | BY130: 20.4 | BZ130: 14.1 | CA130: 9.5 | CB130: 6 | CC130: =AVERAGE(CC129,CC131) -> 5.4 | CD130: =AVERAGE(CD129,CD131) -> 3.1 | CI130: 42 | CJ130: 2.638937829 | CK130: 4.815699441 | CL130: 0.4020032899 | CO130: 0 | CP130: 0 | CQ130: 0 | CR130: 0 | CS130: 0 | CT130: 0 | CW130: 42 | CX130: 2.638937829 | CY130: 0.7779206789 | CZ130: 0.06493899298 | DC130: 0.7779206789 | DD130: 0.06493899298 | DE130: 0.5984005222 | DF130: 0.04995307152 | DG130: 2.694554368 | DH130: 2.146106918
BS131: 30 | BT131: 61.5 | BU131: 48.3 | BV131: 41 | BW131: 30.1 | BX131: 24.6 | BY131: 21.3 | BZ131: 14.7 | CA131: 9.9 | CB131: 6 | CC131: 5.6 | CD131: 3.2 | CI131: 43 | CJ131: 2.701769682 | CK131: 4.633782698 | CL131: 0.3093120795 | CO131: 0 | CP131: 0 | CQ131: 0 | CR131: 0 | CS131: 0 | CT131: 0 | CW131: 43 | CX131: 2.701769682 | CY131: 0.7485341281 | CZ131: 0.04996579746 | DC131: 0.7485341281 | DD131: 0.04996579746 | DE131: 0.5757954831 | DF131: 0.03843522881 | DG131: 2.671949329 | DH131: 2.134589075
BS132: 50 | BT132: 67.5 | BU132: 53.2 | BV132: 45.3 | BW132: 33.5 | BX132: 27.5 | BY132: 23.8 | BZ132: 16.5 | CA132: 11.1 | CB132: 7 | CC132: 6.2 | CD132: 3.5 | CI132: 44 | CJ132: 2.764601535 | CK132: 4.446404796 | CL132: 0.2282264209 | CO132: 0 | CP132: 0 | CQ132: 0 | CR132: 0 | CS132: 0 | CT132: 0 | CW132: 44 | CX132: 2.764601535 | CY132: 0.7182653902 | CZ132: 0.03686734491 | DC132: 0.7182653902 | DD132: 0.03686734491 | DE132: 0.5525118386 | DF132: 0.02835949608 | DG132: 2.648665685 | DH132: 2.124513342
BS133: 100 | BT133: 76.6 | BU133: 60.7 | BV133: 51.9 | BW133: 38.7 | BX133: 31.9 | BY133: 27.7 | BZ133: 19.3 | CA133: 13 | CB133: 8 | CC133: 7.2 | CD133: 4 | CI133: 45 | CJ133: 2.827433388 | CK133: 4.254305232 | CL133: 0.159066322 | CO133: 0 | CP133: 0 | CQ133: 0 | CR133: 0 | CS133: 0 | CT133: 0 | CW133: 45 | CX133: 2.827433388 | CY133: 0.687233922 | CZ133: 0.02569532895 | DC133: 0.687233922 | DD133: 0.02569532895 | DE133: 0.5286414785 | DF133: 0.01976563765 | DG133: 2.624795325 | DH133: 2.115919484
BS134: 200 | BT134: =(BT135-BT133)*0.25+BT133 -> 83.075 | BU134: =(BU135-BU133)*0.25+BU133 -> 66.1 | BV134: =(BV135-BV133)*0.25+BV133 -> 56.675 | BW134: =(BW135-BW133)*0.25+BW133 -> 42.575 | BX134: =(BX135-BX133)*0.25+BX133 -> 35.225 | BY134: =(BY135-BY133)*0.25+BY133 -> 30.625 | BZ134: =(BZ135-BZ133)*0.25+BZ133 -> 21.425 | CA134: =(CA135-CA133)*0.25+CA133 -> 14.425 | CB134: =(CB135-CB133)*0.25+CB133 -> 9 | CC134: =(CC135-CC133)*0.25+CC133 -> 7.9 | CD134: =(CD135-CD133)*0.25+CD133 -> 4.5 | CI134: 46 | CJ134: 2.890265241 | CK134: 4.058242133 | CL134: 0.1021047263 | CO134: 0 | CP134: 0 | CQ134: 0 | CR134: 0 | CS134: 0 | CT134: 0 | CW134: 46 | CX134: 2.890265241 | CY134: 0.6555621908 | CZ134: 0.01649384041 | DC134: 0.6555621908 | DD134: 0.01649384041 | DE134: 0.5042786083 | DF134: 0.01268756954 | DG134: 2.600432454 | DH134: 2.108841416
BS135: 500 | BT135: 102.5 | BU135: 82.3 | BV135: 71 | BW135: 54.2 | BX135: 45.2 | BY135: 39.4 | BZ135: 27.8 | CA135: 18.7 | CB135: 12 | CC135: 10 | CD135: 6 | CI135: 47 | CJ135: 2.953097094 | CK135: 3.858989272 | CL135: 0.05756643513 | CO135: 0 | CP135: 0 | CQ135: 0 | CR135: 0 | CS135: 0 | CT135: 0 | CW135: 47 | CX135: 2.953097094 | CY135: 0.6233751902 | CZ135: 0.009299193367 | DC135: 0.6233751902 | DD135: 0.009299193367 | DE135: 0.479519377 | DF135: 0.007153225667 | DG135: 2.575673223 | DH135: 2.103307072
BS136: 1000 | BT136: 116.3 | BU136: 93.9 | BV136: 81.3 | BW136: 62.7 | BX136: 52.5 | BY136: 45.9 | BZ136: 32.5 | CA136: 21.8 | CB136: 14 | CC136: 12 | CD136: 7 | CI136: 48 | CJ136: 3.015928947 | CK136: 3.657333009 | CL136: 0.02562722073 | CO136: 0 | CP136: 0 | CQ136: 0 | CR136: 0 | CS136: 0 | CT136: 0 | CW136: 48 | CX136: 3.015928947 | CY136: 0.5907999476 | CZ136: 0.00413978181 | DC136: 0.5907999476 | DD136: 0.00413978181 | DE136: 0.4544614982 | DF136: 0.003184447546 | DG136: 2.550615344 | DH136: 2.099338294
BU137: =BU133/BU135 -> 0.737545565 | BV137: 0.7309859155 | BW137: 0.7140221402 | BX137: 0.7057522124 | BY137: 0.7030456853 | BZ137: 0.6942446043 | CA137: 0.6951871658 | CB137: 0.6666666667 | CC137: 0.72 | CD137: 0.6666666667 | CI137: 49 | CJ137: 3.078760801 | CK137: 3.454069188 | CL137: 0.006413132608 | CO137: 0 | CP137: 0 | CQ137: 0 | CR137: 0 | CS137: 0 | CT137: 0 | CW137: 49 | CX137: 3.078760801 | CY137: 0.5579650228 | CZ137: 0.001035967575 | DC137: 0.5579650228 | DD137: 0.001035967575 | DE137: 0.4292038637 | DF137: 0.0007968981347 | DG137: 2.52535771 | DH137: 2.096950744
BR138: Rainfall | BS138: Return Period | BT138: Storm duration | BU138: =BU135/BU136 -> 0.8764643237 | BV138: =BV135/BV136 -> 0.8733087331 | BW138: 0.8644338118 | BX138: 0.860952381 | BY138: 0.8583877996 | BZ138: 0.8553846154 | CA138: 0.8577981651 | CB138: 0.8571428571 | CC138: =CC135/CC136 -> 0.8333333333 | CD138: =CD135/CD136 -> 0.8571428571 | CI138: 50 | CJ138: 3.141592654 | CK138: 3.25 | CL138: 0 | CO138: 0 | CP138: 0 | CQ138: 0 | CR138: 0 | CS138: 0 | CT138: 0 | CW138: 50 | CX138: 3.141592654 | CY138: 0.525 | CZ138: 0 | DC138: 0.525 | DD138: 0 | DE138: 0.4038461538 | DF138: 0 | DG138: 2.5 | DH138: 2.096153846
BT139: 5 | BU139: 10 | BV139: 15 | BW139: 30 | BX139: 45 | BY139: 60 | BZ139: 120 | CA139: 240 | CB139: 480 | CC139: 600 | CD139: 1440 | CI139: 51 | CJ139: 3.204424507 | CK139: 3.045930812 | CL139: 0.006413132608 | CO139: 0 | CP139: 0 | CQ139: 0 | CR139: 0 | CS139: 0 | CT139: 0 | CW139: 51 | CX139: 3.204424507 | CY139: 0.4920349772 | CZ139: 0.001035967575 | DC139: 0.4920349772 | DD139: 0.001035967575 | DE139: 0.378488444 | DF139: 0.0007968981347 | DG139: 2.47464229 | DH139: 2.096950744
BR140: M5-60 | BS140: 1 | BT140: 40.1 | BU140: 29.9 | BV140: 24.7 | BW140: 17.7 | BX140: 14.5 | BY140: 12.7 | BZ140: 9 | CA140: 6.4 | CB140: 4.4 | CC140: 3.9 | CD140: 2.4 | CI140: 52 | CJ140: 3.26725636 | CK140: 2.842666991 | CL140: 0.02562722073 | CO140: 0 | CP140: 0 | CQ140: 0 | CR140: 0 | CS140: 0 | CT140: 0 | CW140: 52 | CX140: 3.26725636 | CY140: 0.4592000524 | CZ140: 0.00413978181 | DC140: 0.4592000524 | DD140: 0.00413978181 | DE140: 0.3532308095 | DF140: 0.003184447546 | DG140: 2.449384656 | DH140: 2.099338294
BR141: 20 | BS141: 2 | BT141: 47.9 | BU141: 37.5 | BV141: 31.6 | BW141: 22.9 | BX141: 18.7 | BY141: 16.1 | BZ141: 11.2 | CA141: 7.7 | CB141: 5.3 | CC141: 4.6 | CD141: 2.8 | CI141: 53 | CJ141: 3.330088213 | CK141: 2.641010728 | CL141: 0.05756643513 | CO141: 0 | CP141: 0 | CQ141: 0 | CR141: 0 | CS141: 0 | CT141: 0 | CW141: 53 | CX141: 3.330088213 | CY141: 0.4266248098 | CZ141: 0.009299193367 | DC141: 0.4266248098 | DD141: 0.009299193367 | DE141: 0.3281729306 | DF141: 0.007153225667 | DG141: 2.424326777 | DH141: 2.103307072
BR142: r Ratio | BS142: 5 | BT142: 63.5 | BU142: 49.3 | BV142: 41.3 | BW142: 29.5 | BX142: 23.9 | BY142: 20.5 | BZ142: 14 | CA142: 9.4 | CB142: 6 | CC142: 5.5 | CD142: 3.3 | CI142: 54 | CJ142: 3.392920066 | CK142: 2.441757867 | CL142: 0.1021047263 | CO142: 0 | CP142: 0 | CQ142: 0 | CR142: 0 | CS142: 0 | CT142: 0 | CW142: 54 | CX142: 3.392920066 | CY142: 0.3944378092 | CZ142: 0.01649384041 | DC142: 0.3944378092 | DD142: 0.01649384041 | DE142: 0.3034136994 | DF142: 0.01268756954 | DG142: 2.399567546 | DH142: 2.108841416
BR143: 0.2 | BS143: 10 | BT143: 72.3 | BU143: 56.6 | BV143: 47.8 | BW143: 34.4 | BX143: 28 | BY143: 24 | BZ143: 16.3 | CA143: 10.9 | CB143: 7 | CC143: 6.3 | CD143: 3.6 | CI143: 55 | CJ143: 3.455751919 | CK143: 2.245694768 | CL143: 0.159066322 | CO143: 0 | CP143: 0 | CQ143: 0 | CR143: 0 | CS143: 0 | CT143: 0 | CW143: 55 | CX143: 3.455751919 | CY143: 0.362766078 | CZ143: 0.02569532895 | DC143: 0.362766078 | DD143: 0.02569532895 | DE143: 0.2790508292 | DF143: 0.01976563765 | DG143: 2.375204675 | DH143: 2.115919484
BS144: 15 | BT144: 78 | BU144: 61.3 | BV144: 52 | BW144: 37.6 | BX144: 30.6 | BY144: 26.3 | BZ144: 17.9 | CA144: 11.9 | CB144: 8 | CC144: =AVERAGE(CC143,CC145) -> 6.75 | CD144: =AVERAGE(CD143,CD145) -> 3.85 | CI144: 56 | CJ144: 3.518583772 | CK144: 2.053595204 | CL144: 0.2282264209 | CO144: 0 | CP144: 0 | CQ144: 0 | CR144: 0 | CS144: 0 | CT144: 0 | CW144: 56 | CX144: 3.518583772 | CY144: 0.3317346098 | CZ144: 0.03686734491 | DC144: 0.3317346098 | DD144: 0.03686734491 | DE144: 0.2551804691 | DF144: 0.02835949608 | DG144: 2.351334315 | DH144: 2.124513342
BS145: 20 | BT145: 82.4 | BU145: 65 | BV145: 55.3 | BW145: 40.1 | BX145: 32.7 | BY145: 28.1 | BZ145: 19.1 | CA145: 12.6 | CB145: 8 | CC145: 7.2 | CD145: 4.1 | CI145: 57 | CJ145: 3.581415625 | CK145: 1.866217302 | CL145: 0.3093120795 | CO145: 0 | CP145: 0 | CQ145: 0 | CR145: 0 | CS145: 0 | CT145: 0 | CW145: 57 | CX145: 3.581415625 | CY145: 0.3014658719 | CZ145: 0.04996579746 | DC145: 0.3014658719 | DD145: 0.04996579746 | DE145: 0.2318968246 | DF145: 0.03843522881 | DG145: 2.328050671 | DH145: 2.134589075
BS146: 25 | BT146: 85.9 | BU146: 67.9 | BV146: 57.9 | BW146: 42.1 | BX146: 34.4 | BY146: 29.6 | BZ146: 20 | CA146: 13.2 | CB146: 9 | CC146: =AVERAGE(CC145,CC147) -> 7.4 | CD146: =AVERAGE(CD145,CD147) -> 4.2 | CI146: 58 | CJ146: 3.644247478 | CK146: 1.684300559 | CL146: 0.4020032899 | CO146: 0 | CP146: 0 | CQ146: 0 | CR146: 0 | CS146: 0 | CT146: 0 | CW146: 58 | CX146: 3.644247478 | CY146: 0.2720793211 | CZ146: 0.06493899298 | DC146: 0.2720793211 | DD146: 0.06493899298 | DE146: 0.2092917855 | DF146: 0.04995307152 | DG146: 2.305445632 | DH146: 2.146106918
BS147: 30 | BT147: 88.9 | BU147: 70.5 | BV147: 60.2 | BW147: 43.9 | BX147: 35.8 | BY147: 30.8 | BZ147: 20.9 | CA147: 13.7 | CB147: 9 | CC147: 7.6 | CD147: 4.3 | CI147: 59 | CJ147: 3.707079331 | CK147: 1.508562916 | CL147: 0.5059342421 | CO147: 0 | CP147: 0 | CQ147: 0 | CR147: 0 | CS147: 0 | CT147: 0 | CW147: 59 | CX147: 3.707079331 | CY147: 0.2436909326 | CZ147: 0.08172783911 | DC147: 0.2436909326 | DD147: 0.08172783911 | DE147: 0.1874545636 | DF147: 0.06286756855 | DG147: 2.28360841 | DH147: 2.159021415
BS148: 50 | BT148: 97.8 | BU148: 78 | BV148: 67 | BW148: 49.1 | BX148: 40.2 | BY148: 34.6 | BZ148: 23.4 | CA148: 15.3 | CB148: 10 | CC148: 8.4 | CD148: 4.7 | CI148: 60 | CJ148: 3.769911184 | CK148: 1.33969793 | CL148: 0.6206947683 | CO148: 0 | CP148: 0 | CQ148: 0 | CR148: 0 | CS148: 0 | CT148: 0 | CW148: 60 | CX148: 3.769911184 | CY148: 0.2164127425 | CZ148: 0.100266078 | DC148: 0.2164127425 | DD148: 0.100266078 | DE148: 0.1664713404 | DF148: 0.07712775227 | DG148: 2.262625187 | DH148: 2.173281598
BS149: 100 | BT149: 111.4 | BU149: 89.6 | BV149: 77.4 | BW149: 57.2 | BX149: 47 | BY149: 40.5 | BZ149: 27.3 | CA149: 17.6 | CB149: 11 | CC149: 9.6 | CD149: 5.2 | CI149: 61 | CJ149: 3.832743037 | CK149: 1.178372033 | CL149: 0.745831961 | CO149: 0 | CP149: 0 | CQ149: 0 | CR149: 0 | CS149: 0 | CT149: 0 | CW149: 61 | CX149: 3.832743037 | CY149: 0.1903524054 | CZ149: 0.1204805475 | DC149: 0.1903524054 | DD149: 0.1204805475 | DE149: 0.1464249272 | DF149: 0.09267734426 | DG149: 2.242578773 | DH149: 2.18883119
BS150: 200 | BT150: =(BT151-BT149)*0.25+BT149 -> 121.2 | BU150: =(BU151-BU149)*0.25+BU149 -> 98.1 | BV150: =(BV151-BV149)*0.25+BV149 -> 85.175 | BW150: =(BW151-BW149)*0.25+BW149 -> 63.3 | BX150: =(BX151-BX149)*0.25+BX149 -> 52.125 | BY150: =(BY151-BY149)*0.25+BY149 -> 44.975 | BZ150: =(BZ151-BZ149)*0.25+BZ149 -> 30.25 | CA150: =(CA151-CA149)*0.25+CA149 -> 19.375 | CB150: =(CB151-CB149)*0.25+CB149 -> 12 | CC150: =(CC151-CC149)*0.25+CC149 -> 10.7 | CD150: =(CD151-CD149)*0.25+CD149 -> 5.775 | CI150: 62 | CJ150: 3.89557489 | CK150: 1.025221906 | CL150: 0.8808519609 | CO150: 0 | CP150: 0 | CQ150: 0 | CR150: 0 | CS150: 0 | CT150: 0 | CW150: 62 | CX150: 3.89557489 | CY150: 0.1656127694 | CZ150: 0.1422914706 | DC150: 0.1656127694 | DD150: 0.1422914706 | DE150: 0.127394438 | DF150: 0.1094549774 | DG150: 2.223548284 | DH150: 2.205608824
BS151: 500 | BT151: 150.6 | BU151: 123.6 | BV151: 108.5 | BW151: 81.6 | BX151: 67.5 | BY151: 58.4 | BZ151: 39.1 | CA151: 24.7 | CB151: 15 | CC151: 14 | CD151: 7.5 | CI151: 63 | CJ151: 3.958406744 | CK151: 0.8808519609 | CL151: 1.025221906 | CO151: 0 | CP151: 0 | CQ151: 0 | CR151: 0 | CS151: 0 | CT151: 0 | CW151: 63 | CX151: 3.958406744 | CY151: 0.1422914706 | CZ151: 0.1656127694 | DC151: 0.1422914706 | DD151: 0.1656127694 | DE151: 0.1094549774 | DF151: 0.127394438 | DG151: 2.205608824 | DH151: 2.223548284
BS152: 1000 | BT152: 171.5 | BU152: 141.9 | BV152: 125.4 | BW152: 95.1 | BX152: 78.9 | BY152: 68.4 | BZ152: 45.7 | CA152: 28.5 | CB152: 17 | CC152: 16 | CD152: 9 | CI152: 64 | CJ152: 4.021238597 | CK152: 0.745831961 | CL152: 1.178372033 | CO152: 0 | CP152: 0 | CQ152: 0 | CR152: 0 | CS152: 0 | CT152: 0 | CW152: 64 | CX152: 4.021238597 | CY152: 0.1204805475 | CZ152: 0.1903524054 | DC152: 0.1204805475 | DD152: 0.1903524054 | DE152: 0.09267734426 | DF152: 0.1464249272 | DG152: 2.18883119 | DH152: 2.242578773
BU153: =BU149/BU151 -> 0.7249190939 | BV153: 0.7133640553 | BW153: 0.7009803922 | BX153: 0.6962962963 | BY153: 0.6934931507 | BZ153: 0.6982097187 | CA153: 0.7125506073 | CB153: 0.7333333333 | CC153: 0.6857142857 | CD153: 0.6933333333 | CI153: 65 | CJ153: =CI153%*2*PI() -> 4.08407045 | CK153: 0.6206947683 | CL153: 1.33969793 | CO153: 0 | CP153: 0 | CQ153: 0 | CR153: 0 | CS153: 0 | CT153: 0 | CW153: 65 | CX153: =CW153%*2*PI() -> 4.08407045 | CY153: 0.100266078 | CZ153: 0.2164127425 | DC153: 0.100266078 | DD153: 0.2164127425 | DE153: 0.07712775227 | DF153: 0.1664713404 | DG153: 2.173281598 | DH153: 2.262625187
BU154: =BU151/BU152 -> 0.8710359408 | BV154: =BV151/BV152 -> 0.86523126 | BW154: 0.858044164 | BX154: 0.855513308 | BY154: 0.8538011696 | BZ154: 0.8555798687 | CA154: 0.8666666667 | CB154: 0.8823529412 | CC154: =CC151/CC152 -> 0.875 | CD154: =CD151/CD152 -> 0.8333333333 | CI154: 66 | CJ154: 4.146902303 | CK154: =($T$67/2)*SIN(CJ154)+T$67/2 -> 0.5059342421 | CL154: =($T$67/2)*COS(CJ154)+T$67/2 -> 1.508562916 | CO154: =IF(P$65="Perforated Manhole",CK154,CM154) -> 0 | CP154: =IF(P$65="Perforated Manhole",CL154,CN154) -> 0 | CQ154: =IF(MAX($CO$89:$CP$189)>5,CO154*(5/MAX($CO$89:$CP$189)),CO154) -> 0 | CR154: 0 | CS154: =IF(MAX($CQ$89:$CQ$189)=5,CQ154,CQ154+0.5*(5-MAX($CQ$89:$CQ$189))) -> 0 | CT154: =IF(MAX($CR$89:$CR$189)=5,CR154,CR154+0.5*(5-MAX($CR$89:$CR$189))) -> 0 | CW154: 66 | CX154: 4.146902303 | CY154: =($T$73*0.001/2)*SIN(CX154)+T$73*0.001/2 -> 0.08172783911 | CZ154: =($T$73*0.001/2)*COS(CX154)+T$73*0.001/2 -> 0.2436909326 | DC154: =IF(P$65="Manhole Within Pit",CY154,NA()) -> 0.08172783911 | DD154: =IF(P$65="Manhole Within Pit",CZ154,NA()) -> 0.2436909326 | DE154: =IF(MAX($CO$89:$CP$189)>5,DC154*(5/MAX($CO$89:$CP$189)),DC154) -> 0.06286756855 | DF154: =IF(MAX($CO$89:$CP$189)>5,DD154*(5/MAX($CO$89:$CP$189)),DD154) -> 0.1874545636 | DG154: =IF(MAX($CQ$89:$CQ$189)=5,DE154,DE154+0.5*(5-MAX($CQ$89:$CQ$189)))-$DF$188/2+($CS$90-$CS$89)/2 -> 2.159021415 | DH154: =IF(MAX($CR$89:$CR$189)=5,DF154,DF154+0.5*(5-MAX($CR$89:$CR$189)))-$DF$188/2+($CT$91-$CT$90)/2 -> 2.28360841
CI155: 67 | CJ155: 4.209734156 | CK155: 0.4020032899 | CL155: 1.684300559 | CO155: 0 | CP155: 0 | CQ155: 0 | CR155: 0 | CS155: 0 | CT155: 0 | CW155: 67 | CX155: 4.209734156 | CY155: 0.06493899298 | CZ155: 0.2720793211 | DC155: 0.06493899298 | DD155: 0.2720793211 | DE155: 0.04995307152 | DF155: 0.2092917855 | DG155: 2.146106918 | DH155: 2.305445632
CI156: 68 | CJ156: 4.272566009 | CK156: 0.3093120795 | CL156: 1.866217302 | CO156: 0 | CP156: 0 | CQ156: 0 | CR156: 0 | CS156: 0 | CT156: 0 | CW156: 68 | CX156: 4.272566009 | CY156: 0.04996579746 | CZ156: 0.3014658719 | DC156: 0.04996579746 | DD156: 0.3014658719 | DE156: 0.03843522881 | DF156: 0.2318968246 | DG156: 2.134589075 | DH156: 2.328050671
CI157: 69 | CJ157: 4.335397862 | CK157: 0.2282264209 | CL157: 2.053595204 | CO157: 0 | CP157: 0 | CQ157: 0 | CR157: 0 | CS157: 0 | CT157: 0 | CW157: 69 | CX157: 4.335397862 | CY157: 0.03686734491 | CZ157: 0.3317346098 | DC157: 0.03686734491 | DD157: 0.3317346098 | DE157: 0.02835949608 | DF157: 0.2551804691 | DG157: 2.124513342 | DH157: 2.351334315
CI158: 70 | CJ158: 4.398229715 | CK158: 0.159066322 | CL158: 2.245694768 | CO158: 0 | CP158: 0 | CQ158: 0 | CR158: 0 | CS158: 0 | CT158: 0 | CW158: 70 | CX158: 4.398229715 | CY158: 0.02569532895 | CZ158: 0.362766078 | DC158: 0.02569532895 | DD158: 0.362766078 | DE158: 0.01976563765 | DF158: 0.2790508292 | DG158: 2.115919484 | DH158: 2.375204675
CI159: 71 | CJ159: 4.461061568 | CK159: 0.1021047263 | CL159: 2.441757867 | CO159: 0 | CP159: 0 | CQ159: 0 | CR159: 0 | CS159: 0 | CT159: 0 | CW159: 71 | CX159: 4.461061568 | CY159: 0.01649384041 | CZ159: 0.3944378092 | DC159: 0.01649384041 | DD159: 0.3944378092 | DE159: 0.01268756954 | DF159: 0.3034136994 | DG159: 2.108841416 | DH159: 2.399567546
CI160: 72 | CJ160: 4.523893421 | CK160: 0.05756643513 | CL160: 2.641010728 | CO160: 0 | CP160: 0 | CQ160: 0 | CR160: 0 | CS160: 0 | CT160: 0 | CW160: 72 | CX160: 4.523893421 | CY160: 0.009299193367 | CZ160: 0.4266248098 | DC160: 0.009299193367 | DD160: 0.4266248098 | DE160: 0.007153225667 | DF160: 0.3281729306 | DG160: 2.103307072 | DH160: 2.424326777
CI161: 73 | CJ161: 4.586725274 | CK161: 0.02562722073 | CL161: 2.842666991 | CO161: 0 | CP161: 0 | CQ161: 0 | CR161: 0 | CS161: 0 | CT161: 0 | CW161: 73 | CX161: 4.586725274 | CY161: 0.00413978181 | CZ161: 0.4592000524 | DC161: 0.00413978181 | DD161: 0.4592000524 | DE161: 0.003184447546 | DF161: 0.3532308095 | DG161: 2.099338294 | DH161: 2.449384656
CI162: 74 | CJ162: 4.649557127 | CK162: 0.006413132608 | CL162: 3.045930812 | CO162: 0 | CP162: 0 | CQ162: 0 | CR162: 0 | CS162: 0 | CT162: 0 | CW162: 74 | CX162: 4.649557127 | CY162: 0.001035967575 | CZ162: 0.4920349772 | DC162: 0.001035967575 | DD162: 0.4920349772 | DE162: 0.0007968981347 | DF162: 0.378488444 | DG162: 2.096950744 | DH162: 2.47464229
CI163: 75 | CJ163: 4.71238898 | CK163: 0 | CL163: 3.25 | CO163: 0 | CP163: 0 | CQ163: 0 | CR163: 0 | CS163: 0 | CT163: 0 | CW163: 75 | CX163: 4.71238898 | CY163: 0 | CZ163: 0.525 | DC163: 0 | DD163: 0.525 | DE163: 0 | DF163: 0.4038461538 | DG163: 2.096153846 | DH163: 2.5
CI164: 76 | CJ164: 4.775220833 | CK164: 0.006413132608 | CL164: 3.454069188 | CO164: 0 | CP164: 0 | CQ164: 0 | CR164: 0 | CS164: 0 | CT164: 0 | CW164: 76 | CX164: 4.775220833 | CY164: 0.001035967575 | CZ164: 0.5579650228 | DC164: 0.001035967575 | DD164: 0.5579650228 | DE164: 0.0007968981347 | DF164: 0.4292038637 | DG164: 2.096950744 | DH164: 2.52535771
CI165: 77 | CJ165: 4.838052687 | CK165: 0.02562722073 | CL165: 3.657333009 | CO165: 0 | CP165: 0 | CQ165: 0 | CR165: 0 | CS165: 0 | CT165: 0 | CW165: 77 | CX165: 4.838052687 | CY165: 0.00413978181 | CZ165: 0.5907999476 | DC165: 0.00413978181 | DD165: 0.5907999476 | DE165: 0.003184447546 | DF165: 0.4544614982 | DG165: 2.099338294 | DH165: 2.550615344
CI166: 78 | CJ166: 4.90088454 | CK166: 0.05756643513 | CL166: 3.858989272 | CO166: 0 | CP166: 0 | CQ166: 0 | CR166: 0 | CS166: 0 | CT166: 0 | CW166: 78 | CX166: 4.90088454 | CY166: 0.009299193367 | CZ166: 0.6233751902 | DC166: 0.009299193367 | DD166: 0.6233751902 | DE166: 0.007153225667 | DF166: 0.479519377 | DG166: 2.103307072 | DH166: 2.575673223
CI167: 79 | CJ167: 4.963716393 | CK167: 0.1021047263 | CL167: 4.058242133 | CO167: 0 | CP167: 0 | CQ167: 0 | CR167: 0 | CS167: 0 | CT167: 0 | CW167: 79 | CX167: 4.963716393 | CY167: 0.01649384041 | CZ167: 0.6555621908 | DC167: 0.01649384041 | DD167: 0.6555621908 | DE167: 0.01268756954 | DF167: 0.5042786083 | DG167: 2.108841416 | DH167: 2.600432454
CI168: 80 | CJ168: 5.026548246 | CK168: 0.159066322 | CL168: 4.254305232 | CO168: 0 | CP168: 0 | CQ168: 0 | CR168: 0 | CS168: 0 | CT168: 0 | CW168: 80 | CX168: 5.026548246 | CY168: 0.02569532895 | CZ168: 0.687233922 | DC168: 0.02569532895 | DD168: 0.687233922 | DE168: 0.01976563765 | DF168: 0.5286414785 | DG168: 2.115919484 | DH168: 2.624795325
CI169: 81 | CJ169: 5.089380099 | CK169: 0.2282264209 | CL169: 4.446404796 | CO169: 0 | CP169: 0 | CQ169: 0 | CR169: 0 | CS169: 0 | CT169: 0 | CW169: 81 | CX169: 5.089380099 | CY169: 0.03686734491 | CZ169: 0.7182653902 | DC169: 0.03686734491 | DD169: 0.7182653902 | DE169: 0.02835949608 | DF169: 0.5525118386 | DG169: 2.124513342 | DH169: 2.648665685
CI170: 82 | CJ170: 5.152211952 | CK170: 0.3093120795 | CL170: 4.633782698 | CO170: 0 | CP170: 0 | CQ170: 0 | CR170: 0 | CS170: 0 | CT170: 0 | CW170: 82 | CX170: 5.152211952 | CY170: 0.04996579746 | CZ170: 0.7485341281 | DC170: 0.04996579746 | DD170: 0.7485341281 | DE170: 0.03843522881 | DF170: 0.5757954831 | DG170: 2.134589075 | DH170: 2.671949329
CI171: 83 | CJ171: 5.215043805 | CK171: 0.4020032899 | CL171: 4.815699441 | CO171: 0 | CP171: 0 | CQ171: 0 | CR171: 0 | CS171: 0 | CT171: 0 | CW171: 83 | CX171: 5.215043805 | CY171: 0.06493899298 | CZ171: 0.7779206789 | DC171: 0.06493899298 | DD171: 0.7779206789 | DE171: 0.04995307152 | DF171: 0.5984005222 | DG171: 2.146106918 | DH171: 2.694554368
CI172: 84 | CJ172: 5.277875658 | CK172: 0.5059342421 | CL172: 4.991437084 | CO172: 0 | CP172: 0 | CQ172: 0 | CR172: 0 | CS172: 0 | CT172: 0 | CW172: 84 | CX172: 5.277875658 | CY172: 0.08172783911 | CZ172: 0.8063090674 | DC172: 0.08172783911 | DD172: 0.8063090674 | DE172: 0.06286756855 | DF172: 0.6202377441 | DG172: 2.159021415 | DH172: 2.71639159
CI173: 85 | CJ173: 5.340707511 | CK173: 0.6206947683 | CL173: 5.16030207 | CO173: 0 | CP173: 0 | CQ173: 0 | CR173: 0 | CS173: 0 | CT173: 0 | CW173: 85 | CX173: 5.340707511 | CY173: 0.100266078 | CZ173: 0.8335872575 | DC173: 0.100266078 | DD173: 0.8335872575 | DE173: 0.07712775227 | DF173: 0.6412209673 | DG173: 2.173281598 | DH173: 2.737374813
CI174: 86 | CJ174: 5.403539364 | CK174: 0.745831961 | CL174: 5.321627967 | CO174: 0 | CP174: 0 | CQ174: 0 | CR174: 0 | CS174: 0 | CT174: 0 | CW174: 86 | CX174: 5.403539364 | CY174: 0.1204805475 | CZ174: 0.8596475946 | DC174: 0.1204805475 | DD174: 0.8596475946 | DE174: 0.09267734426 | DF174: 0.6612673805 | DG174: 2.18883119 | DH174: 2.757421227
CI175: 87 | CJ175: 5.466371217 | CK175: 0.8808519609 | CL175: 5.474778094 | CO175: 0 | CP175: 0 | CQ175: 0 | CR175: 0 | CS175: 0 | CT175: 0 | CW175: 87 | CX175: 5.466371217 | CY175: 0.1422914706 | CZ175: 0.8843872306 | DC175: 0.1422914706 | DD175: 0.8843872306 | DE175: 0.1094549774 | DF175: 0.6802978697 | DG175: 2.205608824 | DH175: 2.776451716
CI176: 88 | CJ176: 5.52920307 | CK176: 1.025221906 | CL176: 5.619148039 | CO176: 0 | CP176: 0 | CQ176: 0 | CR176: 0 | CS176: 0 | CT176: 0 | CW176: 88 | CX176: 5.52920307 | CY176: 0.1656127694 | CZ176: 0.9077085294 | DC176: 0.1656127694 | DD176: 0.9077085294 | DE176: 0.127394438 | DF176: 0.6982373303 | DG176: 2.223548284 | DH176: 2.794391176
CI177: 89 | CJ177: 5.592034923 | CK177: 1.178372033 | CL177: 5.754168039 | CO177: 0 | CP177: 0 | CQ177: 0 | CR177: 0 | CS177: 0 | CT177: 0 | CW177: 89 | CX177: 5.592034923 | CY177: 0.1903524054 | CZ177: 0.9295194525 | DC177: 0.1903524054 | DD177: 0.9295194525 | DE177: 0.1464249272 | DF177: 0.7150149634 | DG177: 2.242578773 | DH177: 2.81116881
CI178: 90 | CJ178: 5.654866776 | CK178: 1.33969793 | CL178: 5.879305232 | CO178: 0 | CP178: 0 | CQ178: 0 | CR178: 0 | CS178: 0 | CT178: 0 | CW178: 90 | CX178: 5.654866776 | CY178: 0.2164127425 | CZ178: 0.949733922 | DC178: 0.2164127425 | DD178: 0.949733922 | DE178: 0.1664713404 | DF178: 0.7305645554 | DG178: 2.262625187 | DH178: 2.826718402
CI179: 91 | CJ179: 5.71769863 | CK179: 1.508562916 | CL179: 5.994065758 | CO179: 0 | CP179: 0 | CQ179: 0 | CR179: 0 | CS179: 0 | CT179: 0 | CW179: 91 | CX179: 5.71769863 | CY179: 0.2436909326 | CZ179: 0.9682721609 | DC179: 0.2436909326 | DD179: 0.9682721609 | DE179: 0.1874545636 | DF179: 0.7448247391 | DG179: 2.28360841 | DH179: 2.840978585
CI180: 92 | CJ180: 5.780530483 | CK180: 1.684300559 | CL180: 6.09799671 | CO180: 0 | CP180: 0 | CQ180: 0 | CR180: 0 | CS180: 0 | CT180: 0 | CW180: 92 | CX180: 5.780530483 | CY180: 0.2720793211 | CZ180: 0.985061007 | DC180: 0.2720793211 | DD180: 0.985061007 | DE180: 0.2092917855 | DF180: 0.7577392362 | DG180: 2.305445632 | DH180: 2.853893082
CI181: 93 | CJ181: 5.843362336 | CK181: 1.866217302 | CL181: 6.190687921 | CO181: 0 | CP181: 0 | CQ181: 0 | CR181: 0 | CS181: 0 | CT181: 0 | CW181: 93 | CX181: 5.843362336 | CY181: 0.3014658719 | CZ181: 1.000034203 | DC181: 0.3014658719 | DD181: 1.000034203 | DE181: 0.2318968246 | DF181: 0.7692570789 | DG181: 2.328050671 | DH181: 2.865410925
CI182: 94 | CJ182: 5.906194189 | CK182: 2.053595204 | CL182: 6.271773579 | CO182: 0 | CP182: 0 | CQ182: 0 | CR182: 0 | CS182: 0 | CT182: 0 | CW182: 94 | CX182: 5.906194189 | CY182: 0.3317346098 | CZ182: 1.013132655 | DC182: 0.3317346098 | DD182: 1.013132655 | DE182: 0.2551804691 | DF182: 0.7793328116 | DG182: 2.351334315 | DH182: 2.875486658
CI183: 95 | CJ183: 5.969026042 | CK183: 2.245694768 | CL183: 6.340933678 | CO183: 0 | CP183: 0 | CQ183: 0 | CR183: 0 | CS183: 0 | CT183: 0 | CW183: 95 | CX183: 5.969026042 | CY183: 0.362766078 | CZ183: 1.024304671 | DC183: 0.362766078 | DD183: 1.024304671 | DE183: 0.2790508292 | DF183: 0.78792667 | DG183: 2.375204675 | DH183: 2.884080516
CI184: 96 | CJ184: 6.031857895 | CK184: 2.441757867 | CL184: 6.397895274 | CO184: 0 | CP184: 0 | CQ184: 0 | CR184: 0 | CS184: 0 | CT184: 0 | CW184: 96 | CX184: 6.031857895 | CY184: 0.3944378092 | CZ184: 1.03350616 | DC184: 0.3944378092 | DD184: 1.03350616 | DE184: 0.3034136994 | DF184: 0.7950047381 | DG184: 2.399567546 | DH184: 2.891158584
CI185: 97 | CJ185: 6.094689748 | CK185: 2.641010728 | CL185: 6.442433565 | CO185: 0 | CP185: 0 | CQ185: 0 | CR185: 0 | CS185: 0 | CT185: 0 | CW185: 97 | CX185: 6.094689748 | CY185: 0.4266248098 | CZ185: 1.040700807 | DC185: 0.4266248098 | DD185: 1.040700807 | DE185: 0.3281729306 | DF185: 0.800539082 | DG185: 2.424326777 | DH185: 2.896692928
CI186: 98 | CJ186: 6.157521601 | CK186: 2.842666991 | CL186: 6.474372779 | CO186: 0 | CP186: 0 | CQ186: 0 | CR186: 0 | CS186: 0 | CT186: 0 | CW186: 98 | CX186: 6.157521601 | CY186: 0.4592000524 | CZ186: 1.045860218 | DC186: 0.4592000524 | DD186: 1.045860218 | DE186: 0.3532308095 | DF186: 0.8045078601 | DG186: 2.449384656 | DH186: 2.900661706
CI187: 99 | CJ187: 6.220353454 | CK187: 3.045930812 | CL187: 6.493586867 | CO187: 0 | CP187: 0 | CQ187: 0 | CR187: 0 | CS187: 0 | CT187: 0 | CW187: 99 | CX187: 6.220353454 | CY187: 0.4920349772 | CZ187: 1.048964032 | DC187: 0.4920349772 | DD187: 1.048964032 | DE187: 0.378488444 | DF187: 0.8068954096 | DG187: 2.47464229 | DH187: 2.903049256
CI188: 100 | CJ188: 6.283185307 | CK188: 3.25 | CL188: 6.5 | CO188: 0 | CP188: 0 | CQ188: 0 | CR188: 0 | CS188: 0 | CT188: 0 | CW188: 100 | CX188: 6.283185307 | CY188: 0.525 | CZ188: 1.05 | DC188: 0.525 | DD188: 1.05 | DE188: 0.4038461538 | DF188: 0.8076923077 | DG188: 2.5 | DH188: 2.903846154
CO189: 0 | CP189: 0 | CQ189: 0 | CR189: 0 | CS189: =CS89 -> 0 | CT189: =CT89 -> 0 | DC189: 0 | DD189: 0

Sheet Known Inflow
B1: Registered User: | G1: Free Trial Version - Not For Commercial Use | AF1: © 2017 CivilWeb
B2: Your Logo / Company Details Here | G2: Project: | AF2: By:
G3: Calculation: | M3: Soakaway Design | BR3: Rainfall | BS3: Return Period | BT3: Storm duration
AF4: Approved: | BT4: 5 | BU4: 10 | BV4: 15 | BW4: 30 | BX4: 45 | BY4: 60 | BZ4: 120 | CA4: 240 | CB4: 480
G5: Sheet Number: | M5: 1 | T5: Date: | BR5: M5-60 | BS5: 1 | BT5: 55.5 | BU5: 38.8 | BV5: 30.7 | BW5: 20 | BX5: 15.3 | BY5: 12.7 | BZ5: 7.9 | CA5: 4.8 | CB5: 3
BO6: A | BP6: abc | BR6: 20 | BS6: 2 | BT6: 69 | BU6: 49.8 | BV6: 39.7 | BW6: 25.8 | BX6: 19.6 | BY6: 16.1 | BZ6: 9.8 | CA6: 5.9 | CB6: 4
H7: Catchment Details | BO7: B | BP7: def | BR7: r Ratio | BS7: 5 | BT7: 90.9 | BU7: 65 | BV7: 51.6 | BW7: 33.2 | BX7: 25.1 | BY7: 20.5 | BZ7: 12.4 | CA7: 7.4 | CB7: 4
H8: Catchment Area | Y8: 250 | AB8: m² | BO8: C | BP8: ghi | BR8: 0.4 | BS8: 10 | BT8: 104.2 | BU8: 75.3 | BV8: 59.9 | BW8: 38.7 | BX8: 29.4 | BY8: 24 | BZ8: 14.5 | CA8: 8.6 | CB8: 5
H9: Runoff Coefficient | Y9: 0.85 | BO9: D | BP9: jkl | BS9: 15 | BT9: 112.8 | BU9: 82 | BV9: 65.4 | BW9: 42.4 | BX9: 32.2 | BY9: 26.3 | BZ9: 15.9 | CA9: 9.4 | CB9: 6
H10: Design Storm Intensity | Y10: 75 | AB10: mm/hr | BO10: E | BP10: mno | BS10: 20 | BT10: 119.4 | BU10: 87.1 | BV10: 69.6 | BW10: 45.2 | BX10: 34.4 | BY10: 28.1 | BZ10: 17 | CA10: 10.1 | CB10: 6
H11: Design Storm Duration | Y11: 60 | AB11: mins | BO11: F | BP11: pqr | BS11: 25 | BT11: 124.8 | BU11: 91.3 | BV11: 73.1 | BW11: 47.5 | BX11: 36.2 | BY11: 29.6 | BZ11: 17.9 | CA11: 10.6 | CB11: 6
BO12: G | BP12: stu | BS12: 30 | BT12: 129.3 | BU12: 94.9 | BV12: 76 | BW12: 49.5 | BX12: 37.7 | BY12: 30.8 | BZ12: 18.6 | CA12: 11 | CB12: 6
H13: Ground Information | BO13: H | BP13: vw | BS13: 50 | BT13: 143 | BU13: 105.7 | BV13: 84.9 | BW13: 55.5 | BX13: 42.3 | BY13: 34.6 | BZ13: 20.9 | CA13: 12.3 | CB13: 7
BS14: 100 | BT14: 163.9 | BU14: 122.4 | BV14: 98.7 | BW14: 64.8 | BX14: 49.5 | BY14: 40.5 | BZ14: 24.5 | CA14: 14.3 | CB14: 8
H15: Infiltration Rate | T15: 0.2 | W15: m/hr | BJ15: Rectangular Trench/Pit | BO15: Rectangular Trench/Pit | BS15: 500 | BT15: 225 | BU15: 171.9 | BV15: 139.8 | BW15: 92.9 | BX15: 71.2 | BY15: 58.4 | BZ15: 35.2 | CA15: 20.5 | CB15: 12
H16: Factor of Safety | T16: 1.5 | BJ16: Perforated Manhole | BO16: Perforated Manhole | BS16: 1000 | BT16: 257.9 | BU16: 199 | BV16: 162.5 | BW16: 108.4 | BX16: 83.3 | BY16: 68.4 | BZ16: 41.2 | CA16: 23.8 | CB16: 14
BJ17: Manhole Within Pit
H18: Soakaway Design
BR19: Rainfall | BS19: Return Period | BT19: Storm duration
H20: Soakaway Shape | P20: Manhole Within Pit | BJ20: =MATCH(#REF!,BN5:BN16)+1 ->  | BO20: =MATCH(Y11,BS5:BS16)+1 -> 10 | BT20: 5 | BU20: 10 | BV20: 15 | BW20: 30 | BX20: 45 | BY20: 60 | BZ20: 120 | CA20: 240 | CB20: 480
H21: Number of Soakaways | T21: 1 | BR21: M5-60 | BS21: 1 | BT21: 47.9 | BU21: 33.2 | BV21: 26.2 | BW21: 16.8 | BX21: 12.8 | BY21: 10.6 | BZ21: 6.5 | CA21: 4 | CB21: 2
H22: =IF(P20="Perforated Manhole","","Length") -> Length | T22: 5 | W22: =IF(P20="Rectangular Trench/Pit","m","") ->  | BK22: =VLOOKUP(#REF!,BJ6:BK13,2,FALSE) ->  | BP22: =VLOOKUP(Y10,BO6:BP13,2,FALSE) ->  | BR22: 17 | BS22: 2 | BT22: 58.4 | BU22: 42.1 | BV22: 33.6 | BW22: 21.8 | BX22: 16.6 | BY22: 13.6 | BZ22: 8.3 | CA22: 5 | CB22: 3
H23: =IF(P20="Perforated Manhole","Diameter","Width") -> Width | T23: 2 | W23: m | BR23: r Ratio | BS23: 5 | BT23: 77.2 | BU23: 55.2 | BV23: 43.8 | BW23: 28.2 | BX23: 21.3 | BY23: 17.4 | BZ23: 10.5 | CA23: 6.3 | CB23: 4
H24: Effective Depth | T24: 4 | W24: m | BR24: 0.4 | BS24: 10 | BT24: 88.2 | BU24: 63.6 | BV24: 50.7 | BW24: 32.8 | BX24: 24.9 | BY24: 20.4 | BZ24: 12.3 | CA24: 7.4 | CB24: 4
H25: Void Percentage | T25: 30 | W25: % | BS25: 15 | BT25: 95.3 | BU25: 69.1 | BV25: 55.3 | BW25: 35.8 | BX25: 27.3 | BY25: 22.3 | BZ25: 13.5 | CA25: 8.1 | CB25: 5
H26: Additional Outflow (If Any) | T26: 0 | W26: l/s | BS26: 20 | BT26: 100.8 | BU26: 73.3 | BV26: 58.7 | BW26: 38.2 | BX26: 29.1 | BY26: 23.8 | BZ26: 14.4 | CA26: 8.6 | CB26: 5
H27: Base Infiltration Factor | T27: 0.5 | BS27: 25 | BT27: 105.2 | BU27: 76.7 | BV27: 61.6 | BW27: 40.1 | BX27: 30.5 | BY27: 25 | BZ27: 15.2 | CA27: 9.1 | CB27: 5
H28: Manhole Diameter | T28: 1050 | W28: mm | BS28: 30 | BT28: 108.9 | BU28: 79.7 | BV28: 64 | BW28: 41.7 | BX28: 31.8 | BY28: 26.1 | BZ28: 15.8 | CA28: 9.5 | CB28: 6
BJ29: =$T$26*Y11*60+((($T$15/60)*$BJ$82)/$T$16)*60*1000 -> 4400 | BS29: 50 | BT29: 120.1 | BU29: 88.4 | BV29: 71.3 | BW29: 46.7 | BX29: 35.6 | BY29: 29.2 | BZ29: 17.8 | CA29: 10.6 | CB29: 6
G30: Soakaway Plan | T30: Soakaway Cross Section | BS30: 100 | BT30: 137.2 | BU30: 101.9 | BV30: 82.6 | BW30: 54.3 | BX30: 41.6 | BY30: 34.2 | BZ30: 20.8 | CA30: 12.4 | CB30: 7
BS31: 500 | BT31: 187 | BU31: 141.6 | BV31: 116 | BW31: 77.3 | BX31: 59.5 | BY31: 49 | BZ31: 30 | CA31: 17.9 | CB31: 10
BS32: 1000 | BT32: 213.6 | BU32: 163.1 | BV32: 134.3 | BW32: 90 | BX32: 69.5 | BY32: 57.3 | BZ32: 35.2 | CA32: 20.9 | CB32: 12
BR35: Rainfall | BS35: Return Period | BT35: Storm duration
BT36: 5 | BU36: 10 | BV36: 15 | BW36: 30 | BX36: 45 | BY36: 60 | BZ36: 120 | CA36: 240 | CB36: 480
BR37: M5-60 | BS37: 1 | BT37: 34.9 | BU37: 25 | BV37: 19.9 | BW37: 13.2 | BX37: 10.3 | BY37: 8.6 | BZ37: 5.5 | CA37: 3.6 | CB37: 2
BR38: 14 | BS38: 2 | BT38: 41.2 | BU38: 30.7 | BV38: 25 | BW38: 16.9 | BX38: 13.3 | BY38: 11.1 | BZ38: 7.1 | CA38: 4.5 | CB38: 3
BR39: r Ratio | BS39: 5 | BT39: 54.8 | BU39: 40.5 | BV39: 32.9 | BW39: 22.1 | BX39: 17.2 | BY39: 14.3 | BZ39: 9.1 | CA39: 5.7 | CB39: 4
BR40: 0.3 | BS40: 10 | BT40: 62.3 | BU40: 46.3 | BV40: 37.8 | BW40: 25.6 | BX40: 20 | BY40: 16.7 | BZ40: 10.7 | CA40: 6.7 | CB40: 4
BS41: 15 | BT41: 67.1 | BU41: 50.1 | BV41: 41 | BW41: 27.9 | BX41: 21.8 | BY41: 18.3 | BZ41: 11.7 | CA41: 7.4 | CB41: 5
H42: Storage Volume Required | Q42: =MAX(0,(Y10*Y8*Y9/60)*Y11-BJ29*Y11/60)/1000 -> 11.5375 | T42: m³ | BS42: 20 | BT42: 70.8 | BU42: 53 | BV42: 43.4 | BW42: 29.6 | BX42: 23.2 | BY42: 19.4 | BZ42: 12.5 | CA42: 7.9 | CB42: 5
H43: Storage Area Provided | Q43: =IF(P20="Rectangular Trench/Pit",T21*T22*T23*T24*T25%,IF(P20="Manhole Within Pit",T21*T22*T23*T24*T25%+T21*T24*(PI()*((T28/2000)^2))*(95%-T25%),T21*T24*(PI()*((T23/2)^2))*T25%)) -> 14.25134384 | T43: m³ | AF43: =IF(Q42<Q43,"Acceptable","Too Small") -> Acceptable | BS43: 25 | BT43: 73.7 | BU43: 55.3 | BV43: 45.4 | BW43: 31.1 | BX43: 24.4 | BY43: 20.4 | BZ43: 13.1 | CA43: 8.3 | CB43: 5
BS44: 30 | BT44: 76.3 | BU44: 57.3 | BV44: 47 | BW44: 32.3 | BX44: 25.4 | BY44: 21.3 | BZ44: 13.7 | CA44: 8.6 | CB44: 5
H45: Time for Emptying 50% | Q45: =Q42/2/(BJ29/1000) -> 1.311079545 | S45: hours | AF45: =IF(Q45<24,"Acceptable","Too Slow") -> Acceptable | BS45: 50 | BT45: 83.8 | BU45: 63.2 | BV45: 52.1 | BW45: 36 | BX45: 28.3 | BY45: 23.8 | BZ45: 15.3 | CA45: 9.7 | CB45: 6
BS46: 100 | BT46: 95.3 | BU46: 72.3 | BV46: 59.8 | BW46: 41.7 | BX46: 32.9 | BY46: 27.7 | BZ46: 17.9 | CA46: 11.3 | CB46: 7
BS47: 500 | BT47: 128.2 | BU47: 98.7 | BV47: 82.5 | BW47: 58.6 | BX47: 46.7 | BY47: 39.4 | BZ47: 25.8 | CA47: 16.4 | CB47: 10
BS48: 1000 | BT48: 145.7 | BU48: 112.9 | BV48: 94.8 | BW48: 67.8 | BX48: 54.2 | BY48: 45.9 | BZ48: 30.1 | CA48: 19.2 | CB48: 12
BR51: Rainfall | BS51: Return Period | BT51: Storm duration
BT52: 5 | BU52: 10 | BV52: 15 | BW52: 30 | BX52: 45 | BY52: 60 | BZ52: 120 | CA52: 240 | CB52: 480 | CE52: dims
BR53: M5-60 | BS53: 1 | BT53: 41.9 | BU53: 29.9 | BV53: 23.9 | BW53: 16 | BX53: 12.6 | BY53: 10.6 | BZ53: 6.9 | CA53: 4.5 | CB53: 3 | CE53: =MIN(CO89:CO189) -> 1.5 | CF53: 5.4
BR54: 17 | BS54: 2 | BT54: 50.2 | BU54: 37.4 | BV54: 30.5 | BW54: 20.7 | BX54: 16.2 | BY54: 13.6 | BZ54: 8.7 | CA54: 5.6 | CB54: 4 | CE54: =MAX(CO89:CO189) -> 3.5 | CF54: 5.4
BR55: r Ratio | BS55: 5 | BT55: 66.5 | BU55: 49.2 | BV55: 40 | BW55: 26.9 | BX55: 20.9 | BY55: 17.4 | BZ55: 11.1 | CA55: 7 | CB55: 4
BR56: 0.3 | BS56: 10 | BT56: 75.8 | BU56: 56.5 | BV56: 46.2 | BW56: 31.2 | BX56: 24.4 | BY56: 20.4 | BZ56: 13 | CA56: 8.1 | CB56: 5 | CE56: -0.4 | CF56: =MIN(CP89:CP189) -> 0
BS57: 15 | BT57: 81.8 | BU57: 61.3 | BV57: 50.2 | BW57: 34.1 | BX57: 26.7 | BY57: 22.3 | BZ57: 14.2 | CA57: 8.9 | CB57: 5 | CD57: =IF(P20="Rectangular Trench/Pit",T22,T23)&"m" -> 2m | CE57: -0.4 | CF57: =MAX(CP89:CP189) -> 5
BS58: 20 | BT58: 86.4 | BU58: 64.9 | BV58: 53.3 | BW58: 36.3 | BX58: 28.5 | BY58: 23.8 | BZ58: 15.2 | CA58: 9.5 | CB58: 6 | CD58: =T23&"m" -> 2m
BS59: 25 | BT59: 90.1 | BU59: 67.9 | BV59: 55.9 | BW59: 38.1 | BX59: 29.9 | BY59: 25 | BZ59: 16 | CA59: 10 | CB59: 6 | CD59: =T24&"m" -> 4m | CE59: =CE53+(CE54-CE53)/2 -> 2.5 | CF59: =CF53 -> 5.4
BS60: 30 | BT60: 93.3 | BU60: 70.4 | BV60: 58 | BW60: 39.7 | BX60: 31.1 | BY60: 26.1 | BZ60: 16.7 | CA60: 10.4 | CB60: 6 | CE60: =CE57 -> -0.4 | CF60: =CF56+(CF57-CF56)/2 -> 2.5
BS61: 50 | BT61: 102.7 | BU61: 78 | BV61: 64.5 | BW61: 44.3 | BX61: 34.9 | BY61: 29.2 | BZ61: 18.7 | CA61: 11.7 | CB61: 7
BH62: 0 | BI62: 0 | BJ62: =BH62 -> 0 | BM62: 0 | BN62: 0 | BO62: =BM62 -> 0 | BS62: 100 | BT62: 117 | BU62: 89.5 | BV62: 74.6 | BW62: 51.6 | BX62: 40.7 | BY62: 34.2 | BZ62: 21.9 | CA62: 13.6 | CB62: 8 | CE62: =MIN(CJ76:CJ80) -> 1.5 | CF62: 5.4
BH63: =#REF! ->  | BI63: =#REF! ->  | BJ63: =BH63 ->  | BM63: =H90 -> 0 | BN63: =W90 -> 0 | BO63: =BM63 -> 0 | BS63: 500 | BT63: 158.5 | BU63: 123.5 | BV63: 104.2 | BW63: 73.2 | BX63: 58.2 | BY63: 49 | BZ63: 31.6 | CA63: 19.5 | CB63: 12 | CE63: =MAX(CJ76:CJ80) -> 3.5 | CF63: 5.4
BH64: =#REF! ->  | BI64: =#REF! ->  | BM64: 0 | BN64: 0 | BO64: 0 | BS64: 1000 | BT64: 180.6 | BU64: 141.8 | BV64: 120.4 | BW64: 85.1 | BX64: 67.9 | BY64: 57.3 | BZ64: 37 | CA64: 22.8 | CB64: 13
BH65: =#REF! ->  | BI65: =#REF! ->  | BM65: 0 | BN65: 0 | BO65: 0 | CE65: 5.4 | CF65: =MIN(CK76:CK80) -> 0.5
BH66: =#REF! ->  | BI66: =#REF! ->  | BM66: 0 | BN66: 0 | BO66: 0 | CE66: 5.4 | CF66: =MAX(CK76:CK80) -> 4.5
BH67: =#REF! ->  | BI67: =#REF! ->  | BM67: 0 | BN67: 0 | BO67: 0 | BR67: Rainfall | BS67: Return Period | BT67: Storm duration
BH68: =#REF! ->  | BI68: =#REF! ->  | BM68: 0 | BN68: 0 | BO68: 0 | BT68: 5 | BU68: 10 | BV68: 15 | BW68: 30 | BX68: 45 | BY68: 60 | BZ68: 120 | CA68: 240 | CB68: 480 | CE68: =CE62+(CE63-CE62)/2 -> 2.5 | CF68: =CF62 -> 5.4
BH69: =#REF! ->  | BI69: =#REF! ->  | BM69: 0 | BN69: 0 | BO69: 0 | BR69: M5-60 | BS69: 1 | BT69: 48.5 | BU69: 34.8 | BV69: 28 | BW69: 19 | BX69: 15 | BY69: 12.7 | BZ69: 8.3 | CA69: 5.4 | CB69: 3 | CE69: =CE66 -> 5.4 | CF69: =CF65+(CF66-CF65)/2 -> 2.5
BH70: =#REF! ->  | BI70: =#REF! ->  | BM70: 0 | BN70: 0 | BO70: 0 | BR70: 20 | BS70: 2 | BT70: 59.3 | BU70: 44.3 | BV70: 36.1 | BW70: 24.5 | BX70: 19.2 | BY70: 16.1 | BZ70: 10.4 | CA70: 6.6 | CB70: 4
BH71: =#REF! ->  | BI71: =#REF! ->  | BM71: 0 | BN71: 0 | BO71: 0 | BR71: r Ratio | BS71: 5 | BT71: 78.3 | BU71: 58 | BV71: 47 | BW71: 31.6 | BX71: 24.6 | BY71: 20.5 | BZ71: 13 | CA71: 8.2 | CB71: 5
BR72: 0.3 | BS72: 10 | BT72: 89.5 | BU72: 66.9 | BV72: 54.6 | BW72: 36.9 | BX72: 28.8 | BY72: 24 | BZ72: 15.2 | CA72: 9.5 | CB72: 6
BS73: 15 | BT73: 96.8 | BU73: 72.7 | BV73: 59.5 | BW73: 40.4 | BX73: 31.5 | BY73: 26.3 | BZ73: 16.7 | CA73: 10.4 | CB73: 6
BS74: 20 | BT74: 102.3 | BU74: 77.2 | BV74: 63.3 | BW74: 43 | BX74: 33.7 | BY74: 28.1 | BZ74: 17.8 | CA74: 11 | CB74: 7 | CE74: 2
BS75: 25 | BT75: 106.8 | BU75: 80.8 | BV75: 66.4 | BW75: 45.2 | BX75: 35.4 | BY75: 29.6 | BZ75: 18.7 | CA75: 11.6 | CB75: 7 | CE75: rec2 | CH75: master | CJ75: master2
BS76: 30 | BT76: 110.6 | BU76: 83.9 | BV76: 69 | BW76: 47.1 | BX76: 36.9 | BY76: 30.8 | BZ76: 19.5 | CA76: 12.1 | CB76: 7 | CE76: 0 | CF76: 0 | CH76: =IF(MAX($CE$76:$CF$80)>5,CE76*(5/MAX($CE$76:$CF$80)),CE76) -> 0 | CI76: =IF(MAX($CE$76:$CF$80)>5,CF76*(5/MAX($CE$76:$CF$80)),CF76) -> 0 | CJ76: =IF(MAX($CH$76:$CH$80)=5,CH76,CH76+0.5*(5-MAX($CH$76:$CH$80))) -> 1.5 | CK76: =IF(MAX($CI$76:$CI$80)=5,CI76,CI76+0.5*(5-MAX($CI$76:$CI$80))) -> 0.5
BS77: 50 | BT77: 122 | BU77: 93.2 | BV77: 76.9 | BW77: 52.7 | BX77: 41.4 | BY77: 34.6 | BZ77: 21.9 | CA77: 13.5 | CB77: 8 | CE77: =T23 -> 2 | CF77: 0 | CH77: =IF(MAX($CE$76:$CF$80)>5,CE77*(5/MAX($CE$76:$CF$80)),CE77) -> 2 | CI77: 0 | CJ77: =IF(MAX($CH$76:$CH$80)=5,CH77,CH77+0.5*(5-MAX($CH$76:$CH$80))) -> 3.5 | CK77: =IF(MAX($CI$76:$CI$80)=5,CI77,CI77+0.5*(5-MAX($CI$76:$CI$80))) -> 0.5
BS78: 100 | BT78: 139.4 | BU78: 107.6 | BV78: 89.2 | BW78: 61.5 | BX78: 48.4 | BY78: 40.5 | BZ78: 25.6 | CA78: 15.6 | CB78: 9 | CE78: =CE77 -> 2 | CF78: =T24 -> 4 | CH78: 2 | CI78: 4 | CJ78: 3.5 | CK78: 4.5
BS79: 500 | BT79: 190 | BU79: 150 | BV79: 125.9 | BW79: 88 | BX79: 69.7 | BY79: 58.4 | BZ79: 36.9 | CA79: 22.1 | CB79: 13 | CE79: 0 | CF79: =CF78 -> 4 | CH79: 0 | CI79: 4 | CJ79: 1.5 | CK79: 4.5
BS80: 1000 | BT80: 217.1 | BU80: 173.1 | BV80: 145.9 | BW80: 102.7 | BX80: 81.5 | BY80: 68.4 | BZ80: 43.1 | CA80: 25.7 | CB80: 15 | CE80: =CE76 -> 0 | CF80: =CF76 -> 0 | CH80: 0 | CI80: 0 | CJ80: 1.5 | CK80: 0.5
BI82: =T21*(2*T22*T24*0.5+2*T23*T24*0.5+T22*T23*T27) -> 33 | BJ82: =IF(P20="Perforated Manhole",BI83,BI82) -> 33 | BN82: =T68*(T69*T71+T70*T71+T69*T70) -> 0 | BO82: =IF(P67="Rectangular Trench/Pit",BN82,BN83) -> 0
BI83: =T21*((PI()*((T23/2)^2))*T27+0.5*T24*0.5*(2*PI()*(T23/2))) -> 7.853981634 | BN83: =T68*((PI()*((T70/2)^2))+T71*0.5*(2*PI()*(T70/2))) -> 0 | BR83: Rainfall | BS83: Return Period | BT83: Storm duration
BT84: 5 | BU84: 10 | BV84: 15 | BW84: 30 | BX84: 45 | BY84: 60 | BZ84: 120 | CA84: 240 | CB84: 480
BR85: M5-60 | BS85: 1 | BT85: 40.2 | BU85: 27.8 | BV85: 21.7 | BW85: 13.8 | BX85: 10.5 | BY85: 8.6 | BZ85: 5.3 | CA85: 3.2 | CB85: 2
BR86: 14 | BS86: 2 | BT86: 47.9 | BU86: 34.5 | BV86: 27.5 | BW86: 17.8 | BX86: 13.5 | BY86: 11.1 | BZ86: 6.8 | CA86: 4.1 | CB86: 2
BI87: 0 | BJ87: =#REF! ->  | BN87: 0 | BO87: =P101 -> 0 | BR87: r Ratio | BS87: 5 | BT87: 63.5 | BU87: 45.5 | BV87: 36.1 | BW87: 23.2 | BX87: 17.6 | BY87: 14.3 | BZ87: 8.7 | CA87: 5.2 | CB87: 3 | CE87: 1 | CI87: rec 1 | CW87: 1 | DA87: rec 1
BI88: =VLOOKUP(BJ87,BI62:BJ71,2,FALSE) ->  | BJ88: =BJ87 ->  | BN88: =VLOOKUP(BO87,BN62:BO71,2,FALSE) -> 0 | BO88: =BO87 -> 0 | BR88: 0.4 | BS88: 10 | BT88: 72.4 | BU88: 52.1 | BV88: 41.5 | BW88: 26.9 | BX88: 20.4 | BY88: 16.7 | BZ88: 10.1 | CA88: 6.1 | CB88: 4 | CE88: cyl | CI88: x | CJ88: y | CK88: masterx | CL88: mastery | CM88: master2 | CO88: master3 | CW88: cyl | DA88: x | DB88: y | DC88: masterx | DD88: mastery | DE88: master2 | DG88: master3
BS89: 15 | BT89: 78.1 | BU89: 56.4 | BV89: 45.1 | BW89: 29.3 | BX89: 22.3 | BY89: 18.3 | BZ89: 11.1 | CA89: 6.7 | CB89: 4 | CE89: 1 | CF89: =CE89%*2*PI() -> 0.06283185307 | CG89: =($T$22/2)*SIN(CF89)+T$22/2 -> 2.656976299 | CH89: =($T$22/2)*COS(CF89)+T$22/2 -> 4.995066821 | CI89: 0 | CJ89: 0 | CK89: =IF(P$20="Perforated Manhole",CG89,CI89) -> 0 | CL89: =IF(P$20="Perforated Manhole",CH89,CJ89) -> 0 | CM89: =IF(MAX($CK$89:$CL$189)>5,CK89*(5/MAX($CK$89:$CL$189)),CK89) -> 0 | CN89: =IF(MAX($CK$89:$CL$189)>5,CL89*(5/MAX($CK$89:$CL$189)),CL89) -> 0 | CO89: =IF(MAX($CM$89:$CM$189)=5,CM89,CM89+0.5*(5-MAX($CM$89:$CM$189))) -> 1.5 | CP89: =IF(MAX($CN$89:$CN$189)=5,CN89,CN89+0.5*(5-MAX($CN$89:$CN$189))) -> 0 | CW89: 1 | CX89: =CW89%*2*PI() -> 0.06283185307 | CY89: =($T$28*0.001/2)*SIN(CX89)+T$28*0.001/2 -> 0.5579650228 | CZ89: =($T$28*0.001/2)*COS(CX89)+T$28*0.001/2 -> 1.048964032 | DA89: 0 | DB89: 0 | DC89: =IF(P$20="Manhole Within Pit",CY89,NA()) -> 0.5579650228 | DD89: =IF(P$20="Manhole Within Pit",CZ89,NA()) -> 1.048964032 | DE89: =IF(MAX($CO$89:$CP$189)>5,DC89*(5/MAX($CO$89:$CP$189)),DC89) -> 0.5579650228 | DF89: =IF(MAX($CO$89:$CP$189)>5,DD89*(5/MAX($CO$89:$CP$189)),DD89) -> 1.048964032 | DG89: =IF(MAX($CQ$89:$CQ$189)=5,DE89,DE89+0.5*(5-MAX($CQ$89:$CQ$189)))-$DF$188/2+($CS$90-$CS$89)/2 -> 2.532965023 | DH89: =IF(MAX($CR$89:$CR$189)=5,DF89,DF89+0.5*(5-MAX($CR$89:$CR$189)))-$DF$188/2+($CT$91-$CT$90)/2 -> 3.023964032
BS90: 20 | BT90: 82.4 | BU90: 59.7 | BV90: 47.8 | BW90: 31.2 | BX90: 23.7 | BY90: 19.4 | BZ90: 11.8 | CA90: 7.1 | CB90: 5 | CE90: 2 | CF90: 0.1256637061 | CG90: =($T$22/2)*SIN(CF90)+T$22/2 -> 2.813333084 | CH90: =($T$22/2)*COS(CF90)+T$22/2 -> 4.980286753 | CI90: =T23 -> 2 | CJ90: 0 | CK90: =IF(P$20="Perforated Manhole",CG90,CI90) -> 2 | CL90: =IF(P$20="Perforated Manhole",CH90,CJ90) -> 0 | CM90: =IF(MAX($CK$89:$CL$189)>5,CK90*(5/MAX($CK$89:$CL$189)),CK90) -> 2 | CN90: 0 | CO90: =IF(MAX($CM$89:$CM$189)=5,CM90,CM90+0.5*(5-MAX($CM$89:$CM$189))) -> 3.5 | CP90: =IF(MAX($CN$89:$CN$189)=5,CN90,CN90+0.5*(5-MAX($CN$89:$CN$189))) -> 0 | CW90: 2 | CX90: =CW90%*2*PI() -> 0.1256637061 | CY90: =($T$28*0.001/2)*SIN(CX90)+T$28*0.001/2 -> 0.5907999476 | CZ90: =($T$28*0.001/2)*COS(CX90)+T$28*0.001/2 -> 1.045860218 | DA90: =AH68 -> 0 | DB90: 0 | DC90: =IF(P$20="Manhole Within Pit",CY90,NA()) -> 0.5907999476 | DD90: =IF(P$20="Manhole Within Pit",CZ90,NA()) -> 1.045860218 | DE90: =IF(MAX($CO$89:$CP$189)>5,DC90*(5/MAX($CO$89:$CP$189)),DC90) -> 0.5907999476 | DF90: 1.045860218 | DG90: =IF(MAX($CQ$89:$CQ$189)=5,DE90,DE90+0.5*(5-MAX($CQ$89:$CQ$189)))-$DF$188/2+($CS$90-$CS$89)/2 -> 2.565799948 | DH90: =IF(MAX($CR$89:$CR$189)=5,DF90,DF90+0.5*(5-MAX($CR$89:$CR$189)))-$DF$188/2+($CT$91-$CT$90)/2 -> 3.020860218
BS91: 25 | BT91: 85.9 | BU91: 62.4 | BV91: 50 | BW91: 32.7 | BX91: 24.9 | BY91: 20.4 | BZ91: 12.5 | CA91: 7.5 | CB91: 5 | CE91: 3 | CF91: 0.1884955592 | CG91: 2.968453286 | CH91: 4.955718127 | CI91: =CI90 -> 2 | CJ91: =T22 -> 5 | CK91: 2 | CL91: 5 | CM91: 2 | CN91: 5 | CO91: 3.5 | CP91: 5 | CW91: 3 | CX91: 0.1884955592 | CY91: 0.6233751902 | CZ91: 1.040700807 | DA91: =DA90 -> 0 | DB91: =AH67 -> 0 | DC91: 0.6233751902 | DD91: 1.040700807 | DE91: 0.6233751902 | DF91: 1.040700807 | DG91: 2.59837519 | DH91: 3.015700807
BS92: 30 | BT92: 88.9 | BU92: 64.7 | BV92: 51.9 | BW92: 34 | BX92: 25.9 | BY92: 21.3 | BZ92: 13 | CA92: 7.8 | CB92: 5 | CE92: 4 | CF92: 0.2513274123 | CG92: 3.121724718 | CH92: 4.921457903 | CI92: =CI89 -> 0 | CJ92: =CJ91 -> 5 | CK92: 0 | CL92: 5 | CM92: 0 | CN92: 5 | CO92: 1.5 | CP92: 5 | CW92: 4 | CX92: 0.2513274123 | CY92: 0.6555621908 | CZ92: 1.03350616 | DA92: =DA89 -> 0 | DB92: =AH67 -> 0 | DC92: 0.6555621908 | DD92: 1.03350616 | DE92: 0.6555621908 | DF92: 1.03350616 | DG92: 2.630562191 | DH92: 3.00850616
BS93: 50 | BT93: 97.9 | BU93: 71.5 | BV93: 57.6 | BW93: 37.9 | BX93: 29 | BY93: 23.8 | BZ93: 14.6 | CA93: 8.8 | CB93: 5 | CE93: 5 | CF93: 0.3141592654 | CG93: 3.272542486 | CH93: 4.877641291 | CI93: =CI89 -> 0 | CJ93: =CJ89 -> 0 | CK93: 0 | CL93: 0 | CM93: 0 | CN93: 0 | CO93: 1.5 | CP93: 0 | CW93: 5 | CX93: 0.3141592654 | CY93: 0.687233922 | CZ93: 1.024304671 | DA93: =DA89 -> 0 | DB93: =DB89 -> 0 | DC93: 0.687233922 | DD93: 1.024304671 | DE93: 0.687233922 | DF93: 1.024304671 | DG93: 2.662233922 | DH93: 2.999304671
BS94: 100 | BT94: 111.4 | BU94: 82 | BV94: 66.3 | BW94: 43.9 | BX94: 33.7 | BY94: 27.7 | BZ94: 17 | CA94: 10.2 | CB94: 6 | CE94: 6 | CF94: 0.3769911184 | CG94: 3.420311382 | CH94: 4.824441215 | CK94: 0 | CL94: 0 | CM94: 0 | CN94: 0 | CO94: 1.5 | CP94: 0 | CW94: 6 | CX94: 0.3769911184 | CY94: 0.7182653902 | CZ94: 1.013132655 | DC94: 0.7182653902 | DD94: 1.013132655 | DE94: 0.7182653902 | DF94: 1.013132655 | DG94: 2.69326539 | DH94: 2.988132655
BS95: 500 | BT95: 150.7 | BU95: 112.6 | BV95: 92 | BW95: 61.9 | BX95: 47.8 | BY95: 39.4 | BZ95: 24.4 | CA95: 14.8 | CB95: 7 | CE95: 7 | CF95: 0.4398229715 | CG95: 3.564448229 | CH95: 4.762067631 | CK95: 0 | CL95: 0 | CM95: 0 | CN95: 0 | CO95: 1.5 | CP95: 0 | CW95: 7 | CX95: 0.4398229715 | CY95: 0.7485341281 | CZ95: 1.000034203 | DC95: 0.7485341281 | DD95: 1.000034203 | DE95: 0.7485341281 | DF95: 1.000034203 | DG95: 2.723534128 | DH95: 2.975034203
BS96: 1000 | BT96: 171.6 | BU96: 129 | BV96: 106 | BW96: 71.8 | BX96: 55.5 | BY96: 45.9 | BZ96: 28.5 | CA96: 17.3 | CB96: 10 | CE96: 8 | CF96: 0.5026548246 | CG96: 3.704384185 | CH96: 4.6907667 | CK96: 0 | CL96: 0 | CM96: 0 | CN96: 0 | CO96: 1.5 | CP96: 0 | CW96: 8 | CX96: 0.5026548246 | CY96: 0.7779206789 | CZ96: 0.985061007 | DC96: 0.7779206789 | DD96: 0.985061007 | DE96: 0.7779206789 | DF96: 0.985061007 | DG96: 2.752920679 | DH96: 2.960061007
CE97: 9 | CF97: 0.5654866776 | CG97: 3.839566987 | CH97: 4.610819814 | CK97: 0 | CL97: 0 | CM97: 0 | CN97: 0 | CO97: 1.5 | CP97: 0 | CW97: 9 | CX97: 0.5654866776 | CY97: 0.8063090674 | CZ97: 0.9682721609 | DC97: 0.8063090674 | DD97: 0.9682721609 | DE97: 0.8063090674 | DF97: 0.9682721609 | DG97: 2.781309067 | DH97: 2.943272161
CE98: 10 | CF98: 0.6283185307 | CG98: 3.969463131 | CH98: 4.522542486 | CK98: 0 | CL98: 0 | CM98: 0 | CN98: 0 | CO98: 1.5 | CP98: 0 | CW98: 10 | CX98: 0.6283185307 | CY98: 0.8335872575 | CZ98: 0.949733922 | DC98: 0.8335872575 | DD98: 0.949733922 | DE98: 0.8335872575 | DF98: 0.949733922 | DG98: 2.808587257 | DH98: 2.924733922
BR99: Rainfall | BS99: Return Period | BT99: Storm duration | CE99: 11 | CF99: 0.6911503838 | CG99: 4.093559974 | CH99: 4.426283107 | CK99: 0 | CL99: 0 | CM99: 0 | CN99: 0 | CO99: 1.5 | CP99: 0 | CW99: 11 | CX99: 0.6911503838 | CY99: 0.8596475946 | CZ99: 0.9295194525 | DC99: 0.8596475946 | DD99: 0.9295194525 | DE99: 0.8596475946 | DF99: 0.9295194525 | DG99: 2.834647595 | DH99: 2.904519452
BT100: 5 | BU100: 10 | BV100: 15 | BW100: 30 | BX100: 45 | BY100: 60 | BZ100: 120 | CA100: 240 | CB100: 480 | CE100: 12 | CF100: 0.7539822369 | CG100: 4.211367765 | CH100: 4.322421569 | CK100: 0 | CL100: 0 | CM100: 0 | CN100: 0 | CO100: 1.5 | CP100: 0 | CW100: 12 | CX100: 0.7539822369 | CY100: 0.8843872306 | CZ100: 0.9077085294 | DC100: 0.8843872306 | DD100: 0.9077085294 | DE100: 0.8843872306 | DF100: 0.9077085294 | DG100: 2.859387231 | DH100: 2.882708529
BR101: M5-60 | BS101: 1 | BT101: 34.4 | BU101: 25.7 | BV101: 21.2 | BW101: 15 | BX101: 12.2 | BY101: 10.6 | BZ101: 7.5 | CA101: 5.3 | CB101: 4 | CE101: 13 | CF101: 0.8168140899 | CG101: 4.322421569 | CH101: 4.211367765 | CK101: 0 | CL101: 0 | CM101: 0 | CN101: 0 | CO101: 1.5 | CP101: 0 | CW101: 13 | CX101: 0.8168140899 | CY101: 0.9077085294 | CZ101: 0.8843872306 | DC101: 0.9077085294 | DD101: 0.8843872306 | DE101: 0.9077085294 | DF101: 0.8843872306 | DG101: 2.882708529 | DH101: 2.859387231
BR102: 17 | BS102: 2 | BT102: 40.6 | BU102: 31.7 | BV102: 26.7 | BW102: 19.3 | BX102: 15.8 | BY102: 13.6 | BZ102: 9.4 | CA102: 6.5 | CB102: 4 | CE102: 14 | CF102: 0.879645943 | CG102: 4.426283107 | CH102: 4.093559974 | CK102: 0 | CL102: 0 | CM102: 0 | CN102: 0 | CO102: 1.5 | CP102: 0 | CW102: 14 | CX102: 0.879645943 | CY102: 0.9295194525 | CZ102: 0.8596475946 | DC102: 0.9295194525 | DD102: 0.8596475946 | DE102: 0.9295194525 | DF102: 0.8596475946 | DG102: 2.904519452 | DH102: 2.834647595
BR103: r Ratio | BS103: 5 | BT103: 54 | BU103: 41.8 | BV103: 35.1 | BW103: 25.1 | BX103: 20.3 | BY103: 17.4 | BZ103: 11.9 | CA103: 8 | CB103: 5 | CE103: 15 | CF103: 0.9424777961 | CG103: 4.522542486 | CH103: 3.969463131 | CK103: 0 | CL103: 0 | CM103: 0 | CN103: 0 | CO103: 1.5 | CP103: 0 | CW103: 15 | CX103: 0.9424777961 | CY103: 0.949733922 | CZ103: 0.8335872575 | DC103: 0.949733922 | DD103: 0.8335872575 | DE103: 0.949733922 | DF103: 0.8335872575 | DG103: 2.924733922 | DH103: 2.808587257
BR104: 0.2 | BS104: 10 | BT104: 61.3 | BU104: 47.9 | BV104: 40.4 | BW104: 29.1 | BX104: 23.7 | BY104: 20.4 | BZ104: 13.9 | CA104: 9.3 | CB104: 6 | CE104: 16 | CF104: 1.005309649 | CG104: 4.610819814 | CH104: 3.839566987 | CK104: 0 | CL104: 0 | CM104: 0 | CN104: 0 | CO104: 1.5 | CP104: 0 | CW104: 16 | CX104: 1.005309649 | CY104: 0.9682721609 | CZ104: 0.8063090674 | DC104: 0.9682721609 | DD104: 0.8063090674 | DE104: 0.9682721609 | DF104: 0.8063090674 | DG104: 2.943272161 | DH104: 2.781309067
BS105: 15 | BT105: 66.1 | BU105: 51.8 | BV105: 43.8 | BW105: 31.8 | BX105: 25.9 | BY105: 22.3 | BZ105: 15.3 | CA105: 10.2 | CB105: 7 | CE105: 17 | CF105: 1.068141502 | CG105: 4.6907667 | CH105: 3.704384185 | CK105: 0 | CL105: 0 | CM105: 0 | CN105: 0 | CO105: 1.5 | CP105: 0 | CW105: 17 | CX105: 1.068141502 | CY105: 0.985061007 | CZ105: 0.7779206789 | DC105: 0.985061007 | DD105: 0.7779206789 | DE105: 0.985061007 | DF105: 0.7779206789 | DG105: 2.960061007 | DH105: 2.752920679
BS106: 20 | BT106: 69.7 | BU106: 54.8 | BV106: 46.5 | BW106: 33.8 | BX106: 27.6 | BY106: 23.8 | BZ106: 16.3 | CA106: 10.8 | CB106: 7 | CE106: 18 | CF106: 1.130973355 | CG106: 4.762067631 | CH106: 3.564448229 | CK106: 0 | CL106: 0 | CM106: 0 | CN106: 0 | CO106: 1.5 | CP106: 0 | CW106: 18 | CX106: 1.130973355 | CY106: 1.000034203 | CZ106: 0.7485341281 | DC106: 1.000034203 | DD106: 0.7485341281 | DE106: 1.000034203 | DF106: 0.7485341281 | DG106: 2.975034203 | DH106: 2.723534128
BS107: 25 | BT107: 72.6 | BU107: 57.2 | BV107: 48.6 | BW107: 35.5 | BX107: 29 | BY107: 25 | BZ107: 17.1 | CA107: 11.4 | CB107: 7 | CE107: 19 | CF107: 1.193805208 | CG107: 4.824441215 | CH107: 3.420311382 | CK107: 0 | CL107: 0 | CM107: 0 | CN107: 0 | CO107: 1.5 | CP107: 0 | CW107: 19 | CX107: 1.193805208 | CY107: 1.013132655 | CZ107: 0.7182653902 | DC107: 1.013132655 | DD107: 0.7182653902 | DE107: 1.013132655 | DF107: 0.7182653902 | DG107: 2.988132655 | DH107: 2.69326539
BS108: 30 | BT108: 75.1 | BU108: 59.3 | BV108: 50.4 | BW108: 36.9 | BX108: 30.2 | BY108: 26.1 | BZ108: 17.9 | CA108: 11.8 | CB108: 8 | CE108: 20 | CF108: 1.256637061 | CG108: 4.877641291 | CH108: 3.272542486 | CK108: 0 | CL108: 0 | CM108: 0 | CN108: 0 | CO108: 1.5 | CP108: 0 | CW108: 20 | CX108: 1.256637061 | CY108: 1.024304671 | CZ108: 0.687233922 | DC108: 1.024304671 | DD108: 0.687233922 | DE108: 1.024304671 | DF108: 0.687233922 | DG108: 2.999304671 | DH108: 2.662233922
BS109: 50 | BT109: 82.5 | BU109: 65.5 | BV109: 55.9 | BW109: 41.2 | BX109: 33.8 | BY109: 29.2 | BZ109: 20.1 | CA109: 13.2 | CB109: 9 | CE109: 21 | CF109: 1.319468915 | CG109: 4.921457903 | CH109: 3.121724718 | CK109: 0 | CL109: 0 | CM109: 0 | CN109: 0 | CO109: 1.5 | CP109: 0 | CW109: 21 | CX109: 1.319468915 | CY109: 1.03350616 | CZ109: 0.6555621908 | DC109: 1.03350616 | DD109: 0.6555621908 | DE109: 1.03350616 | DF109: 0.6555621908 | DG109: 3.00850616 | DH109: 2.630562191
BS110: 100 | BT110: 93.8 | BU110: 74.9 | BV110: 64.3 | BW110: 47.9 | BX110: 39.5 | BY110: 34.2 | BZ110: 23.5 | CA110: 15.4 | CB110: 10 | CE110: 22 | CF110: 1.382300768 | CG110: 4.955718127 | CH110: 2.968453286 | CK110: 0 | CL110: 0 | CM110: 0 | CN110: 0 | CO110: 1.5 | CP110: 0 | CW110: 22 | CX110: 1.382300768 | CY110: 1.040700807 | CZ110: 0.6233751902 | DC110: 1.040700807 | DD110: 0.6233751902 | DE110: 1.040700807 | DF110: 0.6233751902 | DG110: 3.015700807 | DH110: 2.59837519
BS111: 500 | BT111: 126.2 | BU111: 102.4 | BV111: 89.1 | BW111: 67.8 | BX111: 56.4 | BY111: 49 | BZ111: 33.9 | CA111: 21.8 | CB111: 14 | CE111: 23 | CF111: 1.445132621 | CG111: 4.980286753 | CH111: 2.813333084 | CK111: 0 | CL111: 0 | CM111: 0 | CN111: 0 | CO111: 1.5 | CP111: 0 | CW111: 23 | CX111: 1.445132621 | CY111: 1.045860218 | CZ111: 0.5907999476 | DC111: 1.045860218 | DD111: 0.5907999476 | DE111: 1.045860218 | DF111: 0.5907999476 | DG111: 3.020860218 | DH111: 2.565799948
BS112: 1000 | BT112: 143.4 | BU112: 117.2 | BV112: 102.5 | BW112: 78.7 | BX112: 65.7 | BY112: 57.3 | BZ112: 39.7 | CA112: 25.3 | CB112: 16 | CE112: 24 | CF112: 1.507964474 | CG112: 4.995066821 | CH112: 2.656976299 | CK112: 0 | CL112: 0 | CM112: 0 | CN112: 0 | CO112: 1.5 | CP112: 0 | CW112: 24 | CX112: 1.507964474 | CY112: 1.048964032 | CZ112: 0.5579650228 | DC112: 1.048964032 | DD112: 0.5579650228 | DE112: 1.048964032 | DF112: 0.5579650228 | DG112: 3.023964032 | DH112: 2.532965023
CE113: 25 | CF113: 1.570796327 | CG113: 5 | CH113: 2.5 | CK113: 0 | CL113: 0 | CM113: 0 | CN113: 0 | CO113: 1.5 | CP113: 0 | CW113: 25 | CX113: 1.570796327 | CY113: 1.05 | CZ113: 0.525 | DC113: 1.05 | DD113: 0.525 | DE113: 1.05 | DF113: 0.525 | DG113: 3.025 | DH113: 2.5
CE114: 26 | CF114: 1.63362818 | CG114: 4.995066821 | CH114: 2.343023701 | CK114: 0 | CL114: 0 | CM114: 0 | CN114: 0 | CO114: 1.5 | CP114: 0 | CW114: 26 | CX114: 1.63362818 | CY114: 1.048964032 | CZ114: 0.4920349772 | DC114: 1.048964032 | DD114: 0.4920349772 | DE114: 1.048964032 | DF114: 0.4920349772 | DG114: 3.023964032 | DH114: 2.467034977
BR115: Rainfall | BS115: Return Period | BT115: Storm duration | CE115: 27 | CF115: 1.696460033 | CG115: 4.980286753 | CH115: 2.186666916 | CK115: 0 | CL115: 0 | CM115: 0 | CN115: 0 | CO115: 1.5 | CP115: 0 | CW115: 27 | CX115: 1.696460033 | CY115: 1.045860218 | CZ115: 0.4592000524 | DC115: 1.045860218 | DD115: 0.4592000524 | DE115: 1.045860218 | DF115: 0.4592000524 | DG115: 3.020860218 | DH115: 2.434200052
BT116: 5 | BU116: 10 | BV116: 15 | BW116: 30 | BX116: 45 | BY116: 60 | BZ116: 120 | CA116: 240 | CB116: 480 | CE116: 28 | CF116: 1.759291886 | CG116: 4.955718127 | CH116: 2.031546714 | CK116: 0 | CL116: 0 | CM116: 0 | CN116: 0 | CO116: 1.5 | CP116: 0 | CW116: 28 | CX116: 1.759291886 | CY116: 1.040700807 | CZ116: 0.4266248098 | DC116: 1.040700807 | DD116: 0.4266248098 | DE116: 1.040700807 | DF116: 0.4266248098 | DG116: 3.015700807 | DH116: 2.40162481
BR117: M5-60 | BS117: 1 | BT117: 28.3 | BU117: 21.6 | BV117: 17.7 | BW117: 12.4 | BX117: 10 | BY117: 8.6 | BZ117: 6 | CA117: 4.2 | CB117: 3 | CE117: 29 | CF117: 1.822123739 | CG117: 4.921457903 | CH117: 1.878275282 | CK117: 0 | CL117: 0 | CM117: 0 | CN117: 0 | CO117: 1.5 | CP117: 0 | CW117: 29 | CX117: 1.822123739 | CY117: 1.03350616 | CZ117: 0.3944378092 | DC117: 1.03350616 | DD117: 0.3944378092 | DE117: 1.03350616 | DF117: 0.3944378092 | DG117: 3.00850616 | DH117: 2.369437809
BR118: 14 | BS118: 2 | BT118: 33.3 | BU118: 26 | BV118: 21.9 | BW118: 15.8 | BX118: 12.9 | BY118: 11.1 | BZ118: 7.7 | CA118: 5.3 | CB118: 4 | CE118: 30 | CF118: 1.884955592 | CG118: 4.877641291 | CH118: 1.727457514 | CK118: 0 | CL118: 0 | CM118: 0 | CN118: 0 | CO118: 1.5 | CP118: 0 | CW118: 30 | CX118: 1.884955592 | CY118: 1.024304671 | CZ118: 0.362766078 | DC118: 1.024304671 | DD118: 0.362766078 | DE118: 1.024304671 | DF118: 0.362766078 | DG118: 2.999304671 | DH118: 2.337766078
BR119: r Ratio | BS119: 5 | BT119: 44.4 | BU119: 34.4 | BV119: 28.9 | BW119: 20.7 | BX119: 16.7 | BY119: 14.3 | BZ119: 9.8 | CA119: 6.6 | CB119: 4 | CE119: 31 | CF119: 1.947787445 | CG119: 4.824441215 | CH119: 1.579688618 | CK119: 0 | CL119: 0 | CM119: 0 | CN119: 0 | CO119: 1.5 | CP119: 0 | CW119: 31 | CX119: 1.947787445 | CY119: 1.013132655 | CZ119: 0.3317346098 | DC119: 1.013132655 | DD119: 0.3317346098 | DE119: 1.013132655 | DF119: 0.3317346098 | DG119: 2.988132655 | DH119: 2.30673461
BR120: 0.2 | BS120: 10 | BT120: 50.4 | BU120: 39.3 | BV120: 33.1 | BW120: 23.9 | BX120: 19.4 | BY120: 16.7 | BZ120: 11.5 | CA120: 7.7 | CB120: 5 | CE120: 32 | CF120: 2.010619298 | CG120: 4.762067631 | CH120: 1.435551771 | CK120: 0 | CL120: 0 | CM120: 0 | CN120: 0 | CO120: 1.5 | CP120: 0 | CW120: 32 | CX120: 2.010619298 | CY120: 1.000034203 | CZ120: 0.3014658719 | DC120: 1.000034203 | DD120: 0.3014658719 | DE120: 1.000034203 | DF120: 0.3014658719 | DG120: 2.975034203 | DH120: 2.276465872
BS121: 15 | BT121: 54.2 | BU121: 42.4 | BV121: 35.8 | BW121: 26 | BX121: 21.2 | BY121: 18.3 | BZ121: 12.6 | CA121: 8.5 | CB121: 6 | CE121: 33 | CF121: 2.073451151 | CG121: 4.6907667 | CH121: 1.295615815 | CK121: 0 | CL121: 0 | CM121: 0 | CN121: 0 | CO121: 1.5 | CP121: 0 | CW121: 33 | CX121: 2.073451151 | CY121: 0.985061007 | CZ121: 0.2720793211 | DC121: 0.985061007 | DD121: 0.2720793211 | DE121: 0.985061007 | DF121: 0.2720793211 | DG121: 2.960061007 | DH121: 2.247079321
BS122: 20 | BT122: 57.2 | BU122: 44.8 | BV122: 37.9 | BW122: 27.6 | BX122: 22.6 | BY122: 19.4 | BZ122: 13.4 | CA122: 9 | CB122: 6 | CE122: 34 | CF122: 2.136283004 | CG122: 4.610819814 | CH122: 1.160433013 | CK122: 0 | CL122: 0 | CM122: 0 | CN122: 0 | CO122: 1.5 | CP122: 0 | CW122: 34 | CX122: 2.136283004 | CY122: 0.9682721609 | CZ122: 0.2436909326 | DC122: 0.9682721609 | DD122: 0.2436909326 | DE122: 0.9682721609 | DF122: 0.2436909326 | DG122: 2.943272161 | DH122: 2.218690933
BS123: 25 | BT123: 59.5 | BU123: 46.7 | BV123: 39.6 | BW123: 28.9 | BX123: 23.7 | BY123: 20.4 | BZ123: 14.1 | CA123: 9.5 | CB123: 6 | CE123: 35 | CF123: 2.199114858 | CG123: 4.522542486 | CH123: 1.030536869 | CK123: 0 | CL123: 0 | CM123: 0 | CN123: 0 | CO123: 1.5 | CP123: 0 | CW123: 35 | CX123: 2.199114858 | CY123: 0.949733922 | CZ123: 0.2164127425 | DC123: 0.949733922 | DD123: 0.2164127425 | DE123: 0.949733922 | DF123: 0.2164127425 | DG123: 2.924733922 | DH123: 2.191412743
BS124: 30 | BT124: 61.5 | BU124: 48.3 | BV124: 41 | BW124: 30.1 | BX124: 24.6 | BY124: 21.3 | BZ124: 14.7 | CA124: 9.9 | CB124: 6 | CE124: 36 | CF124: 2.261946711 | CG124: 4.426283107 | CH124: 0.9064400256 | CK124: 0 | CL124: 0 | CM124: 0 | CN124: 0 | CO124: 1.5 | CP124: 0 | CW124: 36 | CX124: 2.261946711 | CY124: 0.9295194525 | CZ124: 0.1903524054 | DC124: 0.9295194525 | DD124: 0.1903524054 | DE124: 0.9295194525 | DF124: 0.1903524054 | DG124: 2.904519452 | DH124: 2.165352405
BS125: 50 | BT125: 67.5 | BU125: 53.2 | BV125: 45.3 | BW125: 33.5 | BX125: 27.5 | BY125: 23.8 | BZ125: 16.5 | CA125: 11.1 | CB125: 7 | CE125: 37 | CF125: 2.324778564 | CG125: 4.322421569 | CH125: 0.7886322352 | CK125: 0 | CL125: 0 | CM125: 0 | CN125: 0 | CO125: 1.5 | CP125: 0 | CW125: 37 | CX125: 2.324778564 | CY125: 0.9077085294 | CZ125: 0.1656127694 | DC125: 0.9077085294 | DD125: 0.1656127694 | DE125: 0.9077085294 | DF125: 0.1656127694 | DG125: 2.882708529 | DH125: 2.140612769
BS126: 100 | BT126: 76.6 | BU126: 60.7 | BV126: 51.9 | BW126: 38.7 | BX126: 31.9 | BY126: 27.7 | BZ126: 19.3 | CA126: 13 | CB126: 8 | CE126: 38 | CF126: 2.387610417 | CG126: 4.211367765 | CH126: 0.6775784314 | CK126: 0 | CL126: 0 | CM126: 0 | CN126: 0 | CO126: 1.5 | CP126: 0 | CW126: 38 | CX126: 2.387610417 | CY126: 0.8843872306 | CZ126: 0.1422914706 | DC126: 0.8843872306 | DD126: 0.1422914706 | DE126: 0.8843872306 | DF126: 0.1422914706 | DG126: 2.859387231 | DH126: 2.117291471
BS127: 500 | BT127: 102.5 | BU127: 82.3 | BV127: 71 | BW127: 54.2 | BX127: 45.2 | BY127: 39.4 | BZ127: 27.8 | CA127: 18.7 | CB127: 12 | CE127: 39 | CF127: 2.45044227 | CG127: 4.093559974 | CH127: 0.5737168931 | CK127: 0 | CL127: 0 | CM127: 0 | CN127: 0 | CO127: 1.5 | CP127: 0 | CW127: 39 | CX127: 2.45044227 | CY127: 0.8596475946 | CZ127: 0.1204805475 | DC127: 0.8596475946 | DD127: 0.1204805475 | DE127: 0.8596475946 | DF127: 0.1204805475 | DG127: 2.834647595 | DH127: 2.095480548
BS128: 1000 | BT128: 116.3 | BU128: 93.9 | BV128: 81.3 | BW128: 62.7 | BX128: 52.5 | BY128: 45.9 | BZ128: 32.5 | CA128: 21.8 | CB128: 14 | CE128: 40 | CF128: 2.513274123 | CG128: 3.969463131 | CH128: 0.4774575141 | CK128: 0 | CL128: 0 | CM128: 0 | CN128: 0 | CO128: 1.5 | CP128: 0 | CW128: 40 | CX128: 2.513274123 | CY128: 0.8335872575 | CZ128: 0.100266078 | DC128: 0.8335872575 | DD128: 0.100266078 | DE128: 0.8335872575 | DF128: 0.100266078 | DG128: 2.808587257 | DH128: 2.075266078
CE129: 41 | CF129: 2.576105976 | CG129: 3.839566987 | CH129: 0.3891801862 | CK129: 0 | CL129: 0 | CM129: 0 | CN129: 0 | CO129: 1.5 | CP129: 0 | CW129: 41 | CX129: 2.576105976 | CY129: 0.8063090674 | CZ129: 0.08172783911 | DC129: 0.8063090674 | DD129: 0.08172783911 | DE129: 0.8063090674 | DF129: 0.08172783911 | DG129: 2.781309067 | DH129: 2.056727839
BR130: Rainfall | BS130: Return Period | BT130: Storm duration | CE130: 42 | CF130: 2.638937829 | CG130: 3.704384185 | CH130: 0.3092332999 | CK130: 0 | CL130: 0 | CM130: 0 | CN130: 0 | CO130: 1.5 | CP130: 0 | CW130: 42 | CX130: 2.638937829 | CY130: 0.7779206789 | CZ130: 0.06493899298 | DC130: 0.7779206789 | DD130: 0.06493899298 | DE130: 0.7779206789 | DF130: 0.06493899298 | DG130: 2.752920679 | DH130: 2.039938993
BT131: 5 | BU131: 10 | BV131: 15 | BW131: 30 | BX131: 45 | BY131: 60 | BZ131: 120 | CA131: 240 | CB131: 480 | CE131: 43 | CF131: 2.701769682 | CG131: 3.564448229 | CH131: 0.2379323688 | CK131: 0 | CL131: 0 | CM131: 0 | CN131: 0 | CO131: 1.5 | CP131: 0 | CW131: 43 | CX131: 2.701769682 | CY131: 0.7485341281 | CZ131: 0.04996579746 | DC131: 0.7485341281 | DD131: 0.04996579746 | DE131: 0.7485341281 | DF131: 0.04996579746 | DG131: 2.723534128 | DH131: 2.024965797
BR132: M5-60 | BS132: 1 | BT132: 40.1 | BU132: 29.9 | BV132: 24.7 | BW132: 17.7 | BX132: 14.5 | BY132: 12.7 | BZ132: 9 | CA132: 6.4 | CB132: 4 | CE132: 44 | CF132: 2.764601535 | CG132: 3.420311382 | CH132: 0.1755587853 | CK132: 0 | CL132: 0 | CM132: 0 | CN132: 0 | CO132: 1.5 | CP132: 0 | CW132: 44 | CX132: 2.764601535 | CY132: 0.7182653902 | CZ132: 0.03686734491 | DC132: 0.7182653902 | DD132: 0.03686734491 | DE132: 0.7182653902 | DF132: 0.03686734491 | DG132: 2.69326539 | DH132: 2.011867345
BR133: 20 | BS133: 2 | BT133: 47.9 | BU133: 37.5 | BV133: 31.6 | BW133: 22.9 | BX133: 18.7 | BY133: 16.1 | BZ133: 11.2 | CA133: 7.7 | CB133: 5 | CE133: 45 | CF133: 2.827433388 | CG133: 3.272542486 | CH133: 0.1223587093 | CK133: 0 | CL133: 0 | CM133: 0 | CN133: 0 | CO133: 1.5 | CP133: 0 | CW133: 45 | CX133: 2.827433388 | CY133: 0.687233922 | CZ133: 0.02569532895 | DC133: 0.687233922 | DD133: 0.02569532895 | DE133: 0.687233922 | DF133: 0.02569532895 | DG133: 2.662233922 | DH133: 2.000695329
BR134: r Ratio | BS134: 5 | BT134: 63.5 | BU134: 49.3 | BV134: 41.3 | BW134: 29.5 | BX134: 23.9 | BY134: 20.5 | BZ134: 14 | CA134: 9.4 | CB134: 6 | CE134: 46 | CF134: 2.890265241 | CG134: 3.121724718 | CH134: 0.07854209718 | CK134: 0 | CL134: 0 | CM134: 0 | CN134: 0 | CO134: 1.5 | CP134: 0 | CW134: 46 | CX134: 2.890265241 | CY134: 0.6555621908 | CZ134: 0.01649384041 | DC134: 0.6555621908 | DD134: 0.01649384041 | DE134: 0.6555621908 | DF134: 0.01649384041 | DG134: 2.630562191 | DH134: 1.99149384
BR135: 0.2 | BS135: 10 | BT135: 72.3 | BU135: 56.6 | BV135: 47.8 | BW135: 34.4 | BX135: 28 | BY135: 24 | BZ135: 16.3 | CA135: 10.9 | CB135: 7 | CE135: 47 | CF135: 2.953097094 | CG135: 2.968453286 | CH135: 0.04428187318 | CK135: 0 | CL135: 0 | CM135: 0 | CN135: 0 | CO135: 1.5 | CP135: 0 | CW135: 47 | CX135: 2.953097094 | CY135: 0.6233751902 | CZ135: 0.009299193367 | DC135: 0.6233751902 | DD135: 0.009299193367 | DE135: 0.6233751902 | DF135: 0.009299193367 | DG135: 2.59837519 | DH135: 1.984299193
BS136: 15 | BT136: 78 | BU136: 61.3 | BV136: 52 | BW136: 37.6 | BX136: 30.6 | BY136: 26.3 | BZ136: 17.9 | CA136: 11.9 | CB136: 8 | CE136: 48 | CF136: 3.015928947 | CG136: 2.813333084 | CH136: 0.01971324671 | CK136: 0 | CL136: 0 | CM136: 0 | CN136: 0 | CO136: 1.5 | CP136: 0 | CW136: 48 | CX136: 3.015928947 | CY136: 0.5907999476 | CZ136: 0.00413978181 | DC136: 0.5907999476 | DD136: 0.00413978181 | DE136: 0.5907999476 | DF136: 0.00413978181 | DG136: 2.565799948 | DH136: 1.979139782
BS137: 20 | BT137: 82.4 | BU137: 65 | BV137: 55.3 | BW137: 40.1 | BX137: 32.7 | BY137: 28.1 | BZ137: 19.1 | CA137: 12.6 | CB137: 8 | CE137: 49 | CF137: 3.078760801 | CG137: 2.656976299 | CH137: 0.004933178929 | CK137: 0 | CL137: 0 | CM137: 0 | CN137: 0 | CO137: 1.5 | CP137: 0 | CW137: 49 | CX137: 3.078760801 | CY137: 0.5579650228 | CZ137: 0.001035967575 | DC137: 0.5579650228 | DD137: 0.001035967575 | DE137: 0.5579650228 | DF137: 0.001035967575 | DG137: 2.532965023 | DH137: 1.976035968
BS138: 25 | BT138: 85.9 | BU138: 67.9 | BV138: 57.9 | BW138: 42.1 | BX138: 34.4 | BY138: 29.6 | BZ138: 20 | CA138: 13.2 | CB138: 9 | CE138: 50 | CF138: 3.141592654 | CG138: 2.5 | CH138: 0 | CK138: 0 | CL138: 0 | CM138: 0 | CN138: 0 | CO138: 1.5 | CP138: 0 | CW138: 50 | CX138: 3.141592654 | CY138: 0.525 | CZ138: 0 | DC138: 0.525 | DD138: 0 | DE138: 0.525 | DF138: 0 | DG138: 2.5 | DH138: 1.975
BS139: 30 | BT139: 88.9 | BU139: 70.5 | BV139: 60.2 | BW139: 43.9 | BX139: 35.8 | BY139: 30.8 | BZ139: 20.9 | CA139: 13.7 | CB139: 9 | CE139: 51 | CF139: 3.204424507 | CG139: 2.343023701 | CH139: 0.004933178929 | CK139: 0 | CL139: 0 | CM139: 0 | CN139: 0 | CO139: 1.5 | CP139: 0 | CW139: 51 | CX139: 3.204424507 | CY139: 0.4920349772 | CZ139: 0.001035967575 | DC139: 0.4920349772 | DD139: 0.001035967575 | DE139: 0.4920349772 | DF139: 0.001035967575 | DG139: 2.467034977 | DH139: 1.976035968
BS140: 50 | BT140: 97.8 | BU140: 78 | BV140: 67 | BW140: 49.1 | BX140: 40.2 | BY140: 34.6 | BZ140: 23.4 | CA140: 15.3 | CB140: 10 | CE140: 52 | CF140: 3.26725636 | CG140: 2.186666916 | CH140: 0.01971324671 | CK140: 0 | CL140: 0 | CM140: 0 | CN140: 0 | CO140: 1.5 | CP140: 0 | CW140: 52 | CX140: 3.26725636 | CY140: 0.4592000524 | CZ140: 0.00413978181 | DC140: 0.4592000524 | DD140: 0.00413978181 | DE140: 0.4592000524 | DF140: 0.00413978181 | DG140: 2.434200052 | DH140: 1.979139782
BS141: 100 | BT141: 111.4 | BU141: 89.6 | BV141: 77.4 | BW141: 57.2 | BX141: 47 | BY141: 40.5 | BZ141: 27.3 | CA141: 17.6 | CB141: 11 | CE141: 53 | CF141: 3.330088213 | CG141: 2.031546714 | CH141: 0.04428187318 | CK141: 0 | CL141: 0 | CM141: 0 | CN141: 0 | CO141: 1.5 | CP141: 0 | CW141: 53 | CX141: 3.330088213 | CY141: 0.4266248098 | CZ141: 0.009299193367 | DC141: 0.4266248098 | DD141: 0.009299193367 | DE141: 0.4266248098 | DF141: 0.009299193367 | DG141: 2.40162481 | DH141: 1.984299193
BS142: 500 | BT142: 150.6 | BU142: 123.6 | BV142: 108.5 | BW142: 81.6 | BX142: 67.5 | BY142: 58.4 | BZ142: 39.1 | CA142: 24.7 | CB142: 15 | CE142: 54 | CF142: 3.392920066 | CG142: 1.878275282 | CH142: 0.07854209718 | CK142: 0 | CL142: 0 | CM142: 0 | CN142: 0 | CO142: 1.5 | CP142: 0 | CW142: 54 | CX142: 3.392920066 | CY142: 0.3944378092 | CZ142: 0.01649384041 | DC142: 0.3944378092 | DD142: 0.01649384041 | DE142: 0.3944378092 | DF142: 0.01649384041 | DG142: 2.369437809 | DH142: 1.99149384
BS143: 1000 | BT143: 171.5 | BU143: 141.9 | BV143: 125.4 | BW143: 95.1 | BX143: 78.9 | BY143: 68.4 | BZ143: 45.7 | CA143: 28.5 | CB143: 17 | CE143: 55 | CF143: 3.455751919 | CG143: 1.727457514 | CH143: 0.1223587093 | CK143: 0 | CL143: 0 | CM143: 0 | CN143: 0 | CO143: 1.5 | CP143: 0 | CW143: 55 | CX143: 3.455751919 | CY143: 0.362766078 | CZ143: 0.02569532895 | DC143: 0.362766078 | DD143: 0.02569532895 | DE143: 0.362766078 | DF143: 0.02569532895 | DG143: 2.337766078 | DH143: 2.000695329
CE144: 56 | CF144: 3.518583772 | CG144: 1.579688618 | CH144: 0.1755587853 | CK144: 0 | CL144: 0 | CM144: 0 | CN144: 0 | CO144: 1.5 | CP144: 0 | CW144: 56 | CX144: 3.518583772 | CY144: 0.3317346098 | CZ144: 0.03686734491 | DC144: 0.3317346098 | DD144: 0.03686734491 | DE144: 0.3317346098 | DF144: 0.03686734491 | DG144: 2.30673461 | DH144: 2.011867345
CE145: 57 | CF145: 3.581415625 | CG145: 1.435551771 | CH145: 0.2379323688 | CK145: 0 | CL145: 0 | CM145: 0 | CN145: 0 | CO145: 1.5 | CP145: 0 | CW145: 57 | CX145: 3.581415625 | CY145: 0.3014658719 | CZ145: 0.04996579746 | DC145: 0.3014658719 | DD145: 0.04996579746 | DE145: 0.3014658719 | DF145: 0.04996579746 | DG145: 2.276465872 | DH145: 2.024965797
CE146: 58 | CF146: 3.644247478 | CG146: 1.295615815 | CH146: 0.3092332999 | CK146: 0 | CL146: 0 | CM146: 0 | CN146: 0 | CO146: 1.5 | CP146: 0 | CW146: 58 | CX146: 3.644247478 | CY146: 0.2720793211 | CZ146: 0.06493899298 | DC146: 0.2720793211 | DD146: 0.06493899298 | DE146: 0.2720793211 | DF146: 0.06493899298 | DG146: 2.247079321 | DH146: 2.039938993
CE147: 59 | CF147: 3.707079331 | CG147: 1.160433013 | CH147: 0.3891801862 | CK147: 0 | CL147: 0 | CM147: 0 | CN147: 0 | CO147: 1.5 | CP147: 0 | CW147: 59 | CX147: 3.707079331 | CY147: 0.2436909326 | CZ147: 0.08172783911 | DC147: 0.2436909326 | DD147: 0.08172783911 | DE147: 0.2436909326 | DF147: 0.08172783911 | DG147: 2.218690933 | DH147: 2.056727839
CE148: 60 | CF148: 3.769911184 | CG148: 1.030536869 | CH148: 0.4774575141 | CK148: 0 | CL148: 0 | CM148: 0 | CN148: 0 | CO148: 1.5 | CP148: 0 | CW148: 60 | CX148: 3.769911184 | CY148: 0.2164127425 | CZ148: 0.100266078 | DC148: 0.2164127425 | DD148: 0.100266078 | DE148: 0.2164127425 | DF148: 0.100266078 | DG148: 2.191412743 | DH148: 2.075266078
CE149: 61 | CF149: 3.832743037 | CG149: 0.9064400256 | CH149: 0.5737168931 | CK149: 0 | CL149: 0 | CM149: 0 | CN149: 0 | CO149: 1.5 | CP149: 0 | CW149: 61 | CX149: 3.832743037 | CY149: 0.1903524054 | CZ149: 0.1204805475 | DC149: 0.1903524054 | DD149: 0.1204805475 | DE149: 0.1903524054 | DF149: 0.1204805475 | DG149: 2.165352405 | DH149: 2.095480548
CE150: 62 | CF150: 3.89557489 | CG150: 0.7886322352 | CH150: 0.6775784314 | CK150: 0 | CL150: 0 | CM150: 0 | CN150: 0 | CO150: 1.5 | CP150: 0 | CW150: 62 | CX150: 3.89557489 | CY150: 0.1656127694 | CZ150: 0.1422914706 | DC150: 0.1656127694 | DD150: 0.1422914706 | DE150: 0.1656127694 | DF150: 0.1422914706 | DG150: 2.140612769 | DH150: 2.117291471
CE151: 63 | CF151: 3.958406744 | CG151: 0.6775784314 | CH151: 0.7886322352 | CK151: 0 | CL151: 0 | CM151: 0 | CN151: 0 | CO151: 1.5 | CP151: 0 | CW151: 63 | CX151: 3.958406744 | CY151: 0.1422914706 | CZ151: 0.1656127694 | DC151: 0.1422914706 | DD151: 0.1656127694 | DE151: 0.1422914706 | DF151: 0.1656127694 | DG151: 2.117291471 | DH151: 2.140612769
CE152: 64 | CF152: 4.021238597 | CG152: 0.5737168931 | CH152: 0.9064400256 | CK152: 0 | CL152: 0 | CM152: 0 | CN152: 0 | CO152: 1.5 | CP152: 0 | CW152: 64 | CX152: 4.021238597 | CY152: 0.1204805475 | CZ152: 0.1903524054 | DC152: 0.1204805475 | DD152: 0.1903524054 | DE152: 0.1204805475 | DF152: 0.1903524054 | DG152: 2.095480548 | DH152: 2.165352405
CE153: 65 | CF153: =CE153%*2*PI() -> 4.08407045 | CG153: 0.4774575141 | CH153: 1.030536869 | CK153: 0 | CL153: 0 | CM153: 0 | CN153: 0 | CO153: 1.5 | CP153: 0 | CW153: 65 | CX153: 4.08407045 | CY153: 0.100266078 | CZ153: 0.2164127425 | DC153: 0.100266078 | DD153: 0.2164127425 | DE153: 0.100266078 | DF153: 0.2164127425 | DG153: 2.075266078 | DH153: 2.191412743
CE154: 66 | CF154: 4.146902303 | CG154: =($T$22/2)*SIN(CF154)+T$22/2 -> 0.3891801862 | CH154: =($T$22/2)*COS(CF154)+T$22/2 -> 1.160433013 | CK154: =IF(P$20="Perforated Manhole",CG154,CI154) -> 0 | CL154: =IF(P$20="Perforated Manhole",CH154,CJ154) -> 0 | CM154: =IF(MAX($CK$89:$CL$189)>5,CK154*(5/MAX($CK$89:$CL$189)),CK154) -> 0 | CN154: 0 | CO154: =IF(MAX($CM$89:$CM$189)=5,CM154,CM154+0.5*(5-MAX($CM$89:$CM$189))) -> 1.5 | CP154: =IF(MAX($CN$89:$CN$189)=5,CN154,CN154+0.5*(5-MAX($CN$89:$CN$189))) -> 0 | CW154: 66 | CX154: =CW154%*2*PI() -> 4.146902303 | CY154: =($T$28*0.001/2)*SIN(CX154)+T$28*0.001/2 -> 0.08172783911 | CZ154: =($T$28*0.001/2)*COS(CX154)+T$28*0.001/2 -> 0.2436909326 | DC154: =IF(P$20="Manhole Within Pit",CY154,NA()) -> 0.08172783911 | DD154: =IF(P$20="Manhole Within Pit",CZ154,NA()) -> 0.2436909326 | DE154: =IF(MAX($CO$89:$CP$189)>5,DC154*(5/MAX($CO$89:$CP$189)),DC154) -> 0.08172783911 | DF154: 0.2436909326 | DG154: =IF(MAX($CQ$89:$CQ$189)=5,DE154,DE154+0.5*(5-MAX($CQ$89:$CQ$189)))-$DF$188/2+($CS$90-$CS$89)/2 -> 2.056727839 | DH154: =IF(MAX($CR$89:$CR$189)=5,DF154,DF154+0.5*(5-MAX($CR$89:$CR$189)))-$DF$188/2+($CT$91-$CT$90)/2 -> 2.218690933
CE155: 67 | CF155: 4.209734156 | CG155: 0.3092332999 | CH155: 1.295615815 | CK155: 0 | CL155: 0 | CM155: 0 | CN155: 0 | CO155: 1.5 | CP155: 0 | CW155: 67 | CX155: 4.209734156 | CY155: 0.06493899298 | CZ155: 0.2720793211 | DC155: 0.06493899298 | DD155: 0.2720793211 | DE155: 0.06493899298 | DF155: 0.2720793211 | DG155: 2.039938993 | DH155: 2.247079321
CE156: 68 | CF156: 4.272566009 | CG156: 0.2379323688 | CH156: 1.435551771 | CK156: 0 | CL156: 0 | CM156: 0 | CN156: 0 | CO156: 1.5 | CP156: 0 | CW156: 68 | CX156: 4.272566009 | CY156: 0.04996579746 | CZ156: 0.3014658719 | DC156: 0.04996579746 | DD156: 0.3014658719 | DE156: 0.04996579746 | DF156: 0.3014658719 | DG156: 2.024965797 | DH156: 2.276465872
CE157: 69 | CF157: 4.335397862 | CG157: 0.1755587853 | CH157: 1.579688618 | CK157: 0 | CL157: 0 | CM157: 0 | CN157: 0 | CO157: 1.5 | CP157: 0 | CW157: 69 | CX157: 4.335397862 | CY157: 0.03686734491 | CZ157: 0.3317346098 | DC157: 0.03686734491 | DD157: 0.3317346098 | DE157: 0.03686734491 | DF157: 0.3317346098 | DG157: 2.011867345 | DH157: 2.30673461
CE158: 70 | CF158: 4.398229715 | CG158: 0.1223587093 | CH158: 1.727457514 | CK158: 0 | CL158: 0 | CM158: 0 | CN158: 0 | CO158: 1.5 | CP158: 0 | CW158: 70 | CX158: 4.398229715 | CY158: 0.02569532895 | CZ158: 0.362766078 | DC158: 0.02569532895 | DD158: 0.362766078 | DE158: 0.02569532895 | DF158: 0.362766078 | DG158: 2.000695329 | DH158: 2.337766078
CE159: 71 | CF159: 4.461061568 | CG159: 0.07854209718 | CH159: 1.878275282 | CK159: 0 | CL159: 0 | CM159: 0 | CN159: 0 | CO159: 1.5 | CP159: 0 | CW159: 71 | CX159: 4.461061568 | CY159: 0.01649384041 | CZ159: 0.3944378092 | DC159: 0.01649384041 | DD159: 0.3944378092 | DE159: 0.01649384041 | DF159: 0.3944378092 | DG159: 1.99149384 | DH159: 2.369437809
CE160: 72 | CF160: 4.523893421 | CG160: 0.04428187318 | CH160: 2.031546714 | CK160: 0 | CL160: 0 | CM160: 0 | CN160: 0 | CO160: 1.5 | CP160: 0 | CW160: 72 | CX160: 4.523893421 | CY160: 0.009299193367 | CZ160: 0.4266248098 | DC160: 0.009299193367 | DD160: 0.4266248098 | DE160: 0.009299193367 | DF160: 0.4266248098 | DG160: 1.984299193 | DH160: 2.40162481
CE161: 73 | CF161: 4.586725274 | CG161: 0.01971324671 | CH161: 2.186666916 | CK161: 0 | CL161: 0 | CM161: 0 | CN161: 0 | CO161: 1.5 | CP161: 0 | CW161: 73 | CX161: 4.586725274 | CY161: 0.00413978181 | CZ161: 0.4592000524 | DC161: 0.00413978181 | DD161: 0.4592000524 | DE161: 0.00413978181 | DF161: 0.4592000524 | DG161: 1.979139782 | DH161: 2.434200052
CE162: 74 | CF162: 4.649557127 | CG162: 0.004933178929 | CH162: 2.343023701 | CK162: 0 | CL162: 0 | CM162: 0 | CN162: 0 | CO162: 1.5 | CP162: 0 | CW162: 74 | CX162: 4.649557127 | CY162: 0.001035967575 | CZ162: 0.4920349772 | DC162: 0.001035967575 | DD162: 0.4920349772 | DE162: 0.001035967575 | DF162: 0.4920349772 | DG162: 1.976035968 | DH162: 2.467034977
CE163: 75 | CF163: 4.71238898 | CG163: 0 | CH163: 2.5 | CK163: 0 | CL163: 0 | CM163: 0 | CN163: 0 | CO163: 1.5 | CP163: 0 | CW163: 75 | CX163: 4.71238898 | CY163: 0 | CZ163: 0.525 | DC163: 0 | DD163: 0.525 | DE163: 0 | DF163: 0.525 | DG163: 1.975 | DH163: 2.5
CE164: 76 | CF164: 4.775220833 | CG164: 0.004933178929 | CH164: 2.656976299 | CK164: 0 | CL164: 0 | CM164: 0 | CN164: 0 | CO164: 1.5 | CP164: 0 | CW164: 76 | CX164: 4.775220833 | CY164: 0.001035967575 | CZ164: 0.5579650228 | DC164: 0.001035967575 | DD164: 0.5579650228 | DE164: 0.001035967575 | DF164: 0.5579650228 | DG164: 1.976035968 | DH164: 2.532965023
CE165: 77 | CF165: 4.838052687 | CG165: 0.01971324671 | CH165: 2.813333084 | CK165: 0 | CL165: 0 | CM165: 0 | CN165: 0 | CO165: 1.5 | CP165: 0 | CW165: 77 | CX165: 4.838052687 | CY165: 0.00413978181 | CZ165: 0.5907999476 | DC165: 0.00413978181 | DD165: 0.5907999476 | DE165: 0.00413978181 | DF165: 0.5907999476 | DG165: 1.979139782 | DH165: 2.565799948
CE166: 78 | CF166: 4.90088454 | CG166: 0.04428187318 | CH166: 2.968453286 | CK166: 0 | CL166: 0 | CM166: 0 | CN166: 0 | CO166: 1.5 | CP166: 0 | CW166: 78 | CX166: 4.90088454 | CY166: 0.009299193367 | CZ166: 0.6233751902 | DC166: 0.009299193367 | DD166: 0.6233751902 | DE166: 0.009299193367 | DF166: 0.6233751902 | DG166: 1.984299193 | DH166: 2.59837519
CE167: 79 | CF167: 4.963716393 | CG167: 0.07854209718 | CH167: 3.121724718 | CK167: 0 | CL167: 0 | CM167: 0 | CN167: 0 | CO167: 1.5 | CP167: 0 | CW167: 79 | CX167: 4.963716393 | CY167: 0.01649384041 | CZ167: 0.6555621908 | DC167: 0.01649384041 | DD167: 0.6555621908 | DE167: 0.01649384041 | DF167: 0.6555621908 | DG167: 1.99149384 | DH167: 2.630562191
CE168: 80 | CF168: 5.026548246 | CG168: 0.1223587093 | CH168: 3.272542486 | CK168: 0 | CL168: 0 | CM168: 0 | CN168: 0 | CO168: 1.5 | CP168: 0 | CW168: 80 | CX168: 5.026548246 | CY168: 0.02569532895 | CZ168: 0.687233922 | DC168: 0.02569532895 | DD168: 0.687233922 | DE168: 0.02569532895 | DF168: 0.687233922 | DG168: 2.000695329 | DH168: 2.662233922
CE169: 81 | CF169: 5.089380099 | CG169: 0.1755587853 | CH169: 3.420311382 | CK169: 0 | CL169: 0 | CM169: 0 | CN169: 0 | CO169: 1.5 | CP169: 0 | CW169: 81 | CX169: 5.089380099 | CY169: 0.03686734491 | CZ169: 0.7182653902 | DC169: 0.03686734491 | DD169: 0.7182653902 | DE169: 0.03686734491 | DF169: 0.7182653902 | DG169: 2.011867345 | DH169: 2.69326539
CE170: 82 | CF170: 5.152211952 | CG170: 0.2379323688 | CH170: 3.564448229 | CK170: 0 | CL170: 0 | CM170: 0 | CN170: 0 | CO170: 1.5 | CP170: 0 | CW170: 82 | CX170: 5.152211952 | CY170: 0.04996579746 | CZ170: 0.7485341281 | DC170: 0.04996579746 | DD170: 0.7485341281 | DE170: 0.04996579746 | DF170: 0.7485341281 | DG170: 2.024965797 | DH170: 2.723534128
CE171: 83 | CF171: 5.215043805 | CG171: 0.3092332999 | CH171: 3.704384185 | CK171: 0 | CL171: 0 | CM171: 0 | CN171: 0 | CO171: 1.5 | CP171: 0 | CW171: 83 | CX171: 5.215043805 | CY171: 0.06493899298 | CZ171: 0.7779206789 | DC171: 0.06493899298 | DD171: 0.7779206789 | DE171: 0.06493899298 | DF171: 0.7779206789 | DG171: 2.039938993 | DH171: 2.752920679
CE172: 84 | CF172: 5.277875658 | CG172: 0.3891801862 | CH172: 3.839566987 | CK172: 0 | CL172: 0 | CM172: 0 | CN172: 0 | CO172: 1.5 | CP172: 0 | CW172: 84 | CX172: 5.277875658 | CY172: 0.08172783911 | CZ172: 0.8063090674 | DC172: 0.08172783911 | DD172: 0.8063090674 | DE172: 0.08172783911 | DF172: 0.8063090674 | DG172: 2.056727839 | DH172: 2.781309067
CE173: 85 | CF173: 5.340707511 | CG173: 0.4774575141 | CH173: 3.969463131 | CK173: 0 | CL173: 0 | CM173: 0 | CN173: 0 | CO173: 1.5 | CP173: 0 | CW173: 85 | CX173: 5.340707511 | CY173: 0.100266078 | CZ173: 0.8335872575 | DC173: 0.100266078 | DD173: 0.8335872575 | DE173: 0.100266078 | DF173: 0.8335872575 | DG173: 2.075266078 | DH173: 2.808587257
CE174: 86 | CF174: 5.403539364 | CG174: 0.5737168931 | CH174: 4.093559974 | CK174: 0 | CL174: 0 | CM174: 0 | CN174: 0 | CO174: 1.5 | CP174: 0 | CW174: 86 | CX174: 5.403539364 | CY174: 0.1204805475 | CZ174: 0.8596475946 | DC174: 0.1204805475 | DD174: 0.8596475946 | DE174: 0.1204805475 | DF174: 0.8596475946 | DG174: 2.095480548 | DH174: 2.834647595
CE175: 87 | CF175: 5.466371217 | CG175: 0.6775784314 | CH175: 4.211367765 | CK175: 0 | CL175: 0 | CM175: 0 | CN175: 0 | CO175: 1.5 | CP175: 0 | CW175: 87 | CX175: 5.466371217 | CY175: 0.1422914706 | CZ175: 0.8843872306 | DC175: 0.1422914706 | DD175: 0.8843872306 | DE175: 0.1422914706 | DF175: 0.8843872306 | DG175: 2.117291471 | DH175: 2.859387231
CE176: 88 | CF176: 5.52920307 | CG176: 0.7886322352 | CH176: 4.322421569 | CK176: 0 | CL176: 0 | CM176: 0 | CN176: 0 | CO176: 1.5 | CP176: 0 | CW176: 88 | CX176: 5.52920307 | CY176: 0.1656127694 | CZ176: 0.9077085294 | DC176: 0.1656127694 | DD176: 0.9077085294 | DE176: 0.1656127694 | DF176: 0.9077085294 | DG176: 2.140612769 | DH176: 2.882708529
CE177: 89 | CF177: 5.592034923 | CG177: 0.9064400256 | CH177: 4.426283107 | CK177: 0 | CL177: 0 | CM177: 0 | CN177: 0 | CO177: 1.5 | CP177: 0 | CW177: 89 | CX177: 5.592034923 | CY177: 0.1903524054 | CZ177: 0.9295194525 | DC177: 0.1903524054 | DD177: 0.9295194525 | DE177: 0.1903524054 | DF177: 0.9295194525 | DG177: 2.165352405 | DH177: 2.904519452
CE178: 90 | CF178: 5.654866776 | CG178: 1.030536869 | CH178: 4.522542486 | CK178: 0 | CL178: 0 | CM178: 0 | CN178: 0 | CO178: 1.5 | CP178: 0 | CW178: 90 | CX178: 5.654866776 | CY178: 0.2164127425 | CZ178: 0.949733922 | DC178: 0.2164127425 | DD178: 0.949733922 | DE178: 0.2164127425 | DF178: 0.949733922 | DG178: 2.191412743 | DH178: 2.924733922
CE179: 91 | CF179: 5.71769863 | CG179: 1.160433013 | CH179: 4.610819814 | CK179: 0 | CL179: 0 | CM179: 0 | CN179: 0 | CO179: 1.5 | CP179: 0 | CW179: 91 | CX179: 5.71769863 | CY179: 0.2436909326 | CZ179: 0.9682721609 | DC179: 0.2436909326 | DD179: 0.9682721609 | DE179: 0.2436909326 | DF179: 0.9682721609 | DG179: 2.218690933 | DH179: 2.943272161
CE180: 92 | CF180: 5.780530483 | CG180: 1.295615815 | CH180: 4.6907667 | CK180: 0 | CL180: 0 | CM180: 0 | CN180: 0 | CO180: 1.5 | CP180: 0 | CW180: 92 | CX180: 5.780530483 | CY180: 0.2720793211 | CZ180: 0.985061007 | DC180: 0.2720793211 | DD180: 0.985061007 | DE180: 0.2720793211 | DF180: 0.985061007 | DG180: 2.247079321 | DH180: 2.960061007
CE181: 93 | CF181: 5.843362336 | CG181: 1.435551771 | CH181: 4.762067631 | CK181: 0 | CL181: 0 | CM181: 0 | CN181: 0 | CO181: 1.5 | CP181: 0 | CW181: 93 | CX181: 5.843362336 | CY181: 0.3014658719 | CZ181: 1.000034203 | DC181: 0.3014658719 | DD181: 1.000034203 | DE181: 0.3014658719 | DF181: 1.000034203 | DG181: 2.276465872 | DH181: 2.975034203
CE182: 94 | CF182: 5.906194189 | CG182: 1.579688618 | CH182: 4.824441215 | CK182: 0 | CL182: 0 | CM182: 0 | CN182: 0 | CO182: 1.5 | CP182: 0 | CW182: 94 | CX182: 5.906194189 | CY182: 0.3317346098 | CZ182: 1.013132655 | DC182: 0.3317346098 | DD182: 1.013132655 | DE182: 0.3317346098 | DF182: 1.013132655 | DG182: 2.30673461 | DH182: 2.988132655
CE183: 95 | CF183: 5.969026042 | CG183: 1.727457514 | CH183: 4.877641291 | CK183: 0 | CL183: 0 | CM183: 0 | CN183: 0 | CO183: 1.5 | CP183: 0 | CW183: 95 | CX183: 5.969026042 | CY183: 0.362766078 | CZ183: 1.024304671 | DC183: 0.362766078 | DD183: 1.024304671 | DE183: 0.362766078 | DF183: 1.024304671 | DG183: 2.337766078 | DH183: 2.999304671
CE184: 96 | CF184: 6.031857895 | CG184: 1.878275282 | CH184: 4.921457903 | CK184: 0 | CL184: 0 | CM184: 0 | CN184: 0 | CO184: 1.5 | CP184: 0 | CW184: 96 | CX184: 6.031857895 | CY184: 0.3944378092 | CZ184: 1.03350616 | DC184: 0.3944378092 | DD184: 1.03350616 | DE184: 0.3944378092 | DF184: 1.03350616 | DG184: 2.369437809 | DH184: 3.00850616
CE185: 97 | CF185: 6.094689748 | CG185: 2.031546714 | CH185: 4.955718127 | CK185: 0 | CL185: 0 | CM185: 0 | CN185: 0 | CO185: 1.5 | CP185: 0 | CW185: 97 | CX185: 6.094689748 | CY185: 0.4266248098 | CZ185: 1.040700807 | DC185: 0.4266248098 | DD185: 1.040700807 | DE185: 0.4266248098 | DF185: 1.040700807 | DG185: 2.40162481 | DH185: 3.015700807
CE186: 98 | CF186: 6.157521601 | CG186: 2.186666916 | CH186: 4.980286753 | CK186: 0 | CL186: 0 | CM186: 0 | CN186: 0 | CO186: 1.5 | CP186: 0 | CW186: 98 | CX186: 6.157521601 | CY186: 0.4592000524 | CZ186: 1.045860218 | DC186: 0.4592000524 | DD186: 1.045860218 | DE186: 0.4592000524 | DF186: 1.045860218 | DG186: 2.434200052 | DH186: 3.020860218
CE187: 99 | CF187: 6.220353454 | CG187: 2.343023701 | CH187: 4.995066821 | CK187: 0 | CL187: 0 | CM187: 0 | CN187: 0 | CO187: 1.5 | CP187: 0 | CW187: 99 | CX187: 6.220353454 | CY187: 0.4920349772 | CZ187: 1.048964032 | DC187: 0.4920349772 | DD187: 1.048964032 | DE187: 0.4920349772 | DF187: 1.048964032 | DG187: 2.467034977 | DH187: 3.023964032
CE188: 100 | CF188: 6.283185307 | CG188: 2.5 | CH188: 5 | CK188: 0 | CL188: 0 | CM188: 0 | CN188: 0 | CO188: 1.5 | CP188: 0 | CW188: 100 | CX188: 6.283185307 | CY188: 0.525 | CZ188: 1.05 | DC188: 0.525 | DD188: 1.05 | DE188: 0.525 | DF188: 1.05 | DG188: 2.5 | DH188: 3.025
CK189: 0 | CL189: 0 | CM189: 0 | CN189: 0 | CO189: =CO89 -> 1.5 | CP189: =CP89 -> 0 | DC189: 0 | DD189: 0
